{"text_format":"1","workbook":"xlsx","n_sheets":12,"sheets":["Appointment Calendar","Ongoing","Patient Appointment List","Color Key","Template 12 wk","Template 8 wk","Sheet1","Sheet2","Sheet3","Sheet4","Sheet5","Sheet6"],"not_rendered":{"charts":0,"images":1,"macros":1,"external_links":0,"defined_names":37,"comments":0,"pivot_tables":0},"unopened":[],"bounds":{"document_bytes":16777216,"sheet_cells":100000,"rows_first":2000,"rows_last":500,"rows_between":2000,"halvings":0,"cell_chars":16384,"cell_head_chars":4096},"cells_cut":0,"cells_raw":0,"read":"row_number_cap","date_system":"1900"}

{"sheet":"Appointment Calendar","index":0,"n_rows":37,"n_cols":8,"rows_kept":37,"cut":false,"hidden":false,"merged":[[5,6,5,7],[2,7,3,7],[1,1,2,2],[3,1,4,2],[1,3,4,5],[2,6,3,6]]}
[]
[null,{"$f":"UPPER(MonthToDisplay)","v":"OCTOBER"},null,"NOTE:",null,null,"ENTER MONTH:","october"]
[null,null,null,null,null,null,"ENTER YEAR:",2017]
[null,{"$f":"YearToDisplay","v":2017}]
[null,null,null,null,null,null,"ENTER START DAY:","Sunday"]
[null,null,null,null,null,"Link to Ongoing Patients",{"$f":"IF(ISERROR(INDEX(calendar,ndx+0,1)),\"CHECK SPELLING OF MONTH AND DAY\",\"\")","v":""}]
[null,{"$f":"TEXT(B8,\"aaaa\")","v":"Sunday"},"Monday","Tuesday","Wednesday","Thursday","Friday","Saturday"]
[null,{"$f":"IFERROR(INDEX(calendar,ndx+0,1),\"\")","v":"2017-10-01"},{"$f":"IFERROR(INDEX(calendar,ndx+0,2),\"\")","v":"2017-10-02"},{"$f":"IFERROR(INDEX(calendar,ndx+0,3),\"\")","v":"2017-10-03"},{"$f":"IFERROR(INDEX(calendar,ndx+0,4),\"\")","v":"2017-10-04"},{"$f":"IFERROR(INDEX(calendar,ndx+0,5),\"\")","v":"2017-10-05"},{"$f":"IFERROR(INDEX(calendar,ndx+0,6),\"\")","v":"2017-10-06"},{"$f":"IFERROR(INDEX(calendar,ndx+0,7),\"\")","v":"2017-10-07"}]
[null,{"$f":"IFERROR(INDEX(Homework[],SMALL(IF(Dates=B$8,ROW(Dates)),ROW(1:1))-TableRowStart,4),\"\")","v":""},{"$f":"IFERROR(INDEX(Homework[],SMALL(IF(Dates=C$8,ROW(Dates)),ROW(1:1))-TableRowStart,4),\"\")","v":"Smith,Jane: 12345"},{"$f":"IFERROR(INDEX(Homework[],SMALL(IF(Dates=D$8,ROW(Dates)),ROW(1:1))-TableRowStart,4),\"\")","v":""},{"$f":"IFERROR(INDEX(Homework[],SMALL(IF(Dates=E$8,ROW(Dates)),ROW(1:1))-TableRowStart,4),\"\")","v":""},{"$f":"IFERROR(INDEX(Homework[],SMALL(IF(Dates=F$8,ROW(Dates)),ROW(1:1))-TableRowStart,4),\"\")","v":""},{"$f":"IFERROR(INDEX(Homework[],SMALL(IF(Dates=G$8,ROW(Dates)),ROW(1:1))-TableRowStart,4),\"\")","v":""},{"$f":"IFERROR(INDEX(Homework[],SMALL(IF(Dates=H$8,ROW(Dates)),ROW(1:1))-TableRowStart,4),\"\")","v":"doe,j: 12347"}]
[null,{"$f":"IFERROR(INDEX(Homework[],SMALL(IF(Dates=B$8,ROW(Dates)),ROW(2:2))-TableRowStart,4),\"\")","v":""},{"$f":"IFERROR(INDEX(Homework[],SMALL(IF(Dates=C$8,ROW(Dates)),ROW(2:2))-TableRowStart,4),\"\")","v":"doe,john: 12348"},{"$f":"IFERROR(INDEX(Homework[],SMALL(IF(Dates=D$8,ROW(Dates)),ROW(2:2))-TableRowStart,4),\"\")","v":""},{"$f":"IFERROR(INDEX(Homework[],SMALL(IF(Dates=E$8,ROW(Dates)),ROW(2:2))-TableRowStart,4),\"\")","v":""},{"$f":"IFERROR(INDEX(Homework[],SMALL(IF(Dates=F$8,ROW(Dates)),ROW(2:2))-TableRowStart,4),\"\")","v":""},{"$f":"IFERROR(INDEX(Homework[],SMALL(IF(Dates=G$8,ROW(Dates)),ROW(2:2))-TableRowStart,4),\"\")","v":""},{"$f":"IFERROR(INDEX(Homework[],SMALL(IF(Dates=H$8,ROW(Dates)),ROW(2:2))-TableRowStart,4),\"\")","v":""}]
[null,{"$f":"IFERROR(INDEX(Homework[],SMALL(IF(Dates=B$8,ROW(Dates)),ROW(3:3))-TableRowStart,4),\"\")","v":""},{"$f":"IFERROR(INDEX(Homework[],SMALL(IF(Dates=C$8,ROW(Dates)),ROW(3:3))-TableRowStart,4),\"\")","v":""},{"$f":"IFERROR(INDEX(Homework[],SMALL(IF(Dates=D$8,ROW(Dates)),ROW(3:3))-TableRowStart,4),\"\")","v":""},{"$f":"IFERROR(INDEX(Homework[],SMALL(IF(Dates=E$8,ROW(Dates)),ROW(3:3))-TableRowStart,4),\"\")","v":""},{"$f":"IFERROR(INDEX(Homework[],SMALL(IF(Dates=F$8,ROW(Dates)),ROW(3:3))-TableRowStart,4),\"\")","v":""},{"$f":"IFERROR(INDEX(Homework[],SMALL(IF(Dates=G$8,ROW(Dates)),ROW(3:3))-TableRowStart,4),\"\")","v":""},{"$f":"IFERROR(INDEX(Homework[],SMALL(IF(Dates=H$8,ROW(Dates)),ROW(3:3))-TableRowStart,4),\"\")","v":""}]
[null,{"$f":"IFERROR(INDEX(Homework[],SMALL(IF(Dates=B$8,ROW(Dates)),ROW(4:4))-TableRowStart,4),\"\")","v":""},{"$f":"IFERROR(INDEX(Homework[],SMALL(IF(Dates=C$8,ROW(Dates)),ROW(4:4))-TableRowStart,4),\"\")","v":""},{"$f":"IFERROR(INDEX(Homework[],SMALL(IF(Dates=D$8,ROW(Dates)),ROW(4:4))-TableRowStart,4),\"\")","v":""},{"$f":"IFERROR(INDEX(Homework[],SMALL(IF(Dates=E$8,ROW(Dates)),ROW(4:4))-TableRowStart,4),\"\")","v":""},{"$f":"IFERROR(INDEX(Homework[],SMALL(IF(Dates=F$8,ROW(Dates)),ROW(4:4))-TableRowStart,4),\"\")","v":""},{"$f":"IFERROR(INDEX(Homework[],SMALL(IF(Dates=G$8,ROW(Dates)),ROW(4:4))-TableRowStart,4),\"\")","v":""},{"$f":"IFERROR(INDEX(Homework[],SMALL(IF(Dates=H$8,ROW(Dates)),ROW(4:4))-TableRowStart,4),\"\")","v":""}]
[null,{"$f":"IFERROR(INDEX(calendar,ndx+1,1),\"\")","v":"2017-10-08"},{"$f":"IFERROR(INDEX(calendar,ndx+1,2),\"\")","v":"2017-10-09"},{"$f":"IFERROR(INDEX(calendar,ndx+1,3),\"\")","v":"2017-10-10"},{"$f":"IFERROR(INDEX(calendar,ndx+1,4),\"\")","v":"2017-10-11"},{"$f":"IFERROR(INDEX(calendar,ndx+1,5),\"\")","v":"2017-10-12"},{"$f":"IFERROR(INDEX(calendar,ndx+1,6),\"\")","v":"2017-10-13"},{"$f":"IFERROR(INDEX(calendar,ndx+1,7),\"\")","v":"2017-10-14"}]
[null,{"$f":"IFERROR(INDEX(Homework[],SMALL(IF(Dates=B$13,ROW(Dates)),ROW(1:1))-TableRowStart,4),\"\")","v":""},{"$f":"IFERROR(INDEX(Homework[],SMALL(IF(Dates=C$13,ROW(Dates)),ROW(1:1))-TableRowStart,4),\"\")","v":""},{"$f":"IFERROR(INDEX(Homework[],SMALL(IF(Dates=D$13,ROW(Dates)),ROW(1:1))-TableRowStart,4),\"\")","v":""},{"$f":"IFERROR(INDEX(Homework[],SMALL(IF(Dates=E$13,ROW(Dates)),ROW(1:1))-TableRowStart,4),\"\")","v":""},{"$f":"IFERROR(INDEX(Homework[],SMALL(IF(Dates=F$13,ROW(Dates)),ROW(1:1))-TableRowStart,4),\"\")","v":""},{"$f":"IFERROR(INDEX(Homework[],SMALL(IF(Dates=G$13,ROW(Dates)),ROW(1:1))-TableRowStart,4),\"\")","v":"smith,m: 123"},{"$f":"IFERROR(INDEX(Homework[],SMALL(IF(Dates=H$13,ROW(Dates)),ROW(1:1))-TableRowStart,4),\"\")","v":""}]
[null,{"$f":"IFERROR(INDEX(Homework[],SMALL(IF(Dates=B$13,ROW(Dates)),ROW(2:2))-TableRowStart,4),\"\")","v":""},{"$f":"IFERROR(INDEX(Homework[],SMALL(IF(Dates=C$13,ROW(Dates)),ROW(2:2))-TableRowStart,4),\"\")","v":""},{"$f":"IFERROR(INDEX(Homework[],SMALL(IF(Dates=D$13,ROW(Dates)),ROW(2:2))-TableRowStart,4),\"\")","v":""},{"$f":"IFERROR(INDEX(Homework[],SMALL(IF(Dates=E$13,ROW(Dates)),ROW(2:2))-TableRowStart,4),\"\")","v":""},{"$f":"IFERROR(INDEX(Homework[],SMALL(IF(Dates=F$13,ROW(Dates)),ROW(2:2))-TableRowStart,4),\"\")","v":""},{"$f":"IFERROR(INDEX(Homework[],SMALL(IF(Dates=G$13,ROW(Dates)),ROW(2:2))-TableRowStart,4),\"\")","v":""},{"$f":"IFERROR(INDEX(Homework[],SMALL(IF(Dates=H$13,ROW(Dates)),ROW(2:2))-TableRowStart,4),\"\")","v":""}]
[null,{"$f":"IFERROR(INDEX(Homework[],SMALL(IF(Dates=B$13,ROW(Dates)),ROW(3:3))-TableRowStart,4),\"\")","v":""},{"$f":"IFERROR(INDEX(Homework[],SMALL(IF(Dates=C$13,ROW(Dates)),ROW(3:3))-TableRowStart,4),\"\")","v":""},{"$f":"IFERROR(INDEX(Homework[],SMALL(IF(Dates=D$13,ROW(Dates)),ROW(3:3))-TableRowStart,4),\"\")","v":""},{"$f":"IFERROR(INDEX(Homework[],SMALL(IF(Dates=E$13,ROW(Dates)),ROW(3:3))-TableRowStart,4),\"\")","v":""},{"$f":"IFERROR(INDEX(Homework[],SMALL(IF(Dates=F$13,ROW(Dates)),ROW(3:3))-TableRowStart,4),\"\")","v":""},{"$f":"IFERROR(INDEX(Homework[],SMALL(IF(Dates=G$13,ROW(Dates)),ROW(3:3))-TableRowStart,4),\"\")","v":""},{"$f":"IFERROR(INDEX(Homework[],SMALL(IF(Dates=H$13,ROW(Dates)),ROW(3:3))-TableRowStart,4),\"\")","v":""}]
[null,{"$f":"IFERROR(INDEX(Homework[],SMALL(IF(Dates=B$13,ROW(Dates)),ROW(4:4))-TableRowStart,4),\"\")","v":""},{"$f":"IFERROR(INDEX(Homework[],SMALL(IF(Dates=C$13,ROW(Dates)),ROW(4:4))-TableRowStart,4),\"\")","v":""},{"$f":"IFERROR(INDEX(Homework[],SMALL(IF(Dates=D$13,ROW(Dates)),ROW(4:4))-TableRowStart,4),\"\")","v":""},{"$f":"IFERROR(INDEX(Homework[],SMALL(IF(Dates=E$13,ROW(Dates)),ROW(4:4))-TableRowStart,4),\"\")","v":""},{"$f":"IFERROR(INDEX(Homework[],SMALL(IF(Dates=F$13,ROW(Dates)),ROW(4:4))-TableRowStart,4),\"\")","v":""},{"$f":"IFERROR(INDEX(Homework[],SMALL(IF(Dates=G$13,ROW(Dates)),ROW(4:4))-TableRowStart,4),\"\")","v":""},{"$f":"IFERROR(INDEX(Homework[],SMALL(IF(Dates=H$13,ROW(Dates)),ROW(4:4))-TableRowStart,4),\"\")","v":""}]
[null,{"$f":"IFERROR(INDEX(calendar,ndx+2,1),\"\")","v":"2017-10-15"},{"$f":"IFERROR(INDEX(calendar,ndx+2,2),\"\")","v":"2017-10-16"},{"$f":"IFERROR(INDEX(calendar,ndx+2,3),\"\")","v":"2017-10-17"},{"$f":"IFERROR(INDEX(calendar,ndx+2,4),\"\")","v":"2017-10-18"},{"$f":"IFERROR(INDEX(calendar,ndx+2,5),\"\")","v":"2017-10-19"},{"$f":"IFERROR(INDEX(calendar,ndx+2,6),\"\")","v":"2017-10-20"},{"$f":"IFERROR(INDEX(calendar,ndx+2,7),\"\")","v":"2017-10-21"}]
[null,{"$f":"IFERROR(INDEX(Homework[],SMALL(IF(Dates=B$18,ROW(Dates)),ROW(1:1))-TableRowStart,4),\"\")","v":"smith,b: 111"},{"$f":"IFERROR(INDEX(Homework[],SMALL(IF(Dates=C$18,ROW(Dates)),ROW(1:1))-TableRowStart,4),\"\")","v":""},{"$f":"IFERROR(INDEX(Homework[],SMALL(IF(Dates=D$18,ROW(Dates)),ROW(1:1))-TableRowStart,4),\"\")","v":"smith,d: 1549"},{"$f":"IFERROR(INDEX(Homework[],SMALL(IF(Dates=E$18,ROW(Dates)),ROW(1:1))-TableRowStart,4),\"\")","v":""},{"$f":"IFERROR(INDEX(Homework[],SMALL(IF(Dates=F$18,ROW(Dates)),ROW(1:1))-TableRowStart,4),\"\")","v":""},{"$f":"IFERROR(INDEX(Homework[],SMALL(IF(Dates=G$18,ROW(Dates)),ROW(1:1))-TableRowStart,4),\"\")","v":""},{"$f":"IFERROR(INDEX(Homework[],SMALL(IF(Dates=H$18,ROW(Dates)),ROW(1:1))-TableRowStart,4),\"\")","v":""}]
[null,{"$f":"IFERROR(INDEX(Homework[],SMALL(IF(Dates=B$18,ROW(Dates)),ROW(2:2))-TableRowStart,4),\"\")","v":""},{"$f":"IFERROR(INDEX(Homework[],SMALL(IF(Dates=C$18,ROW(Dates)),ROW(2:2))-TableRowStart,4),\"\")","v":""},{"$f":"IFERROR(INDEX(Homework[],SMALL(IF(Dates=D$18,ROW(Dates)),ROW(2:2))-TableRowStart,4),\"\")","v":""},{"$f":"IFERROR(INDEX(Homework[],SMALL(IF(Dates=E$18,ROW(Dates)),ROW(2:2))-TableRowStart,4),\"\")","v":""},{"$f":"IFERROR(INDEX(Homework[],SMALL(IF(Dates=F$18,ROW(Dates)),ROW(2:2))-TableRowStart,4),\"\")","v":""},{"$f":"IFERROR(INDEX(Homework[],SMALL(IF(Dates=G$18,ROW(Dates)),ROW(2:2))-TableRowStart,4),\"\")","v":""},{"$f":"IFERROR(INDEX(Homework[],SMALL(IF(Dates=H$18,ROW(Dates)),ROW(2:2))-TableRowStart,4),\"\")","v":""}]
[null,{"$f":"IFERROR(INDEX(Homework[],SMALL(IF(Dates=B$18,ROW(Dates)),ROW(3:3))-TableRowStart,4),\"\")","v":""},{"$f":"IFERROR(INDEX(Homework[],SMALL(IF(Dates=C$18,ROW(Dates)),ROW(3:3))-TableRowStart,4),\"\")","v":""},{"$f":"IFERROR(INDEX(Homework[],SMALL(IF(Dates=D$18,ROW(Dates)),ROW(3:3))-TableRowStart,4),\"\")","v":""},{"$f":"IFERROR(INDEX(Homework[],SMALL(IF(Dates=E$18,ROW(Dates)),ROW(3:3))-TableRowStart,4),\"\")","v":""},{"$f":"IFERROR(INDEX(Homework[],SMALL(IF(Dates=F$18,ROW(Dates)),ROW(3:3))-TableRowStart,4),\"\")","v":""},{"$f":"IFERROR(INDEX(Homework[],SMALL(IF(Dates=G$18,ROW(Dates)),ROW(3:3))-TableRowStart,4),\"\")","v":""},{"$f":"IFERROR(INDEX(Homework[],SMALL(IF(Dates=H$18,ROW(Dates)),ROW(3:3))-TableRowStart,4),\"\")","v":""}]
[null,{"$f":"IFERROR(INDEX(Homework[],SMALL(IF(Dates=B$18,ROW(Dates)),ROW(4:4))-TableRowStart,4),\"\")","v":""},{"$f":"IFERROR(INDEX(Homework[],SMALL(IF(Dates=C$18,ROW(Dates)),ROW(4:4))-TableRowStart,4),\"\")","v":""},{"$f":"IFERROR(INDEX(Homework[],SMALL(IF(Dates=D$18,ROW(Dates)),ROW(4:4))-TableRowStart,4),\"\")","v":""},{"$f":"IFERROR(INDEX(Homework[],SMALL(IF(Dates=E$18,ROW(Dates)),ROW(4:4))-TableRowStart,4),\"\")","v":""},{"$f":"IFERROR(INDEX(Homework[],SMALL(IF(Dates=F$18,ROW(Dates)),ROW(4:4))-TableRowStart,4),\"\")","v":""},{"$f":"IFERROR(INDEX(Homework[],SMALL(IF(Dates=G$18,ROW(Dates)),ROW(4:4))-TableRowStart,4),\"\")","v":""},{"$f":"IFERROR(INDEX(Homework[],SMALL(IF(Dates=H$18,ROW(Dates)),ROW(4:4))-TableRowStart,4),\"\")","v":""}]
[null,{"$f":"IFERROR(INDEX(calendar,ndx+3,1),\"\")","v":"2017-10-22"},{"$f":"IFERROR(INDEX(calendar,ndx+3,2),\"\")","v":"2017-10-23"},{"$f":"IFERROR(INDEX(calendar,ndx+3,3),\"\")","v":"2017-10-24"},{"$f":"IFERROR(INDEX(calendar,ndx+3,4),\"\")","v":"2017-10-25"},{"$f":"IFERROR(INDEX(calendar,ndx+3,5),\"\")","v":"2017-10-26"},{"$f":"IFERROR(INDEX(calendar,ndx+3,6),\"\")","v":"2017-10-27"},{"$f":"IFERROR(INDEX(calendar,ndx+3,7),\"\")","v":"2017-10-28"}]
[null,{"$f":"IFERROR(INDEX(Homework[],SMALL(IF(Dates=B$23,ROW(Dates)),ROW(1:1))-TableRowStart,4),\"\")","v":""},{"$f":"IFERROR(INDEX(Homework[],SMALL(IF(Dates=C$23,ROW(Dates)),ROW(1:1))-TableRowStart,4),\"\")","v":""},{"$f":"IFERROR(INDEX(Homework[],SMALL(IF(Dates=D$23,ROW(Dates)),ROW(1:1))-TableRowStart,4),\"\")","v":""},{"$f":"IFERROR(INDEX(Homework[],SMALL(IF(Dates=E$23,ROW(Dates)),ROW(1:1))-TableRowStart,4),\"\")","v":""},{"$f":"IFERROR(INDEX(Homework[],SMALL(IF(Dates=F$23,ROW(Dates)),ROW(1:1))-TableRowStart,4),\"\")","v":""},{"$f":"IFERROR(INDEX(Homework[],SMALL(IF(Dates=G$23,ROW(Dates)),ROW(1:1))-TableRowStart,4),\"\")","v":""},{"$f":"IFERROR(INDEX(Homework[],SMALL(IF(Dates=H$23,ROW(Dates)),ROW(1:1))-TableRowStart,4),\"\")","v":""}]
[null,{"$f":"IFERROR(INDEX(Homework[],SMALL(IF(Dates=B$23,ROW(Dates)),ROW(2:2))-TableRowStart,4),\"\")","v":""},{"$f":"IFERROR(INDEX(Homework[],SMALL(IF(Dates=C$23,ROW(Dates)),ROW(2:2))-TableRowStart,4),\"\")","v":""},{"$f":"IFERROR(INDEX(Homework[],SMALL(IF(Dates=D$23,ROW(Dates)),ROW(2:2))-TableRowStart,4),\"\")","v":""},{"$f":"IFERROR(INDEX(Homework[],SMALL(IF(Dates=E$23,ROW(Dates)),ROW(2:2))-TableRowStart,4),\"\")","v":""},{"$f":"IFERROR(INDEX(Homework[],SMALL(IF(Dates=F$23,ROW(Dates)),ROW(2:2))-TableRowStart,4),\"\")","v":""},{"$f":"IFERROR(INDEX(Homework[],SMALL(IF(Dates=G$23,ROW(Dates)),ROW(2:2))-TableRowStart,4),\"\")","v":""},{"$f":"IFERROR(INDEX(Homework[],SMALL(IF(Dates=H$23,ROW(Dates)),ROW(2:2))-TableRowStart,4),\"\")","v":""}]
[null,{"$f":"IFERROR(INDEX(Homework[],SMALL(IF(Dates=B$23,ROW(Dates)),ROW(3:3))-TableRowStart,4),\"\")","v":""},{"$f":"IFERROR(INDEX(Homework[],SMALL(IF(Dates=C$23,ROW(Dates)),ROW(3:3))-TableRowStart,4),\"\")","v":""},{"$f":"IFERROR(INDEX(Homework[],SMALL(IF(Dates=D$23,ROW(Dates)),ROW(3:3))-TableRowStart,4),\"\")","v":""},{"$f":"IFERROR(INDEX(Homework[],SMALL(IF(Dates=E$23,ROW(Dates)),ROW(3:3))-TableRowStart,4),\"\")","v":""},{"$f":"IFERROR(INDEX(Homework[],SMALL(IF(Dates=F$23,ROW(Dates)),ROW(3:3))-TableRowStart,4),\"\")","v":""},{"$f":"IFERROR(INDEX(Homework[],SMALL(IF(Dates=G$23,ROW(Dates)),ROW(3:3))-TableRowStart,4),\"\")","v":""},{"$f":"IFERROR(INDEX(Homework[],SMALL(IF(Dates=H$23,ROW(Dates)),ROW(3:3))-TableRowStart,4),\"\")","v":""}]
[null,{"$f":"IFERROR(INDEX(Homework[],SMALL(IF(Dates=B$23,ROW(Dates)),ROW(4:4))-TableRowStart,4),\"\")","v":""},{"$f":"IFERROR(INDEX(Homework[],SMALL(IF(Dates=C$23,ROW(Dates)),ROW(4:4))-TableRowStart,4),\"\")","v":""},{"$f":"IFERROR(INDEX(Homework[],SMALL(IF(Dates=D$23,ROW(Dates)),ROW(4:4))-TableRowStart,4),\"\")","v":""},{"$f":"IFERROR(INDEX(Homework[],SMALL(IF(Dates=E$23,ROW(Dates)),ROW(4:4))-TableRowStart,4),\"\")","v":""},{"$f":"IFERROR(INDEX(Homework[],SMALL(IF(Dates=F$23,ROW(Dates)),ROW(4:4))-TableRowStart,4),\"\")","v":""},{"$f":"IFERROR(INDEX(Homework[],SMALL(IF(Dates=G$23,ROW(Dates)),ROW(4:4))-TableRowStart,4),\"\")","v":""},{"$f":"IFERROR(INDEX(Homework[],SMALL(IF(Dates=H$23,ROW(Dates)),ROW(4:4))-TableRowStart,4),\"\")","v":""}]
[null,{"$f":"IFERROR(INDEX(calendar,ndx+4,1),\"\")","v":"2017-10-29"},{"$f":"IFERROR(INDEX(calendar,ndx+4,2),\"\")","v":"2017-10-30"},{"$f":"IFERROR(INDEX(calendar,ndx+4,3),\"\")","v":"2017-10-31"},{"$f":"IFERROR(INDEX(calendar,ndx+4,4),\"\")","v":"2017-11-01"},{"$f":"IFERROR(INDEX(calendar,ndx+4,5),\"\")","v":"2017-11-02"},{"$f":"IFERROR(INDEX(calendar,ndx+4,6),\"\")","v":"2017-11-03"},{"$f":"IFERROR(INDEX(calendar,ndx+4,7),\"\")","v":"2017-11-04"}]
[null,{"$f":"IFERROR(INDEX(Homework[],SMALL(IF(Dates=B$28,ROW(Dates)),ROW(1:1))-TableRowStart,4),\"\")","v":""},{"$f":"IFERROR(INDEX(Homework[],SMALL(IF(Dates=C$28,ROW(Dates)),ROW(1:1))-TableRowStart,4),\"\")","v":""},{"$f":"IFERROR(INDEX(Homework[],SMALL(IF(Dates=D$28,ROW(Dates)),ROW(1:1))-TableRowStart,4),\"\")","v":""},{"$f":"IFERROR(INDEX(Homework[],SMALL(IF(Dates=E$28,ROW(Dates)),ROW(1:1))-TableRowStart,4),\"\")","v":""},{"$f":"IFERROR(INDEX(Homework[],SMALL(IF(Dates=F$28,ROW(Dates)),ROW(1:1))-TableRowStart,4),\"\")","v":""},{"$f":"IFERROR(INDEX(Homework[],SMALL(IF(Dates=G$28,ROW(Dates)),ROW(1:1))-TableRowStart,4),\"\")","v":""},{"$f":"IFERROR(INDEX(Homework[],SMALL(IF(Dates=H$28,ROW(Dates)),ROW(1:1))-TableRowStart,4),\"\")","v":""}]
[null,{"$f":"IFERROR(INDEX(Homework[],SMALL(IF(Dates=B$28,ROW(Dates)),ROW(2:2))-TableRowStart,4),\"\")","v":""},{"$f":"IFERROR(INDEX(Homework[],SMALL(IF(Dates=C$28,ROW(Dates)),ROW(2:2))-TableRowStart,4),\"\")","v":""},{"$f":"IFERROR(INDEX(Homework[],SMALL(IF(Dates=D$28,ROW(Dates)),ROW(2:2))-TableRowStart,4),\"\")","v":""},{"$f":"IFERROR(INDEX(Homework[],SMALL(IF(Dates=E$28,ROW(Dates)),ROW(2:2))-TableRowStart,4),\"\")","v":""},{"$f":"IFERROR(INDEX(Homework[],SMALL(IF(Dates=F$28,ROW(Dates)),ROW(2:2))-TableRowStart,4),\"\")","v":""},{"$f":"IFERROR(INDEX(Homework[],SMALL(IF(Dates=G$28,ROW(Dates)),ROW(2:2))-TableRowStart,4),\"\")","v":""},{"$f":"IFERROR(INDEX(Homework[],SMALL(IF(Dates=H$28,ROW(Dates)),ROW(2:2))-TableRowStart,4),\"\")","v":""}]
[null,{"$f":"IFERROR(INDEX(Homework[],SMALL(IF(Dates=B$28,ROW(Dates)),ROW(3:3))-TableRowStart,4),\"\")","v":""},{"$f":"IFERROR(INDEX(Homework[],SMALL(IF(Dates=C$28,ROW(Dates)),ROW(3:3))-TableRowStart,4),\"\")","v":""},{"$f":"IFERROR(INDEX(Homework[],SMALL(IF(Dates=D$28,ROW(Dates)),ROW(3:3))-TableRowStart,4),\"\")","v":""},{"$f":"IFERROR(INDEX(Homework[],SMALL(IF(Dates=E$28,ROW(Dates)),ROW(3:3))-TableRowStart,4),\"\")","v":""},{"$f":"IFERROR(INDEX(Homework[],SMALL(IF(Dates=F$28,ROW(Dates)),ROW(3:3))-TableRowStart,4),\"\")","v":""},{"$f":"IFERROR(INDEX(Homework[],SMALL(IF(Dates=G$28,ROW(Dates)),ROW(3:3))-TableRowStart,4),\"\")","v":""},{"$f":"IFERROR(INDEX(Homework[],SMALL(IF(Dates=H$28,ROW(Dates)),ROW(3:3))-TableRowStart,4),\"\")","v":""}]
[null,{"$f":"IFERROR(INDEX(Homework[],SMALL(IF(Dates=B$28,ROW(Dates)),ROW(4:4))-TableRowStart,4),\"\")","v":""},{"$f":"IFERROR(INDEX(Homework[],SMALL(IF(Dates=C$28,ROW(Dates)),ROW(4:4))-TableRowStart,4),\"\")","v":""},{"$f":"IFERROR(INDEX(Homework[],SMALL(IF(Dates=D$28,ROW(Dates)),ROW(4:4))-TableRowStart,4),\"\")","v":""},{"$f":"IFERROR(INDEX(Homework[],SMALL(IF(Dates=E$28,ROW(Dates)),ROW(4:4))-TableRowStart,4),\"\")","v":""},{"$f":"IFERROR(INDEX(Homework[],SMALL(IF(Dates=F$28,ROW(Dates)),ROW(4:4))-TableRowStart,4),\"\")","v":""},{"$f":"IFERROR(INDEX(Homework[],SMALL(IF(Dates=G$28,ROW(Dates)),ROW(4:4))-TableRowStart,4),\"\")","v":""},{"$f":"IFERROR(INDEX(Homework[],SMALL(IF(Dates=H$28,ROW(Dates)),ROW(4:4))-TableRowStart,4),\"\")","v":""}]
[null,{"$f":"IFERROR(INDEX(calendar,ndx+5,1),\"\")","v":"2017-11-05"},{"$f":"IFERROR(INDEX(calendar,ndx+5,2),\"\")","v":"2017-11-06"},{"$f":"IFERROR(INDEX(calendar,ndx+5,3),\"\")","v":"2017-11-07"},{"$f":"IFERROR(INDEX(calendar,ndx+5,4),\"\")","v":"2017-11-08"},{"$f":"IFERROR(INDEX(calendar,ndx+5,5),\"\")","v":"2017-11-09"},{"$f":"IFERROR(INDEX(calendar,ndx+5,6),\"\")","v":"2017-11-10"},{"$f":"IFERROR(INDEX(calendar,ndx+5,7),\"\")","v":"2017-11-11"}]
[null,{"$f":"IFERROR(INDEX(Homework[],SMALL(IF(Dates=B$33,ROW(Dates)),ROW(1:1))-TableRowStart,4),\"\")","v":"smith,s: 12346"},{"$f":"IFERROR(INDEX(Homework[],SMALL(IF(Dates=C$33,ROW(Dates)),ROW(1:1))-TableRowStart,4),\"\")","v":""},{"$f":"IFERROR(INDEX(Homework[],SMALL(IF(Dates=D$33,ROW(Dates)),ROW(1:1))-TableRowStart,4),\"\")","v":""},{"$f":"IFERROR(INDEX(Homework[],SMALL(IF(Dates=E$33,ROW(Dates)),ROW(1:1))-TableRowStart,4),\"\")","v":""},{"$f":"IFERROR(INDEX(Homework[],SMALL(IF(Dates=F$33,ROW(Dates)),ROW(1:1))-TableRowStart,4),\"\")","v":""},{"$f":"IFERROR(INDEX(Homework[],SMALL(IF(Dates=G$33,ROW(Dates)),ROW(1:1))-TableRowStart,4),\"\")","v":""},{"$f":"IFERROR(INDEX(Homework[],SMALL(IF(Dates=H$33,ROW(Dates)),ROW(1:1))-TableRowStart,4),\"\")","v":""}]
[null,{"$f":"IFERROR(INDEX(Homework[],SMALL(IF(Dates=B$33,ROW(Dates)),ROW(2:2))-TableRowStart,4),\"\")","v":""},{"$f":"IFERROR(INDEX(Homework[],SMALL(IF(Dates=C$33,ROW(Dates)),ROW(2:2))-TableRowStart,4),\"\")","v":""},{"$f":"IFERROR(INDEX(Homework[],SMALL(IF(Dates=D$33,ROW(Dates)),ROW(2:2))-TableRowStart,4),\"\")","v":""},{"$f":"IFERROR(INDEX(Homework[],SMALL(IF(Dates=E$33,ROW(Dates)),ROW(2:2))-TableRowStart,4),\"\")","v":""},{"$f":"IFERROR(INDEX(Homework[],SMALL(IF(Dates=F$33,ROW(Dates)),ROW(2:2))-TableRowStart,4),\"\")","v":""},{"$f":"IFERROR(INDEX(Homework[],SMALL(IF(Dates=G$33,ROW(Dates)),ROW(2:2))-TableRowStart,4),\"\")","v":""},{"$f":"IFERROR(INDEX(Homework[],SMALL(IF(Dates=H$33,ROW(Dates)),ROW(2:2))-TableRowStart,4),\"\")","v":""}]
[null,{"$f":"IFERROR(INDEX(Homework[],SMALL(IF(Dates=B$33,ROW(Dates)),ROW(3:3))-TableRowStart,4),\"\")","v":""},{"$f":"IFERROR(INDEX(Homework[],SMALL(IF(Dates=C$33,ROW(Dates)),ROW(3:3))-TableRowStart,4),\"\")","v":""},{"$f":"IFERROR(INDEX(Homework[],SMALL(IF(Dates=D$33,ROW(Dates)),ROW(3:3))-TableRowStart,4),\"\")","v":""},{"$f":"IFERROR(INDEX(Homework[],SMALL(IF(Dates=E$33,ROW(Dates)),ROW(3:3))-TableRowStart,4),\"\")","v":""},{"$f":"IFERROR(INDEX(Homework[],SMALL(IF(Dates=F$33,ROW(Dates)),ROW(3:3))-TableRowStart,4),\"\")","v":""},{"$f":"IFERROR(INDEX(Homework[],SMALL(IF(Dates=G$33,ROW(Dates)),ROW(3:3))-TableRowStart,4),\"\")","v":""},{"$f":"IFERROR(INDEX(Homework[],SMALL(IF(Dates=H$33,ROW(Dates)),ROW(3:3))-TableRowStart,4),\"\")","v":""}]
[null,{"$f":"IFERROR(INDEX(Homework[],SMALL(IF(Dates=B$33,ROW(Dates)),ROW(4:4))-TableRowStart,4),\"\")","v":""},{"$f":"IFERROR(INDEX(Homework[],SMALL(IF(Dates=C$33,ROW(Dates)),ROW(4:4))-TableRowStart,4),\"\")","v":""},{"$f":"IFERROR(INDEX(Homework[],SMALL(IF(Dates=D$33,ROW(Dates)),ROW(4:4))-TableRowStart,4),\"\")","v":""},{"$f":"IFERROR(INDEX(Homework[],SMALL(IF(Dates=E$33,ROW(Dates)),ROW(4:4))-TableRowStart,4),\"\")","v":""},{"$f":"IFERROR(INDEX(Homework[],SMALL(IF(Dates=F$33,ROW(Dates)),ROW(4:4))-TableRowStart,4),\"\")","v":""},{"$f":"IFERROR(INDEX(Homework[],SMALL(IF(Dates=G$33,ROW(Dates)),ROW(4:4))-TableRowStart,4),\"\")","v":""},{"$f":"IFERROR(INDEX(Homework[],SMALL(IF(Dates=H$33,ROW(Dates)),ROW(4:4))-TableRowStart,4),\"\")","v":""}]

{"sheet":"Ongoing","index":1,"n_rows":36,"n_cols":21,"rows_kept":36,"cut":false,"hidden":false,"merged":[[3,2,3,9],[1,2,1,6],[2,2,2,9],[0,2,0,11],[5,9,6,9],[5,11,6,12],[6,5,7,5],[0,12,0,22],[1,12,1,17],[2,12,2,20],[3,12,3,20],[4,2,4,9],[4,12,4,19]]}
[null,null,"NICE Project- Northern Tier Initiative for Hep C Elimination",null,null,null,null,null,null,null,null,null,"NICE Project- Northern Tier Initiative for Hep C Elimination"]
[null,null,"Hepatitis C Patient Panel List",null,null,null,null,null,null,null,null,null,"Hepatitis C Patient Panel List"]
[null,null,"Developed by: LT Neelam 'Nelly' Gazarian, PharmD. QNBMHCF, Belcourt ND",null,null,null,null,null,null,null,null,null,"Developed by: LT Neelam 'Nelly' Gazarian, PharmD. QNBMHCF, Belcourt ND"]
[null,null,"                              with LCDR Jonathan Owen, PharmD.",null,null,null,null,null,null,null,null,null,"                              with LCDR Jonathan Owen, PharmD."]
[null,null,"email: neelam.gazarian@ihs.gov, jonathan.owen@ihs.gov",null,null,null,null,null,null,null,null,null,"email: neelam.gazarian@ihs.gov, jonathan.owen@ihs.gov"]
[null,null,null,null,null,null,null,null,null,">0.7 APRI likely fibrosis or cirrhosis",null,">3.25 likely advanced fibrosis, <1.45 unlikely advanced fibrosis"]
[null,null,null,null,null,"Date for Next Appt"]
["Patient Name","ID","DOB","Patient Status","Age in 2017",null,"AST/SGOT","ALT SGPT","Platelets","APRI","APRI Stage Calc","FIB 4","FIB 4 Stage Calc","Viral Load","Genotype","Labs ordered","Notes","Contact Info","ETR","SVR","Last Call Placed on"]
["Smith,Jane",12345,"1986-03-03","Pending Appt need labs",{"$f":"DATEDIF(C9,NOW(),\"Y\")","v":31},"2017-10-02",140,180,250,{"$f":"((G9/40)/I9)*100","v":1.4000000000000001},{"$f":"IF(J9>0.7,3,1)","v":3},{"$f":"((E9*G9)/(I9*SQRT(H9)))","v":1.2939380029798782},{"$f":"IF(L9>1.45,3,1)","v":1},3800000,"1a","Sheet1!A1","HARVONI X 8 WEEKS, MEDICAID APPROVED. Labs 10/31",null,"YES"]
["smith,s",12346,"1961-01-01","Already started treatment",56,"2017-11-05",48,48,299,0.40133779264214042,{"$f":"IF(J10>0.7,3,1)","v":1},1.2975899026602962,1,4100000,"1a or 1b","Sheet2!E2","F0, Expansion. ECHO 10/4/17"]
["doe,j",12347,"1981-01-02","May need Beh Health Consult",36,"2017-10-07",42,60,348,0.30172413793103448,1,0.56091482945072935,1,200,"unknown","Sheet3!A1","Medicaid, F0 try PAP, self clearer? Labs on 9/14/17."]
["doe,john",12348,"1977-01-03","Pending Appt need labs",40,"2017-10-02",28,36,297,0.23569023569023567,1,0.62850729517396187,1,18000000,"2b","Sheet4!A1","Expansion, pt will come in for labs today"]
["smith,m",123,"1987-01-04","Ready to present to ECHO",30,"2017-10-13",30,41,239,0.31380753138075312,1,0.58810203221650825,1,200,null,"Sheet5!A1","Expansion, Manual genotype to NS5A when comes in. Called 9/7"]
["smith,a",1234,"2015-01-05","Pending Appt need labs",2,"2017-11-14",484,624,223,5.4260089686098656,3,0.17377135973466856,1,370000,"1a or 1b","Sheet6!A1","Medicaid, depression, no appt in past 2 years"]
["smith,b",111,"1933-01-06","Purple Medication Approval Pending",84,"2017-10-15",96,104,169,1.4201183431952662,3,4.6789364312257868,3,null,"1a or 1b","Sheet7!A1"]
["smith,c",1112,"1945-01-07","Ready to present to ECHO",72,"2017-11-16",50,70,333.5,0.3748125937031484,1,1.2902017971825539,1,430000,"1a","Sheet8!A1","echo 9/20"]
["smith,d",1549,"1965-01-08","Already started treatment",52,"2017-10-17",34,31,195.6,0.43456032719836402,1,1.623426247358579,3,2600,1,"Sheet9!A1","Medicaid, will try PAP bring in income docs, need hcv viral load in Nov"]
["duck,donald",1456,"2017-02-08","Medication Approval Pending",0,"2017-09-26",55,41,277,0.49638989169675091,1,0,1,920000,"1a or 1 b","Sheet10!A1"]
["Mouse,Mickey",78946,"1955-08-15","Already started treatment",62,"2017-08-01",38,42,177,0.53672316384180785,1,2.0538909181394831,3,9200000,"2b","Sheet11!A1","2b EPCLUSA order from Mckesson, 12 weeks"]
["mouse,Minnie",4568,"1999-08-08","Pending Appt need labs",18,null,105,133,212,1.2382075471698113,3,0.77303671811348429,1,null,null,"Sheet12!A1","Expansion, waiting pt to call back need to enter all labs"]
["Pan,peter",45566,"1966-01-12","Already started treatment",51,null,43,56,345,0.31159420289855072,1,0.84942594712166186,1,4400000,1,"Sheet13!A1","1a or 1b"]
["Poppins,Mary",4848,"1988-05-09","Completed treatment, pending SVR labs",29,null,47,67,211,0.55687203791469198,1,0.78917987041537452,1,null,{"$f":"IF(#REF!>1.45, 3, 1)","v":{"$error":"#REF!"}},"Sheet14!A1","Harvoni X 8 WEEKS, PAP, called on 9/11 no vmail to get ETR labs"]
["Wonka,Willy",89621,"1944-05-09","Cannot contact",73,null,null,37,null,{"$error":"#DIV/0!"},{"$error":"#DIV/0!"},{"$error":"#DIV/0!"},{"$error":"#DIV/0!"},null,{"$f":"IF(#REF!>1.45, 3, 1)","v":{"$error":"#REF!"}},"Sheet15!A1","no insurance, no pcp appt in past year. Unable to Contact"]
["Free,Willy",4576,"1992-03-08","May need Beh Health Consult",25,null,50,110,244,0.51229508196721307,1,0.48845419531024192,1,4000000,3,"Sheet16!A1","medicaid. Call in November. Need clean UDS"]
["doe,a",4562,"1985-05-09","Pending Appt need labs",32,null,88,216,314.5,0.69952305246422897,1,0.60923539265831383,1,3600,3,"Sheet17!A1","expansion,needs more labs, called on 9/7/17, left VM"]
["doe,b",78956,"1986-12-12","CURED",30,null,null,null,null,{"$error":"#DIV/0!"},{"$error":"#DIV/0!"},{"$error":"#DIV/0!"},{"$error":"#DIV/0!"},15000,3,"Sheet18!A1","no insurance, called in aug and sept cannot leave vmail"]
["doe,c",7778,"1955-01-18","Cannot contact",62,null,48,54,230,0.52173913043478259,1,1.7607926266963134,3,null,null,"Sheet19!A1","expansion,calle dpt and left a msg on 9/7, no labs done, needs screen?"]
["doe,d",98686,"1998-09-08","Ready to present to ECHO",19,null,129,116,78,4.1346153846153841,3,2.9175594478971418,3,120000,null,"Sheet20!A1","no insurance, labs entered pt coming in 9/7"]
["doe,e",8587,"1965-08-07","Medication Approval Pending",52,null,95,150,204,1.1642156862745099,3,1.9772025047955719,3,null,1,"Sheet21!A1","medicaid, will try PAP"]
["doe,f",78456,"1949-12-21","Ready to present to ECHO",67,null,96,90,268,0.89552238805970152,3,2.5298221281347035,3,null,null,"Sheet22!A1","Expansion. Spoke 9/7. Appt in 2 weeks. Watch for HCV load"]
["doe,g",32625,"1961-01-22","Pending Appt need labs",56,null,null,null,null,{"$error":"#DIV/0!"},{"$error":"#DIV/0!"},{"$error":"#DIV/0!"},{"$error":"#DIV/0!"},null,null,"Sheet23!A1","Expansion. Left VM"]
["smith,l",79856,"1988-01-26","Pending Appt need labs",29,null,384,269,250,3.84,3,2.7158956131288692,3,9700000,1,"Sheet24!A1","PART D. Called 9/7. Appt 10/18 Ness"]
["smith,z",42641,"1966-01-25","Red May need Beh Health Consult",51,null,null,null,null,{"$error":"#DIV/0!"},{"$error":"#DIV/0!"},{"$error":"#DIV/0!"},{"$error":"#DIV/0!"},null,null,"Sheet25!A1","Expansion. Meth intoxication"]
["smith,k",93325,"1988-05-05","Blue Already started treatment",29,null,91,81,166,1.3704819277108433,3,1.7663989290495314,3,null,null,"Sheet26!A1","Expansion"]
["Smith,Jane",7816,"1999-09-08","Cannot contact",18,null,34,39,337,0.25222551928783382,1,0.29079652857184962,1,null,1,"Sheet27!A1","Expansion. Meth"]
["Joe,Joe",null,null,"CURED",117,null,null,null,null,{"$f":"((G36/40)/I36)*100","v":{"$error":"#DIV/0!"}},{"$error":"#DIV/0!"},{"$f":"((E36*G36)/(I36*SQRT(H36)))","v":{"$error":"#DIV/0!"}},{"$error":"#DIV/0!"},null,null,"Sheet28!A1"]

{"sheet":"Patient Appointment List","index":2,"n_rows":301,"n_cols":8,"rows_kept":301,"cut":false,"hidden":true,"merged":[]}
[null,"To Appointment Calendar >>"]
[null,"Anticoagulation Appointments"]
[null,"Date","Patient Name","Chart","Notes2","Notes3","Notes4","Notes/Plan"]
[null,{"$f":"Ongoing!F9","v":"2017-10-02"},{"$f":"Ongoing!A9","v":"Smith,Jane"},{"$f":"Ongoing!B9","v":12345},{"$f":"CONCATENATE(Homework[[#This Row],[Patient Name]],\": \",Homework[[#This Row],[Chart]])","v":"Smith,Jane: 12345"},{"$f":"IF(ISBLANK(Homework[[#This Row],[Date]]),\"\",UPPER(TEXT(Homework[[#This Row],[Date]],\"ddd\")))","v":"MON"},{"$f":"IF(ISBLANK(Homework[[#This Row],[Date]]),\"\",UPPER(TEXT(Homework[[#This Row],[Date]],\"mmm\")))","v":"OCT"},"Last seen 3/3"]
[null,{"$f":"Ongoing!F10","v":"2017-11-05"},{"$f":"Ongoing!A10","v":"smith,s"},{"$f":"Ongoing!B10","v":12346},{"$f":"CONCATENATE(Homework[[#This Row],[Patient Name]],\": \",Homework[[#This Row],[Chart]])","v":"smith,s: 12346"},{"$f":"IF(ISBLANK(Homework[[#This Row],[Date]]),\"\",UPPER(TEXT(Homework[[#This Row],[Date]],\"ddd\")))","v":"SUN"},{"$f":"IF(ISBLANK(Homework[[#This Row],[Date]]),\"\",UPPER(TEXT(Homework[[#This Row],[Date]],\"mmm\")))","v":"NOV"},"Last seen 1/13"]
[null,{"$f":"Ongoing!F11","v":"2017-10-07"},{"$f":"Ongoing!A11","v":"doe,j"},{"$f":"Ongoing!B11","v":12347},{"$f":"CONCATENATE(Homework[[#This Row],[Patient Name]],\": \",Homework[[#This Row],[Chart]])","v":"doe,j: 12347"},{"$f":"IF(ISBLANK(Homework[[#This Row],[Date]]),\"\",UPPER(TEXT(Homework[[#This Row],[Date]],\"ddd\")))","v":"SAT"},{"$f":"IF(ISBLANK(Homework[[#This Row],[Date]]),\"\",UPPER(TEXT(Homework[[#This Row],[Date]],\"mmm\")))","v":"OCT"},"Last seen 3/10"]
[null,{"$f":"Ongoing!F12","v":"2017-10-02"},{"$f":"Ongoing!A12","v":"doe,john"},{"$f":"Ongoing!B12","v":12348},{"$f":"CONCATENATE(Homework[[#This Row],[Patient Name]],\": \",Homework[[#This Row],[Chart]])","v":"doe,john: 12348"},{"$f":"IF(ISBLANK(Homework[[#This Row],[Date]]),\"\",UPPER(TEXT(Homework[[#This Row],[Date]],\"ddd\")))","v":"MON"},{"$f":"IF(ISBLANK(Homework[[#This Row],[Date]]),\"\",UPPER(TEXT(Homework[[#This Row],[Date]],\"mmm\")))","v":"OCT"},"Last seen 1/20"]
[null,{"$f":"Ongoing!F13","v":"2017-10-13"},{"$f":"Ongoing!A13","v":"smith,m"},{"$f":"Ongoing!B13","v":123},{"$f":"CONCATENATE(Homework[[#This Row],[Patient Name]],\": \",Homework[[#This Row],[Chart]])","v":"smith,m: 123"},{"$f":"IF(ISBLANK(Homework[[#This Row],[Date]]),\"\",UPPER(TEXT(Homework[[#This Row],[Date]],\"ddd\")))","v":"FRI"},{"$f":"IF(ISBLANK(Homework[[#This Row],[Date]]),\"\",UPPER(TEXT(Homework[[#This Row],[Date]],\"mmm\")))","v":"OCT"},"Last seen 3/9"]
[null,{"$f":"Ongoing!F14","v":"2017-11-14"},{"$f":"Ongoing!A14","v":"smith,a"},{"$f":"Ongoing!B14","v":1234},{"$f":"CONCATENATE(Homework[[#This Row],[Patient Name]],\": \",Homework[[#This Row],[Chart]])","v":"smith,a: 1234"},{"$f":"IF(ISBLANK(Homework[[#This Row],[Date]]),\"\",UPPER(TEXT(Homework[[#This Row],[Date]],\"ddd\")))","v":"TUE"},{"$f":"IF(ISBLANK(Homework[[#This Row],[Date]]),\"\",UPPER(TEXT(Homework[[#This Row],[Date]],\"mmm\")))","v":"NOV"},"Last seen 3/6"]
[null,{"$f":"Ongoing!F15","v":"2017-10-15"},{"$f":"Ongoing!A15","v":"smith,b"},{"$f":"Ongoing!B15","v":111},{"$f":"CONCATENATE(Homework[[#This Row],[Patient Name]],\": \",Homework[[#This Row],[Chart]])","v":"smith,b: 111"},{"$f":"IF(ISBLANK(Homework[[#This Row],[Date]]),\"\",UPPER(TEXT(Homework[[#This Row],[Date]],\"ddd\")))","v":"SUN"},{"$f":"IF(ISBLANK(Homework[[#This Row],[Date]]),\"\",UPPER(TEXT(Homework[[#This Row],[Date]],\"mmm\")))","v":"OCT"}]
[null,{"$f":"Ongoing!F16","v":"2017-11-16"},{"$f":"Ongoing!A16","v":"smith,c"},{"$f":"Ongoing!B16","v":1112},{"$f":"CONCATENATE(Homework[[#This Row],[Patient Name]],\": \",Homework[[#This Row],[Chart]])","v":"smith,c: 1112"},{"$f":"IF(ISBLANK(Homework[[#This Row],[Date]]),\"\",UPPER(TEXT(Homework[[#This Row],[Date]],\"ddd\")))","v":"THU"},{"$f":"IF(ISBLANK(Homework[[#This Row],[Date]]),\"\",UPPER(TEXT(Homework[[#This Row],[Date]],\"mmm\")))","v":"NOV"},"Last seen 1/18"]
[null,{"$f":"Ongoing!F17","v":"2017-10-17"},{"$f":"Ongoing!A17","v":"smith,d"},{"$f":"Ongoing!B17","v":1549},{"$f":"CONCATENATE(Homework[[#This Row],[Patient Name]],\": \",Homework[[#This Row],[Chart]])","v":"smith,d: 1549"},{"$f":"IF(ISBLANK(Homework[[#This Row],[Date]]),\"\",UPPER(TEXT(Homework[[#This Row],[Date]],\"ddd\")))","v":"TUE"},{"$f":"IF(ISBLANK(Homework[[#This Row],[Date]]),\"\",UPPER(TEXT(Homework[[#This Row],[Date]],\"mmm\")))","v":"OCT"},"Last seen 2/24"]
[null,{"$f":"Ongoing!F18","v":"2017-09-26"},{"$f":"Ongoing!A18","v":"duck,donald"},{"$f":"Ongoing!B18","v":1456},{"$f":"CONCATENATE(Homework[[#This Row],[Patient Name]],\": \",Homework[[#This Row],[Chart]])","v":"duck,donald: 1456"},{"$f":"IF(ISBLANK(Homework[[#This Row],[Date]]),\"\",UPPER(TEXT(Homework[[#This Row],[Date]],\"ddd\")))","v":"TUE"},{"$f":"IF(ISBLANK(Homework[[#This Row],[Date]]),\"\",UPPER(TEXT(Homework[[#This Row],[Date]],\"mmm\")))","v":"SEP"},"Last seen 2/28"]
[null,{"$f":"Ongoing!F19","v":"2017-08-01"},{"$f":"Ongoing!A19","v":"Mouse,Mickey"},{"$f":"Ongoing!B19","v":78946},{"$f":"CONCATENATE(Homework[[#This Row],[Patient Name]],\": \",Homework[[#This Row],[Chart]])","v":"Mouse,Mickey: 78946"},{"$f":"IF(ISBLANK(Homework[[#This Row],[Date]]),\"\",UPPER(TEXT(Homework[[#This Row],[Date]],\"ddd\")))","v":"TUE"},{"$f":"IF(ISBLANK(Homework[[#This Row],[Date]]),\"\",UPPER(TEXT(Homework[[#This Row],[Date]],\"mmm\")))","v":"AUG"},"Last seen 3/24"]
[null,{"$f":"Ongoing!F20","v":"00:00:00"},{"$f":"Ongoing!A20","v":"mouse,Minnie"},{"$f":"Ongoing!B20","v":4568},{"$f":"CONCATENATE(Homework[[#This Row],[Patient Name]],\": \",Homework[[#This Row],[Chart]])","v":"mouse,Minnie: 4568"},{"$f":"IF(ISBLANK(Homework[[#This Row],[Date]]),\"\",UPPER(TEXT(Homework[[#This Row],[Date]],\"ddd\")))","v":"SAT"},{"$f":"IF(ISBLANK(Homework[[#This Row],[Date]]),\"\",UPPER(TEXT(Homework[[#This Row],[Date]],\"mmm\")))","v":"JAN"},"Last seen 2/22"]
[null,{"$f":"Ongoing!F21","v":"00:00:00"},{"$f":"Ongoing!A21","v":"Pan,peter"},{"$f":"Ongoing!B21","v":45566},{"$f":"CONCATENATE(Homework[[#This Row],[Patient Name]],\": \",Homework[[#This Row],[Chart]])","v":"Pan,peter: 45566"},{"$f":"IF(ISBLANK(Homework[[#This Row],[Date]]),\"\",UPPER(TEXT(Homework[[#This Row],[Date]],\"ddd\")))","v":"SAT"},{"$f":"IF(ISBLANK(Homework[[#This Row],[Date]]),\"\",UPPER(TEXT(Homework[[#This Row],[Date]],\"mmm\")))","v":"JAN"}]
[null,{"$f":"Ongoing!F22","v":"00:00:00"},{"$f":"Ongoing!A22","v":"Poppins,Mary"},{"$f":"Ongoing!B22","v":4848},{"$f":"CONCATENATE(Homework[[#This Row],[Patient Name]],\": \",Homework[[#This Row],[Chart]])","v":"Poppins,Mary: 4848"},{"$f":"IF(ISBLANK(Homework[[#This Row],[Date]]),\"\",UPPER(TEXT(Homework[[#This Row],[Date]],\"ddd\")))","v":"SAT"},{"$f":"IF(ISBLANK(Homework[[#This Row],[Date]]),\"\",UPPER(TEXT(Homework[[#This Row],[Date]],\"mmm\")))","v":"JAN"},"Last seen 3/14; to go to LAB for INR draw"]
[null,{"$f":"Ongoing!F23","v":"00:00:00"},{"$f":"Ongoing!A23","v":"Wonka,Willy"},{"$f":"Ongoing!B23","v":89621},{"$f":"CONCATENATE(Homework[[#This Row],[Patient Name]],\": \",Homework[[#This Row],[Chart]])","v":"Wonka,Willy: 89621"},{"$f":"IF(ISBLANK(Homework[[#This Row],[Date]]),\"\",UPPER(TEXT(Homework[[#This Row],[Date]],\"ddd\")))","v":"SAT"},{"$f":"IF(ISBLANK(Homework[[#This Row],[Date]]),\"\",UPPER(TEXT(Homework[[#This Row],[Date]],\"mmm\")))","v":"JAN"},"Last seen 3/14"]
[null,{"$f":"Ongoing!F24","v":"00:00:00"},{"$f":"Ongoing!A24","v":"Free,Willy"},{"$f":"Ongoing!B24","v":4576},{"$f":"CONCATENATE(Homework[[#This Row],[Patient Name]],\": \",Homework[[#This Row],[Chart]])","v":"Free,Willy: 4576"},{"$f":"IF(ISBLANK(Homework[[#This Row],[Date]]),\"\",UPPER(TEXT(Homework[[#This Row],[Date]],\"ddd\")))","v":"SAT"},{"$f":"IF(ISBLANK(Homework[[#This Row],[Date]]),\"\",UPPER(TEXT(Homework[[#This Row],[Date]],\"mmm\")))","v":"JAN"}]
[null,{"$f":"Ongoing!F25","v":"00:00:00"},{"$f":"Ongoing!A25","v":"doe,a"},{"$f":"Ongoing!B25","v":4562},{"$f":"CONCATENATE(Homework[[#This Row],[Patient Name]],\": \",Homework[[#This Row],[Chart]])","v":"doe,a: 4562"},{"$f":"IF(ISBLANK(Homework[[#This Row],[Date]]),\"\",UPPER(TEXT(Homework[[#This Row],[Date]],\"ddd\")))","v":"SAT"},{"$f":"IF(ISBLANK(Homework[[#This Row],[Date]]),\"\",UPPER(TEXT(Homework[[#This Row],[Date]],\"mmm\")))","v":"JAN"},"Last seen 3/1"]
[null,{"$f":"Ongoing!F26","v":"00:00:00"},{"$f":"Ongoing!A26","v":"doe,b"},{"$f":"Ongoing!B26","v":78956},{"$f":"CONCATENATE(Homework[[#This Row],[Patient Name]],\": \",Homework[[#This Row],[Chart]])","v":"doe,b: 78956"},{"$f":"IF(ISBLANK(Homework[[#This Row],[Date]]),\"\",UPPER(TEXT(Homework[[#This Row],[Date]],\"ddd\")))","v":"SAT"},{"$f":"IF(ISBLANK(Homework[[#This Row],[Date]]),\"\",UPPER(TEXT(Homework[[#This Row],[Date]],\"mmm\")))","v":"JAN"},"Last seen 3/14"]
[null,{"$f":"Ongoing!F27","v":"00:00:00"},{"$f":"Ongoing!A27","v":"doe,c"},{"$f":"Ongoing!B27","v":7778},{"$f":"CONCATENATE(Homework[[#This Row],[Patient Name]],\": \",Homework[[#This Row],[Chart]])","v":"doe,c: 7778"},{"$f":"IF(ISBLANK(Homework[[#This Row],[Date]]),\"\",UPPER(TEXT(Homework[[#This Row],[Date]],\"ddd\")))","v":"SAT"},{"$f":"IF(ISBLANK(Homework[[#This Row],[Date]]),\"\",UPPER(TEXT(Homework[[#This Row],[Date]],\"mmm\")))","v":"JAN"},"Last seen 3/6"]
[null,{"$f":"Ongoing!F28","v":"00:00:00"},{"$f":"Ongoing!A28","v":"doe,d"},{"$f":"Ongoing!B28","v":98686},{"$f":"CONCATENATE(Homework[[#This Row],[Patient Name]],\": \",Homework[[#This Row],[Chart]])","v":"doe,d: 98686"},{"$f":"IF(ISBLANK(Homework[[#This Row],[Date]]),\"\",UPPER(TEXT(Homework[[#This Row],[Date]],\"ddd\")))","v":"SAT"},{"$f":"IF(ISBLANK(Homework[[#This Row],[Date]]),\"\",UPPER(TEXT(Homework[[#This Row],[Date]],\"mmm\")))","v":"JAN"}]
[null,{"$f":"Ongoing!F29","v":"00:00:00"},{"$f":"Ongoing!A29","v":"doe,e"},{"$f":"Ongoing!B29","v":8587},{"$f":"CONCATENATE(Homework[[#This Row],[Patient Name]],\": \",Homework[[#This Row],[Chart]])","v":"doe,e: 8587"},{"$f":"IF(ISBLANK(Homework[[#This Row],[Date]]),\"\",UPPER(TEXT(Homework[[#This Row],[Date]],\"ddd\")))","v":"SAT"},{"$f":"IF(ISBLANK(Homework[[#This Row],[Date]]),\"\",UPPER(TEXT(Homework[[#This Row],[Date]],\"mmm\")))","v":"JAN"},"Last seen 3/24"]
[null,{"$f":"Ongoing!F30","v":"00:00:00"},{"$f":"Ongoing!A30","v":"doe,f"},{"$f":"Ongoing!B30","v":78456},{"$f":"CONCATENATE(Homework[[#This Row],[Patient Name]],\": \",Homework[[#This Row],[Chart]])","v":"doe,f: 78456"},{"$f":"IF(ISBLANK(Homework[[#This Row],[Date]]),\"\",UPPER(TEXT(Homework[[#This Row],[Date]],\"ddd\")))","v":"SAT"},{"$f":"IF(ISBLANK(Homework[[#This Row],[Date]]),\"\",UPPER(TEXT(Homework[[#This Row],[Date]],\"mmm\")))","v":"JAN"},"Last seen 3/6"]
[null,{"$f":"Ongoing!F31","v":"00:00:00"},{"$f":"Ongoing!A31","v":"doe,g"},{"$f":"Ongoing!B31","v":32625},{"$f":"CONCATENATE(Homework[[#This Row],[Patient Name]],\": \",Homework[[#This Row],[Chart]])","v":"doe,g: 32625"},{"$f":"IF(ISBLANK(Homework[[#This Row],[Date]]),\"\",UPPER(TEXT(Homework[[#This Row],[Date]],\"ddd\")))","v":"SAT"},{"$f":"IF(ISBLANK(Homework[[#This Row],[Date]]),\"\",UPPER(TEXT(Homework[[#This Row],[Date]],\"mmm\")))","v":"JAN"},"Last seen 2/21"]
[null,{"$f":"Ongoing!F32","v":"00:00:00"},{"$f":"Ongoing!A32","v":"smith,l"},{"$f":"Ongoing!B32","v":79856},{"$f":"CONCATENATE(Homework[[#This Row],[Patient Name]],\": \",Homework[[#This Row],[Chart]])","v":"smith,l: 79856"},{"$f":"IF(ISBLANK(Homework[[#This Row],[Date]]),\"\",UPPER(TEXT(Homework[[#This Row],[Date]],\"ddd\")))","v":"SAT"},{"$f":"IF(ISBLANK(Homework[[#This Row],[Date]]),\"\",UPPER(TEXT(Homework[[#This Row],[Date]],\"mmm\")))","v":"JAN"},"Last seen 3/14"]
[null,{"$f":"Ongoing!F33","v":"00:00:00"},{"$f":"Ongoing!A33","v":"smith,z"},{"$f":"Ongoing!B33","v":42641},{"$f":"CONCATENATE(Homework[[#This Row],[Patient Name]],\": \",Homework[[#This Row],[Chart]])","v":"smith,z: 42641"},{"$f":"IF(ISBLANK(Homework[[#This Row],[Date]]),\"\",UPPER(TEXT(Homework[[#This Row],[Date]],\"ddd\")))","v":"SAT"},{"$f":"IF(ISBLANK(Homework[[#This Row],[Date]]),\"\",UPPER(TEXT(Homework[[#This Row],[Date]],\"mmm\")))","v":"JAN"}]
[null,{"$f":"Ongoing!F34","v":"00:00:00"},{"$f":"Ongoing!A34","v":"smith,k"},{"$f":"Ongoing!B34","v":93325},{"$f":"CONCATENATE(Homework[[#This Row],[Patient Name]],\": \",Homework[[#This Row],[Chart]])","v":"smith,k: 93325"},{"$f":"IF(ISBLANK(Homework[[#This Row],[Date]]),\"\",UPPER(TEXT(Homework[[#This Row],[Date]],\"ddd\")))","v":"SAT"},{"$f":"IF(ISBLANK(Homework[[#This Row],[Date]]),\"\",UPPER(TEXT(Homework[[#This Row],[Date]],\"mmm\")))","v":"JAN"},"Last seen 3/3"]
[null,{"$f":"Ongoing!F35","v":"00:00:00"},{"$f":"Ongoing!A35","v":"Smith,Jane"},{"$f":"Ongoing!B35","v":7816},{"$f":"CONCATENATE(Homework[[#This Row],[Patient Name]],\": \",Homework[[#This Row],[Chart]])","v":"Smith,Jane: 7816"},{"$f":"IF(ISBLANK(Homework[[#This Row],[Date]]),\"\",UPPER(TEXT(Homework[[#This Row],[Date]],\"ddd\")))","v":"SAT"},{"$f":"IF(ISBLANK(Homework[[#This Row],[Date]]),\"\",UPPER(TEXT(Homework[[#This Row],[Date]],\"mmm\")))","v":"JAN"},"Last seen 3/14"]
[null,{"$f":"Ongoing!F36","v":"00:00:00"},{"$f":"Ongoing!A36","v":"Joe,Joe"},{"$f":"Ongoing!B36","v":0},{"$f":"CONCATENATE(Homework[[#This Row],[Patient Name]],\": \",Homework[[#This Row],[Chart]])","v":"Joe,Joe: 0"},{"$f":"IF(ISBLANK(Homework[[#This Row],[Date]]),\"\",UPPER(TEXT(Homework[[#This Row],[Date]],\"ddd\")))","v":"SAT"},{"$f":"IF(ISBLANK(Homework[[#This Row],[Date]]),\"\",UPPER(TEXT(Homework[[#This Row],[Date]],\"mmm\")))","v":"JAN"},"Last seen 3/13"]
[null,{"$f":"Ongoing!F37","v":"00:00:00"},{"$f":"Ongoing!A37","v":0},{"$f":"Ongoing!B37","v":0},{"$f":"CONCATENATE(Homework[[#This Row],[Patient Name]],\": \",Homework[[#This Row],[Chart]])","v":"0: 0"},{"$f":"IF(ISBLANK(Homework[[#This Row],[Date]]),\"\",UPPER(TEXT(Homework[[#This Row],[Date]],\"ddd\")))","v":"SAT"},{"$f":"IF(ISBLANK(Homework[[#This Row],[Date]]),\"\",UPPER(TEXT(Homework[[#This Row],[Date]],\"mmm\")))","v":"JAN"},"Last seen 3/15"]
[null,{"$f":"Ongoing!F38","v":"00:00:00"},{"$f":"Ongoing!A38","v":0},{"$f":"Ongoing!B38","v":0},{"$f":"CONCATENATE(Homework[[#This Row],[Patient Name]],\": \",Homework[[#This Row],[Chart]])","v":"0: 0"},{"$f":"IF(ISBLANK(Homework[[#This Row],[Date]]),\"\",UPPER(TEXT(Homework[[#This Row],[Date]],\"ddd\")))","v":"SAT"},{"$f":"IF(ISBLANK(Homework[[#This Row],[Date]]),\"\",UPPER(TEXT(Homework[[#This Row],[Date]],\"mmm\")))","v":"JAN"}]
[null,{"$f":"Ongoing!F39","v":"00:00:00"},{"$f":"Ongoing!A39","v":0},{"$f":"Ongoing!B39","v":0},{"$f":"CONCATENATE(Homework[[#This Row],[Patient Name]],\": \",Homework[[#This Row],[Chart]])","v":"0: 0"},{"$f":"IF(ISBLANK(Homework[[#This Row],[Date]]),\"\",UPPER(TEXT(Homework[[#This Row],[Date]],\"ddd\")))","v":"SAT"},{"$f":"IF(ISBLANK(Homework[[#This Row],[Date]]),\"\",UPPER(TEXT(Homework[[#This Row],[Date]],\"mmm\")))","v":"JAN"},"Last seen 3/8"]
[null,{"$f":"Ongoing!F40","v":"00:00:00"},{"$f":"Ongoing!A40","v":0},{"$f":"Ongoing!B40","v":0},{"$f":"CONCATENATE(Homework[[#This Row],[Patient Name]],\": \",Homework[[#This Row],[Chart]])","v":"0: 0"},{"$f":"IF(ISBLANK(Homework[[#This Row],[Date]]),\"\",UPPER(TEXT(Homework[[#This Row],[Date]],\"ddd\")))","v":"SAT"},{"$f":"IF(ISBLANK(Homework[[#This Row],[Date]]),\"\",UPPER(TEXT(Homework[[#This Row],[Date]],\"mmm\")))","v":"JAN"},"Last seen 3/10; received cipro rx 3/13"]
[null,{"$f":"Ongoing!F41","v":"00:00:00"},{"$f":"Ongoing!A41","v":0},{"$f":"Ongoing!B41","v":0},{"$f":"CONCATENATE(Homework[[#This Row],[Patient Name]],\": \",Homework[[#This Row],[Chart]])","v":"0: 0"},{"$f":"IF(ISBLANK(Homework[[#This Row],[Date]]),\"\",UPPER(TEXT(Homework[[#This Row],[Date]],\"ddd\")))","v":"SAT"},{"$f":"IF(ISBLANK(Homework[[#This Row],[Date]]),\"\",UPPER(TEXT(Homework[[#This Row],[Date]],\"mmm\")))","v":"JAN"},"Last seen 2/22"]
[null,{"$f":"Ongoing!F42","v":"00:00:00"},{"$f":"Ongoing!A42","v":0},{"$f":"Ongoing!B42","v":0},{"$f":"CONCATENATE(Homework[[#This Row],[Patient Name]],\": \",Homework[[#This Row],[Chart]])","v":"0: 0"},{"$f":"IF(ISBLANK(Homework[[#This Row],[Date]]),\"\",UPPER(TEXT(Homework[[#This Row],[Date]],\"ddd\")))","v":"SAT"},{"$f":"IF(ISBLANK(Homework[[#This Row],[Date]]),\"\",UPPER(TEXT(Homework[[#This Row],[Date]],\"mmm\")))","v":"JAN"}]
[null,{"$f":"Ongoing!F43","v":"00:00:00"},{"$f":"Ongoing!A43","v":0},{"$f":"Ongoing!B43","v":0},{"$f":"CONCATENATE(Homework[[#This Row],[Patient Name]],\": \",Homework[[#This Row],[Chart]])","v":"0: 0"},{"$f":"IF(ISBLANK(Homework[[#This Row],[Date]]),\"\",UPPER(TEXT(Homework[[#This Row],[Date]],\"ddd\")))","v":"SAT"},{"$f":"IF(ISBLANK(Homework[[#This Row],[Date]]),\"\",UPPER(TEXT(Homework[[#This Row],[Date]],\"mmm\")))","v":"JAN"},"Last seen 1/20"]
[null,{"$f":"Ongoing!F44","v":"00:00:00"},{"$f":"Ongoing!A44","v":0},{"$f":"Ongoing!B44","v":0},{"$f":"CONCATENATE(Homework[[#This Row],[Patient Name]],\": \",Homework[[#This Row],[Chart]])","v":"0: 0"},{"$f":"IF(ISBLANK(Homework[[#This Row],[Date]]),\"\",UPPER(TEXT(Homework[[#This Row],[Date]],\"ddd\")))","v":"SAT"},{"$f":"IF(ISBLANK(Homework[[#This Row],[Date]]),\"\",UPPER(TEXT(Homework[[#This Row],[Date]],\"mmm\")))","v":"JAN"},"Last seen 3/15"]
[null,{"$f":"Ongoing!F45","v":"00:00:00"},{"$f":"Ongoing!A45","v":0},{"$f":"Ongoing!B45","v":0},{"$f":"CONCATENATE(Homework[[#This Row],[Patient Name]],\": \",Homework[[#This Row],[Chart]])","v":"0: 0"},{"$f":"IF(ISBLANK(Homework[[#This Row],[Date]]),\"\",UPPER(TEXT(Homework[[#This Row],[Date]],\"ddd\")))","v":"SAT"},{"$f":"IF(ISBLANK(Homework[[#This Row],[Date]]),\"\",UPPER(TEXT(Homework[[#This Row],[Date]],\"mmm\")))","v":"JAN"},"Last seen 3/15"]
[null,{"$f":"Ongoing!F46","v":"00:00:00"},{"$f":"Ongoing!A46","v":0},{"$f":"Ongoing!B46","v":0},{"$f":"CONCATENATE(Homework[[#This Row],[Patient Name]],\": \",Homework[[#This Row],[Chart]])","v":"0: 0"},{"$f":"IF(ISBLANK(Homework[[#This Row],[Date]]),\"\",UPPER(TEXT(Homework[[#This Row],[Date]],\"ddd\")))","v":"SAT"},{"$f":"IF(ISBLANK(Homework[[#This Row],[Date]]),\"\",UPPER(TEXT(Homework[[#This Row],[Date]],\"mmm\")))","v":"JAN"}]
[null,{"$f":"Ongoing!F47","v":"00:00:00"},{"$f":"Ongoing!A47","v":0},{"$f":"Ongoing!B47","v":0},{"$f":"CONCATENATE(Homework[[#This Row],[Patient Name]],\": \",Homework[[#This Row],[Chart]])","v":"0: 0"},{"$f":"IF(ISBLANK(Homework[[#This Row],[Date]]),\"\",UPPER(TEXT(Homework[[#This Row],[Date]],\"ddd\")))","v":"SAT"},{"$f":"IF(ISBLANK(Homework[[#This Row],[Date]]),\"\",UPPER(TEXT(Homework[[#This Row],[Date]],\"mmm\")))","v":"JAN"},"Last seen 2/21"]
[null,{"$f":"Ongoing!F48","v":"00:00:00"},{"$f":"Ongoing!A48","v":0},{"$f":"Ongoing!B48","v":0},{"$f":"CONCATENATE(Homework[[#This Row],[Patient Name]],\": \",Homework[[#This Row],[Chart]])","v":"0: 0"},{"$f":"IF(ISBLANK(Homework[[#This Row],[Date]]),\"\",UPPER(TEXT(Homework[[#This Row],[Date]],\"ddd\")))","v":"SAT"},{"$f":"IF(ISBLANK(Homework[[#This Row],[Date]]),\"\",UPPER(TEXT(Homework[[#This Row],[Date]],\"mmm\")))","v":"JAN"}]
[null,{"$f":"Ongoing!F49","v":"00:00:00"},{"$f":"Ongoing!A49","v":0},{"$f":"Ongoing!B49","v":0},{"$f":"CONCATENATE(Homework[[#This Row],[Patient Name]],\": \",Homework[[#This Row],[Chart]])","v":"0: 0"},{"$f":"IF(ISBLANK(Homework[[#This Row],[Date]]),\"\",UPPER(TEXT(Homework[[#This Row],[Date]],\"ddd\")))","v":"SAT"},{"$f":"IF(ISBLANK(Homework[[#This Row],[Date]]),\"\",UPPER(TEXT(Homework[[#This Row],[Date]],\"mmm\")))","v":"JAN"},"Last seen 2/17"]
[null,{"$f":"Ongoing!F50","v":"00:00:00"},{"$f":"Ongoing!A50","v":0},{"$f":"Ongoing!B50","v":0},{"$f":"CONCATENATE(Homework[[#This Row],[Patient Name]],\": \",Homework[[#This Row],[Chart]])","v":"0: 0"},{"$f":"IF(ISBLANK(Homework[[#This Row],[Date]]),\"\",UPPER(TEXT(Homework[[#This Row],[Date]],\"ddd\")))","v":"SAT"},{"$f":"IF(ISBLANK(Homework[[#This Row],[Date]]),\"\",UPPER(TEXT(Homework[[#This Row],[Date]],\"mmm\")))","v":"JAN"}]
[null,{"$f":"Ongoing!F51","v":"00:00:00"},{"$f":"Ongoing!A51","v":0},{"$f":"Ongoing!B51","v":0},{"$f":"CONCATENATE(Homework[[#This Row],[Patient Name]],\": \",Homework[[#This Row],[Chart]])","v":"0: 0"},{"$f":"IF(ISBLANK(Homework[[#This Row],[Date]]),\"\",UPPER(TEXT(Homework[[#This Row],[Date]],\"ddd\")))","v":"SAT"},{"$f":"IF(ISBLANK(Homework[[#This Row],[Date]]),\"\",UPPER(TEXT(Homework[[#This Row],[Date]],\"mmm\")))","v":"JAN"},"Last seen 3/9"]
[null,{"$f":"Ongoing!F52","v":"00:00:00"},{"$f":"Ongoing!A52","v":0},{"$f":"Ongoing!B52","v":0},{"$f":"CONCATENATE(Homework[[#This Row],[Patient Name]],\": \",Homework[[#This Row],[Chart]])","v":"0: 0"},{"$f":"IF(ISBLANK(Homework[[#This Row],[Date]]),\"\",UPPER(TEXT(Homework[[#This Row],[Date]],\"ddd\")))","v":"SAT"},{"$f":"IF(ISBLANK(Homework[[#This Row],[Date]]),\"\",UPPER(TEXT(Homework[[#This Row],[Date]],\"mmm\")))","v":"JAN"},"Last seen 3/15"]
[null,{"$f":"Ongoing!F53","v":"00:00:00"},{"$f":"Ongoing!A53","v":0},{"$f":"Ongoing!B53","v":0},{"$f":"CONCATENATE(Homework[[#This Row],[Patient Name]],\": \",Homework[[#This Row],[Chart]])","v":"0: 0"},{"$f":"IF(ISBLANK(Homework[[#This Row],[Date]]),\"\",UPPER(TEXT(Homework[[#This Row],[Date]],\"ddd\")))","v":"SAT"},{"$f":"IF(ISBLANK(Homework[[#This Row],[Date]]),\"\",UPPER(TEXT(Homework[[#This Row],[Date]],\"mmm\")))","v":"JAN"},"Last seen 3/10"]
[null,{"$f":"Ongoing!F54","v":"00:00:00"},{"$f":"Ongoing!A54","v":0},{"$f":"Ongoing!B54","v":0},{"$f":"CONCATENATE(Homework[[#This Row],[Patient Name]],\": \",Homework[[#This Row],[Chart]])","v":"0: 0"},{"$f":"IF(ISBLANK(Homework[[#This Row],[Date]]),\"\",UPPER(TEXT(Homework[[#This Row],[Date]],\"ddd\")))","v":"SAT"},{"$f":"IF(ISBLANK(Homework[[#This Row],[Date]]),\"\",UPPER(TEXT(Homework[[#This Row],[Date]],\"mmm\")))","v":"JAN"}]
[null,{"$f":"Ongoing!F55","v":"00:00:00"},{"$f":"Ongoing!A55","v":0},{"$f":"Ongoing!B55","v":0},{"$f":"CONCATENATE(Homework[[#This Row],[Patient Name]],\": \",Homework[[#This Row],[Chart]])","v":"0: 0"},{"$f":"IF(ISBLANK(Homework[[#This Row],[Date]]),\"\",UPPER(TEXT(Homework[[#This Row],[Date]],\"ddd\")))","v":"SAT"},{"$f":"IF(ISBLANK(Homework[[#This Row],[Date]]),\"\",UPPER(TEXT(Homework[[#This Row],[Date]],\"mmm\")))","v":"JAN"},"Last seen 3/9"]
[null,{"$f":"Ongoing!F56","v":"00:00:00"},{"$f":"Ongoing!A56","v":0},{"$f":"Ongoing!B56","v":0},{"$f":"CONCATENATE(Homework[[#This Row],[Patient Name]],\": \",Homework[[#This Row],[Chart]])","v":"0: 0"},{"$f":"IF(ISBLANK(Homework[[#This Row],[Date]]),\"\",UPPER(TEXT(Homework[[#This Row],[Date]],\"ddd\")))","v":"SAT"},{"$f":"IF(ISBLANK(Homework[[#This Row],[Date]]),\"\",UPPER(TEXT(Homework[[#This Row],[Date]],\"mmm\")))","v":"JAN"},"Last seen 3/13"]
[null,{"$f":"Ongoing!F57","v":"00:00:00"},{"$f":"Ongoing!A57","v":0},{"$f":"Ongoing!B57","v":0},{"$f":"CONCATENATE(Homework[[#This Row],[Patient Name]],\": \",Homework[[#This Row],[Chart]])","v":"0: 0"},{"$f":"IF(ISBLANK(Homework[[#This Row],[Date]]),\"\",UPPER(TEXT(Homework[[#This Row],[Date]],\"ddd\")))","v":"SAT"},{"$f":"IF(ISBLANK(Homework[[#This Row],[Date]]),\"\",UPPER(TEXT(Homework[[#This Row],[Date]],\"mmm\")))","v":"JAN"},"Last seen 2/15."]
[null,{"$f":"Ongoing!F58","v":"00:00:00"},{"$f":"Ongoing!A58","v":0},{"$f":"Ongoing!B58","v":0},{"$f":"CONCATENATE(Homework[[#This Row],[Patient Name]],\": \",Homework[[#This Row],[Chart]])","v":"0: 0"},{"$f":"IF(ISBLANK(Homework[[#This Row],[Date]]),\"\",UPPER(TEXT(Homework[[#This Row],[Date]],\"ddd\")))","v":"SAT"},{"$f":"IF(ISBLANK(Homework[[#This Row],[Date]]),\"\",UPPER(TEXT(Homework[[#This Row],[Date]],\"mmm\")))","v":"JAN"},"Last seen 1/5"]
[null,{"$f":"Ongoing!F59","v":"00:00:00"},{"$f":"Ongoing!A59","v":0},{"$f":"Ongoing!B59","v":0},{"$f":"CONCATENATE(Homework[[#This Row],[Patient Name]],\": \",Homework[[#This Row],[Chart]])","v":"0: 0"},{"$f":"IF(ISBLANK(Homework[[#This Row],[Date]]),\"\",UPPER(TEXT(Homework[[#This Row],[Date]],\"ddd\")))","v":"SAT"},{"$f":"IF(ISBLANK(Homework[[#This Row],[Date]]),\"\",UPPER(TEXT(Homework[[#This Row],[Date]],\"mmm\")))","v":"JAN"},"Last seen 3/10"]
[null,{"$f":"Ongoing!F60","v":"00:00:00"},{"$f":"Ongoing!A60","v":0},{"$f":"Ongoing!B60","v":0},{"$f":"CONCATENATE(Homework[[#This Row],[Patient Name]],\": \",Homework[[#This Row],[Chart]])","v":"0: 0"},{"$f":"IF(ISBLANK(Homework[[#This Row],[Date]]),\"\",UPPER(TEXT(Homework[[#This Row],[Date]],\"ddd\")))","v":"SAT"},{"$f":"IF(ISBLANK(Homework[[#This Row],[Date]]),\"\",UPPER(TEXT(Homework[[#This Row],[Date]],\"mmm\")))","v":"JAN"},"Last seen 3/6"]
[null,{"$f":"Ongoing!F61","v":"00:00:00"},{"$f":"Ongoing!A61","v":0},{"$f":"Ongoing!B61","v":0},{"$f":"CONCATENATE(Homework[[#This Row],[Patient Name]],\": \",Homework[[#This Row],[Chart]])","v":"0: 0"},{"$f":"IF(ISBLANK(Homework[[#This Row],[Date]]),\"\",UPPER(TEXT(Homework[[#This Row],[Date]],\"ddd\")))","v":"SAT"},{"$f":"IF(ISBLANK(Homework[[#This Row],[Date]]),\"\",UPPER(TEXT(Homework[[#This Row],[Date]],\"mmm\")))","v":"JAN"},"Last seen 3/8"]
[null,{"$f":"Ongoing!F62","v":"00:00:00"},{"$f":"Ongoing!A62","v":0},{"$f":"Ongoing!B62","v":0},{"$f":"CONCATENATE(Homework[[#This Row],[Patient Name]],\": \",Homework[[#This Row],[Chart]])","v":"0: 0"},{"$f":"IF(ISBLANK(Homework[[#This Row],[Date]]),\"\",UPPER(TEXT(Homework[[#This Row],[Date]],\"ddd\")))","v":"SAT"},{"$f":"IF(ISBLANK(Homework[[#This Row],[Date]]),\"\",UPPER(TEXT(Homework[[#This Row],[Date]],\"mmm\")))","v":"JAN"}]
[null,null,null,null,{"$f":"CONCATENATE(Homework[[#This Row],[Patient Name]],\": \",Homework[[#This Row],[Chart]])","v":": "},{"$f":"IF(ISBLANK(Homework[[#This Row],[Date]]),\"\",UPPER(TEXT(Homework[[#This Row],[Date]],\"ddd\")))","v":""},{"$f":"IF(ISBLANK(Homework[[#This Row],[Date]]),\"\",UPPER(TEXT(Homework[[#This Row],[Date]],\"mmm\")))","v":""}]
[null,null,null,null,{"$f":"CONCATENATE(Homework[[#This Row],[Patient Name]],\": \",Homework[[#This Row],[Chart]])","v":": "},{"$f":"IF(ISBLANK(Homework[[#This Row],[Date]]),\"\",UPPER(TEXT(Homework[[#This Row],[Date]],\"ddd\")))","v":""},{"$f":"IF(ISBLANK(Homework[[#This Row],[Date]]),\"\",UPPER(TEXT(Homework[[#This Row],[Date]],\"mmm\")))","v":""}]
[null,null,null,null,{"$f":"CONCATENATE(Homework[[#This Row],[Patient Name]],\": \",Homework[[#This Row],[Chart]])","v":": "},{"$f":"IF(ISBLANK(Homework[[#This Row],[Date]]),\"\",UPPER(TEXT(Homework[[#This Row],[Date]],\"ddd\")))","v":""},{"$f":"IF(ISBLANK(Homework[[#This Row],[Date]]),\"\",UPPER(TEXT(Homework[[#This Row],[Date]],\"mmm\")))","v":""}]
[null,null,null,null,{"$f":"CONCATENATE(Homework[[#This Row],[Patient Name]],\": \",Homework[[#This Row],[Chart]])","v":": "},{"$f":"IF(ISBLANK(Homework[[#This Row],[Date]]),\"\",UPPER(TEXT(Homework[[#This Row],[Date]],\"ddd\")))","v":""},{"$f":"IF(ISBLANK(Homework[[#This Row],[Date]]),\"\",UPPER(TEXT(Homework[[#This Row],[Date]],\"mmm\")))","v":""}]
[null,null,null,null,{"$f":"CONCATENATE(Homework[[#This Row],[Patient Name]],\": \",Homework[[#This Row],[Chart]])","v":": "},{"$f":"IF(ISBLANK(Homework[[#This Row],[Date]]),\"\",UPPER(TEXT(Homework[[#This Row],[Date]],\"ddd\")))","v":""},{"$f":"IF(ISBLANK(Homework[[#This Row],[Date]]),\"\",UPPER(TEXT(Homework[[#This Row],[Date]],\"mmm\")))","v":""}]
[null,null,null,null,{"$f":"CONCATENATE(Homework[[#This Row],[Patient Name]],\": \",Homework[[#This Row],[Chart]])","v":": "},{"$f":"IF(ISBLANK(Homework[[#This Row],[Date]]),\"\",UPPER(TEXT(Homework[[#This Row],[Date]],\"ddd\")))","v":""},{"$f":"IF(ISBLANK(Homework[[#This Row],[Date]]),\"\",UPPER(TEXT(Homework[[#This Row],[Date]],\"mmm\")))","v":""}]
[null,null,null,null,{"$f":"CONCATENATE(Homework[[#This Row],[Patient Name]],\": \",Homework[[#This Row],[Chart]])","v":": "},{"$f":"IF(ISBLANK(Homework[[#This Row],[Date]]),\"\",UPPER(TEXT(Homework[[#This Row],[Date]],\"ddd\")))","v":""},{"$f":"IF(ISBLANK(Homework[[#This Row],[Date]]),\"\",UPPER(TEXT(Homework[[#This Row],[Date]],\"mmm\")))","v":""}]
[null,null,null,null,{"$f":"CONCATENATE(Homework[[#This Row],[Patient Name]],\": \",Homework[[#This Row],[Chart]])","v":": "},{"$f":"IF(ISBLANK(Homework[[#This Row],[Date]]),\"\",UPPER(TEXT(Homework[[#This Row],[Date]],\"ddd\")))","v":""},{"$f":"IF(ISBLANK(Homework[[#This Row],[Date]]),\"\",UPPER(TEXT(Homework[[#This Row],[Date]],\"mmm\")))","v":""}]
[null,null,null,null,{"$f":"CONCATENATE(Homework[[#This Row],[Patient Name]],\": \",Homework[[#This Row],[Chart]])","v":": "},{"$f":"IF(ISBLANK(Homework[[#This Row],[Date]]),\"\",UPPER(TEXT(Homework[[#This Row],[Date]],\"ddd\")))","v":""},{"$f":"IF(ISBLANK(Homework[[#This Row],[Date]]),\"\",UPPER(TEXT(Homework[[#This Row],[Date]],\"mmm\")))","v":""}]
[null,null,null,null,{"$f":"CONCATENATE(Homework[[#This Row],[Patient Name]],\": \",Homework[[#This Row],[Chart]])","v":": "},{"$f":"IF(ISBLANK(Homework[[#This Row],[Date]]),\"\",UPPER(TEXT(Homework[[#This Row],[Date]],\"ddd\")))","v":""},{"$f":"IF(ISBLANK(Homework[[#This Row],[Date]]),\"\",UPPER(TEXT(Homework[[#This Row],[Date]],\"mmm\")))","v":""}]
[null,null,null,null,{"$f":"CONCATENATE(Homework[[#This Row],[Patient Name]],\": \",Homework[[#This Row],[Chart]])","v":": "},{"$f":"IF(ISBLANK(Homework[[#This Row],[Date]]),\"\",UPPER(TEXT(Homework[[#This Row],[Date]],\"ddd\")))","v":""},{"$f":"IF(ISBLANK(Homework[[#This Row],[Date]]),\"\",UPPER(TEXT(Homework[[#This Row],[Date]],\"mmm\")))","v":""}]
[null,null,null,null,{"$f":"CONCATENATE(Homework[[#This Row],[Patient Name]],\": \",Homework[[#This Row],[Chart]])","v":": "},{"$f":"IF(ISBLANK(Homework[[#This Row],[Date]]),\"\",UPPER(TEXT(Homework[[#This Row],[Date]],\"ddd\")))","v":""},{"$f":"IF(ISBLANK(Homework[[#This Row],[Date]]),\"\",UPPER(TEXT(Homework[[#This Row],[Date]],\"mmm\")))","v":""}]
[null,null,null,null,{"$f":"CONCATENATE(Homework[[#This Row],[Patient Name]],\": \",Homework[[#This Row],[Chart]])","v":": "},{"$f":"IF(ISBLANK(Homework[[#This Row],[Date]]),\"\",UPPER(TEXT(Homework[[#This Row],[Date]],\"ddd\")))","v":""},{"$f":"IF(ISBLANK(Homework[[#This Row],[Date]]),\"\",UPPER(TEXT(Homework[[#This Row],[Date]],\"mmm\")))","v":""}]
[null,null,null,null,{"$f":"CONCATENATE(Homework[[#This Row],[Patient Name]],\": \",Homework[[#This Row],[Chart]])","v":": "},{"$f":"IF(ISBLANK(Homework[[#This Row],[Date]]),\"\",UPPER(TEXT(Homework[[#This Row],[Date]],\"ddd\")))","v":""},{"$f":"IF(ISBLANK(Homework[[#This Row],[Date]]),\"\",UPPER(TEXT(Homework[[#This Row],[Date]],\"mmm\")))","v":""}]
[null,null,null,null,{"$f":"CONCATENATE(Homework[[#This Row],[Patient Name]],\": \",Homework[[#This Row],[Chart]])","v":": "},{"$f":"IF(ISBLANK(Homework[[#This Row],[Date]]),\"\",UPPER(TEXT(Homework[[#This Row],[Date]],\"ddd\")))","v":""},{"$f":"IF(ISBLANK(Homework[[#This Row],[Date]]),\"\",UPPER(TEXT(Homework[[#This Row],[Date]],\"mmm\")))","v":""}]
[null,null,null,null,{"$f":"CONCATENATE(Homework[[#This Row],[Patient Name]],\": \",Homework[[#This Row],[Chart]])","v":": "},{"$f":"IF(ISBLANK(Homework[[#This Row],[Date]]),\"\",UPPER(TEXT(Homework[[#This Row],[Date]],\"ddd\")))","v":""},{"$f":"IF(ISBLANK(Homework[[#This Row],[Date]]),\"\",UPPER(TEXT(Homework[[#This Row],[Date]],\"mmm\")))","v":""}]
[null,null,null,null,{"$f":"CONCATENATE(Homework[[#This Row],[Patient Name]],\": \",Homework[[#This Row],[Chart]])","v":": "},{"$f":"IF(ISBLANK(Homework[[#This Row],[Date]]),\"\",UPPER(TEXT(Homework[[#This Row],[Date]],\"ddd\")))","v":""},{"$f":"IF(ISBLANK(Homework[[#This Row],[Date]]),\"\",UPPER(TEXT(Homework[[#This Row],[Date]],\"mmm\")))","v":""}]
[null,null,null,null,{"$f":"CONCATENATE(Homework[[#This Row],[Patient Name]],\": \",Homework[[#This Row],[Chart]])","v":": "},{"$f":"IF(ISBLANK(Homework[[#This Row],[Date]]),\"\",UPPER(TEXT(Homework[[#This Row],[Date]],\"ddd\")))","v":""},{"$f":"IF(ISBLANK(Homework[[#This Row],[Date]]),\"\",UPPER(TEXT(Homework[[#This Row],[Date]],\"mmm\")))","v":""}]
[null,null,null,null,{"$f":"CONCATENATE(Homework[[#This Row],[Patient Name]],\": \",Homework[[#This Row],[Chart]])","v":": "},{"$f":"IF(ISBLANK(Homework[[#This Row],[Date]]),\"\",UPPER(TEXT(Homework[[#This Row],[Date]],\"ddd\")))","v":""},{"$f":"IF(ISBLANK(Homework[[#This Row],[Date]]),\"\",UPPER(TEXT(Homework[[#This Row],[Date]],\"mmm\")))","v":""}]
[null,null,null,null,{"$f":"CONCATENATE(Homework[[#This Row],[Patient Name]],\": \",Homework[[#This Row],[Chart]])","v":": "},{"$f":"IF(ISBLANK(Homework[[#This Row],[Date]]),\"\",UPPER(TEXT(Homework[[#This Row],[Date]],\"ddd\")))","v":""},{"$f":"IF(ISBLANK(Homework[[#This Row],[Date]]),\"\",UPPER(TEXT(Homework[[#This Row],[Date]],\"mmm\")))","v":""}]
[null,null,null,null,{"$f":"CONCATENATE(Homework[[#This Row],[Patient Name]],\": \",Homework[[#This Row],[Chart]])","v":": "},{"$f":"IF(ISBLANK(Homework[[#This Row],[Date]]),\"\",UPPER(TEXT(Homework[[#This Row],[Date]],\"ddd\")))","v":""},{"$f":"IF(ISBLANK(Homework[[#This Row],[Date]]),\"\",UPPER(TEXT(Homework[[#This Row],[Date]],\"mmm\")))","v":""}]
[null,null,null,null,{"$f":"CONCATENATE(Homework[[#This Row],[Patient Name]],\": \",Homework[[#This Row],[Chart]])","v":": "},{"$f":"IF(ISBLANK(Homework[[#This Row],[Date]]),\"\",UPPER(TEXT(Homework[[#This Row],[Date]],\"ddd\")))","v":""},{"$f":"IF(ISBLANK(Homework[[#This Row],[Date]]),\"\",UPPER(TEXT(Homework[[#This Row],[Date]],\"mmm\")))","v":""}]
[null,null,null,null,{"$f":"CONCATENATE(Homework[[#This Row],[Patient Name]],\": \",Homework[[#This Row],[Chart]])","v":": "},{"$f":"IF(ISBLANK(Homework[[#This Row],[Date]]),\"\",UPPER(TEXT(Homework[[#This Row],[Date]],\"ddd\")))","v":""},{"$f":"IF(ISBLANK(Homework[[#This Row],[Date]]),\"\",UPPER(TEXT(Homework[[#This Row],[Date]],\"mmm\")))","v":""}]
[null,null,null,null,{"$f":"CONCATENATE(Homework[[#This Row],[Patient Name]],\": \",Homework[[#This Row],[Chart]])","v":": "},{"$f":"IF(ISBLANK(Homework[[#This Row],[Date]]),\"\",UPPER(TEXT(Homework[[#This Row],[Date]],\"ddd\")))","v":""},{"$f":"IF(ISBLANK(Homework[[#This Row],[Date]]),\"\",UPPER(TEXT(Homework[[#This Row],[Date]],\"mmm\")))","v":""}]
[null,null,null,null,{"$f":"CONCATENATE(Homework[[#This Row],[Patient Name]],\": \",Homework[[#This Row],[Chart]])","v":": "},{"$f":"IF(ISBLANK(Homework[[#This Row],[Date]]),\"\",UPPER(TEXT(Homework[[#This Row],[Date]],\"ddd\")))","v":""},{"$f":"IF(ISBLANK(Homework[[#This Row],[Date]]),\"\",UPPER(TEXT(Homework[[#This Row],[Date]],\"mmm\")))","v":""}]
[null,null,null,null,{"$f":"CONCATENATE(Homework[[#This Row],[Patient Name]],\": \",Homework[[#This Row],[Chart]])","v":": "},{"$f":"IF(ISBLANK(Homework[[#This Row],[Date]]),\"\",UPPER(TEXT(Homework[[#This Row],[Date]],\"ddd\")))","v":""},{"$f":"IF(ISBLANK(Homework[[#This Row],[Date]]),\"\",UPPER(TEXT(Homework[[#This Row],[Date]],\"mmm\")))","v":""}]
[null,null,null,null,{"$f":"CONCATENATE(Homework[[#This Row],[Patient Name]],\": \",Homework[[#This Row],[Chart]])","v":": "},{"$f":"IF(ISBLANK(Homework[[#This Row],[Date]]),\"\",UPPER(TEXT(Homework[[#This Row],[Date]],\"ddd\")))","v":""},{"$f":"IF(ISBLANK(Homework[[#This Row],[Date]]),\"\",UPPER(TEXT(Homework[[#This Row],[Date]],\"mmm\")))","v":""}]
[null,null,null,null,{"$f":"CONCATENATE(Homework[[#This Row],[Patient Name]],\": \",Homework[[#This Row],[Chart]])","v":": "},{"$f":"IF(ISBLANK(Homework[[#This Row],[Date]]),\"\",UPPER(TEXT(Homework[[#This Row],[Date]],\"ddd\")))","v":""},{"$f":"IF(ISBLANK(Homework[[#This Row],[Date]]),\"\",UPPER(TEXT(Homework[[#This Row],[Date]],\"mmm\")))","v":""}]
[null,null,null,null,{"$f":"CONCATENATE(Homework[[#This Row],[Patient Name]],\": \",Homework[[#This Row],[Chart]])","v":": "},{"$f":"IF(ISBLANK(Homework[[#This Row],[Date]]),\"\",UPPER(TEXT(Homework[[#This Row],[Date]],\"ddd\")))","v":""},{"$f":"IF(ISBLANK(Homework[[#This Row],[Date]]),\"\",UPPER(TEXT(Homework[[#This Row],[Date]],\"mmm\")))","v":""}]
[null,null,null,null,{"$f":"CONCATENATE(Homework[[#This Row],[Patient Name]],\": \",Homework[[#This Row],[Chart]])","v":": "},{"$f":"IF(ISBLANK(Homework[[#This Row],[Date]]),\"\",UPPER(TEXT(Homework[[#This Row],[Date]],\"ddd\")))","v":""},{"$f":"IF(ISBLANK(Homework[[#This Row],[Date]]),\"\",UPPER(TEXT(Homework[[#This Row],[Date]],\"mmm\")))","v":""}]
[null,null,null,null,{"$f":"CONCATENATE(Homework[[#This Row],[Patient Name]],\": \",Homework[[#This Row],[Chart]])","v":": "},{"$f":"IF(ISBLANK(Homework[[#This Row],[Date]]),\"\",UPPER(TEXT(Homework[[#This Row],[Date]],\"ddd\")))","v":""},{"$f":"IF(ISBLANK(Homework[[#This Row],[Date]]),\"\",UPPER(TEXT(Homework[[#This Row],[Date]],\"mmm\")))","v":""}]
[null,null,null,null,{"$f":"CONCATENATE(Homework[[#This Row],[Patient Name]],\": \",Homework[[#This Row],[Chart]])","v":": "},{"$f":"IF(ISBLANK(Homework[[#This Row],[Date]]),\"\",UPPER(TEXT(Homework[[#This Row],[Date]],\"ddd\")))","v":""},{"$f":"IF(ISBLANK(Homework[[#This Row],[Date]]),\"\",UPPER(TEXT(Homework[[#This Row],[Date]],\"mmm\")))","v":""}]
[null,null,null,null,{"$f":"CONCATENATE(Homework[[#This Row],[Patient Name]],\": \",Homework[[#This Row],[Chart]])","v":": "},{"$f":"IF(ISBLANK(Homework[[#This Row],[Date]]),\"\",UPPER(TEXT(Homework[[#This Row],[Date]],\"ddd\")))","v":""},{"$f":"IF(ISBLANK(Homework[[#This Row],[Date]]),\"\",UPPER(TEXT(Homework[[#This Row],[Date]],\"mmm\")))","v":""}]
[null,null,null,null,{"$f":"CONCATENATE(Homework[[#This Row],[Patient Name]],\": \",Homework[[#This Row],[Chart]])","v":": "},{"$f":"IF(ISBLANK(Homework[[#This Row],[Date]]),\"\",UPPER(TEXT(Homework[[#This Row],[Date]],\"ddd\")))","v":""},{"$f":"IF(ISBLANK(Homework[[#This Row],[Date]]),\"\",UPPER(TEXT(Homework[[#This Row],[Date]],\"mmm\")))","v":""}]
[null,null,null,null,{"$f":"CONCATENATE(Homework[[#This Row],[Patient Name]],\": \",Homework[[#This Row],[Chart]])","v":": "},{"$f":"IF(ISBLANK(Homework[[#This Row],[Date]]),\"\",UPPER(TEXT(Homework[[#This Row],[Date]],\"ddd\")))","v":""},{"$f":"IF(ISBLANK(Homework[[#This Row],[Date]]),\"\",UPPER(TEXT(Homework[[#This Row],[Date]],\"mmm\")))","v":""}]
[null,null,null,null,{"$f":"CONCATENATE(Homework[[#This Row],[Patient Name]],\": \",Homework[[#This Row],[Chart]])","v":": "},{"$f":"IF(ISBLANK(Homework[[#This Row],[Date]]),\"\",UPPER(TEXT(Homework[[#This Row],[Date]],\"ddd\")))","v":""},{"$f":"IF(ISBLANK(Homework[[#This Row],[Date]]),\"\",UPPER(TEXT(Homework[[#This Row],[Date]],\"mmm\")))","v":""}]
[null,null,null,null,{"$f":"CONCATENATE(Homework[[#This Row],[Patient Name]],\": \",Homework[[#This Row],[Chart]])","v":": "},{"$f":"IF(ISBLANK(Homework[[#This Row],[Date]]),\"\",UPPER(TEXT(Homework[[#This Row],[Date]],\"ddd\")))","v":""},{"$f":"IF(ISBLANK(Homework[[#This Row],[Date]]),\"\",UPPER(TEXT(Homework[[#This Row],[Date]],\"mmm\")))","v":""}]
[null,null,null,null,{"$f":"CONCATENATE(Homework[[#This Row],[Patient Name]],\": \",Homework[[#This Row],[Chart]])","v":": "},{"$f":"IF(ISBLANK(Homework[[#This Row],[Date]]),\"\",UPPER(TEXT(Homework[[#This Row],[Date]],\"ddd\")))","v":""},{"$f":"IF(ISBLANK(Homework[[#This Row],[Date]]),\"\",UPPER(TEXT(Homework[[#This Row],[Date]],\"mmm\")))","v":""}]
[null,null,null,null,{"$f":"CONCATENATE(Homework[[#This Row],[Patient Name]],\": \",Homework[[#This Row],[Chart]])","v":": "},{"$f":"IF(ISBLANK(Homework[[#This Row],[Date]]),\"\",UPPER(TEXT(Homework[[#This Row],[Date]],\"ddd\")))","v":""},{"$f":"IF(ISBLANK(Homework[[#This Row],[Date]]),\"\",UPPER(TEXT(Homework[[#This Row],[Date]],\"mmm\")))","v":""}]
[null,null,null,null,{"$f":"CONCATENATE(Homework[[#This Row],[Patient Name]],\": \",Homework[[#This Row],[Chart]])","v":": "},{"$f":"IF(ISBLANK(Homework[[#This Row],[Date]]),\"\",UPPER(TEXT(Homework[[#This Row],[Date]],\"ddd\")))","v":""},{"$f":"IF(ISBLANK(Homework[[#This Row],[Date]]),\"\",UPPER(TEXT(Homework[[#This Row],[Date]],\"mmm\")))","v":""}]
[null,null,null,null,{"$f":"CONCATENATE(Homework[[#This Row],[Patient Name]],\": \",Homework[[#This Row],[Chart]])","v":": "},{"$f":"IF(ISBLANK(Homework[[#This Row],[Date]]),\"\",UPPER(TEXT(Homework[[#This Row],[Date]],\"ddd\")))","v":""},{"$f":"IF(ISBLANK(Homework[[#This Row],[Date]]),\"\",UPPER(TEXT(Homework[[#This Row],[Date]],\"mmm\")))","v":""}]
[null,null,null,null,{"$f":"CONCATENATE(Homework[[#This Row],[Patient Name]],\": \",Homework[[#This Row],[Chart]])","v":": "},{"$f":"IF(ISBLANK(Homework[[#This Row],[Date]]),\"\",UPPER(TEXT(Homework[[#This Row],[Date]],\"ddd\")))","v":""},{"$f":"IF(ISBLANK(Homework[[#This Row],[Date]]),\"\",UPPER(TEXT(Homework[[#This Row],[Date]],\"mmm\")))","v":""}]
[null,null,null,null,{"$f":"CONCATENATE(Homework[[#This Row],[Patient Name]],\": \",Homework[[#This Row],[Chart]])","v":": "},{"$f":"IF(ISBLANK(Homework[[#This Row],[Date]]),\"\",UPPER(TEXT(Homework[[#This Row],[Date]],\"ddd\")))","v":""},{"$f":"IF(ISBLANK(Homework[[#This Row],[Date]]),\"\",UPPER(TEXT(Homework[[#This Row],[Date]],\"mmm\")))","v":""}]
[null,null,null,null,{"$f":"CONCATENATE(Homework[[#This Row],[Patient Name]],\": \",Homework[[#This Row],[Chart]])","v":": "},{"$f":"IF(ISBLANK(Homework[[#This Row],[Date]]),\"\",UPPER(TEXT(Homework[[#This Row],[Date]],\"ddd\")))","v":""},{"$f":"IF(ISBLANK(Homework[[#This Row],[Date]]),\"\",UPPER(TEXT(Homework[[#This Row],[Date]],\"mmm\")))","v":""}]
[null,null,null,null,{"$f":"CONCATENATE(Homework[[#This Row],[Patient Name]],\": \",Homework[[#This Row],[Chart]])","v":": "},{"$f":"IF(ISBLANK(Homework[[#This Row],[Date]]),\"\",UPPER(TEXT(Homework[[#This Row],[Date]],\"ddd\")))","v":""},{"$f":"IF(ISBLANK(Homework[[#This Row],[Date]]),\"\",UPPER(TEXT(Homework[[#This Row],[Date]],\"mmm\")))","v":""}]
[null,null,null,null,{"$f":"CONCATENATE(Homework[[#This Row],[Patient Name]],\": \",Homework[[#This Row],[Chart]])","v":": "},{"$f":"IF(ISBLANK(Homework[[#This Row],[Date]]),\"\",UPPER(TEXT(Homework[[#This Row],[Date]],\"ddd\")))","v":""},{"$f":"IF(ISBLANK(Homework[[#This Row],[Date]]),\"\",UPPER(TEXT(Homework[[#This Row],[Date]],\"mmm\")))","v":""}]
[null,null,null,null,{"$f":"CONCATENATE(Homework[[#This Row],[Patient Name]],\": \",Homework[[#This Row],[Chart]])","v":": "},{"$f":"IF(ISBLANK(Homework[[#This Row],[Date]]),\"\",UPPER(TEXT(Homework[[#This Row],[Date]],\"ddd\")))","v":""},{"$f":"IF(ISBLANK(Homework[[#This Row],[Date]]),\"\",UPPER(TEXT(Homework[[#This Row],[Date]],\"mmm\")))","v":""}]
[null,null,null,null,{"$f":"CONCATENATE(Homework[[#This Row],[Patient Name]],\": \",Homework[[#This Row],[Chart]])","v":": "},{"$f":"IF(ISBLANK(Homework[[#This Row],[Date]]),\"\",UPPER(TEXT(Homework[[#This Row],[Date]],\"ddd\")))","v":""},{"$f":"IF(ISBLANK(Homework[[#This Row],[Date]]),\"\",UPPER(TEXT(Homework[[#This Row],[Date]],\"mmm\")))","v":""}]
[null,null,null,null,{"$f":"CONCATENATE(Homework[[#This Row],[Patient Name]],\": \",Homework[[#This Row],[Chart]])","v":": "},{"$f":"IF(ISBLANK(Homework[[#This Row],[Date]]),\"\",UPPER(TEXT(Homework[[#This Row],[Date]],\"ddd\")))","v":""},{"$f":"IF(ISBLANK(Homework[[#This Row],[Date]]),\"\",UPPER(TEXT(Homework[[#This Row],[Date]],\"mmm\")))","v":""}]
[null,null,null,null,{"$f":"CONCATENATE(Homework[[#This Row],[Patient Name]],\": \",Homework[[#This Row],[Chart]])","v":": "},{"$f":"IF(ISBLANK(Homework[[#This Row],[Date]]),\"\",UPPER(TEXT(Homework[[#This Row],[Date]],\"ddd\")))","v":""},{"$f":"IF(ISBLANK(Homework[[#This Row],[Date]]),\"\",UPPER(TEXT(Homework[[#This Row],[Date]],\"mmm\")))","v":""}]
[null,null,null,null,{"$f":"CONCATENATE(Homework[[#This Row],[Patient Name]],\": \",Homework[[#This Row],[Chart]])","v":": "},{"$f":"IF(ISBLANK(Homework[[#This Row],[Date]]),\"\",UPPER(TEXT(Homework[[#This Row],[Date]],\"ddd\")))","v":""},{"$f":"IF(ISBLANK(Homework[[#This Row],[Date]]),\"\",UPPER(TEXT(Homework[[#This Row],[Date]],\"mmm\")))","v":""}]
[null,null,null,null,{"$f":"CONCATENATE(Homework[[#This Row],[Patient Name]],\": \",Homework[[#This Row],[Chart]])","v":": "},{"$f":"IF(ISBLANK(Homework[[#This Row],[Date]]),\"\",UPPER(TEXT(Homework[[#This Row],[Date]],\"ddd\")))","v":""},{"$f":"IF(ISBLANK(Homework[[#This Row],[Date]]),\"\",UPPER(TEXT(Homework[[#This Row],[Date]],\"mmm\")))","v":""}]
[null,null,null,null,{"$f":"CONCATENATE(Homework[[#This Row],[Patient Name]],\": \",Homework[[#This Row],[Chart]])","v":": "},{"$f":"IF(ISBLANK(Homework[[#This Row],[Date]]),\"\",UPPER(TEXT(Homework[[#This Row],[Date]],\"ddd\")))","v":""},{"$f":"IF(ISBLANK(Homework[[#This Row],[Date]]),\"\",UPPER(TEXT(Homework[[#This Row],[Date]],\"mmm\")))","v":""}]
[null,null,null,null,{"$f":"CONCATENATE(Homework[[#This Row],[Patient Name]],\": \",Homework[[#This Row],[Chart]])","v":": "},{"$f":"IF(ISBLANK(Homework[[#This Row],[Date]]),\"\",UPPER(TEXT(Homework[[#This Row],[Date]],\"ddd\")))","v":""},{"$f":"IF(ISBLANK(Homework[[#This Row],[Date]]),\"\",UPPER(TEXT(Homework[[#This Row],[Date]],\"mmm\")))","v":""}]
[null,null,null,null,{"$f":"CONCATENATE(Homework[[#This Row],[Patient Name]],\": \",Homework[[#This Row],[Chart]])","v":": "},{"$f":"IF(ISBLANK(Homework[[#This Row],[Date]]),\"\",UPPER(TEXT(Homework[[#This Row],[Date]],\"ddd\")))","v":""},{"$f":"IF(ISBLANK(Homework[[#This Row],[Date]]),\"\",UPPER(TEXT(Homework[[#This Row],[Date]],\"mmm\")))","v":""}]
[null,null,null,null,{"$f":"CONCATENATE(Homework[[#This Row],[Patient Name]],\": \",Homework[[#This Row],[Chart]])","v":": "},{"$f":"IF(ISBLANK(Homework[[#This Row],[Date]]),\"\",UPPER(TEXT(Homework[[#This Row],[Date]],\"ddd\")))","v":""},{"$f":"IF(ISBLANK(Homework[[#This Row],[Date]]),\"\",UPPER(TEXT(Homework[[#This Row],[Date]],\"mmm\")))","v":""}]
[null,null,null,null,{"$f":"CONCATENATE(Homework[[#This Row],[Patient Name]],\": \",Homework[[#This Row],[Chart]])","v":": "},{"$f":"IF(ISBLANK(Homework[[#This Row],[Date]]),\"\",UPPER(TEXT(Homework[[#This Row],[Date]],\"ddd\")))","v":""},{"$f":"IF(ISBLANK(Homework[[#This Row],[Date]]),\"\",UPPER(TEXT(Homework[[#This Row],[Date]],\"mmm\")))","v":""}]
[null,null,null,null,{"$f":"CONCATENATE(Homework[[#This Row],[Patient Name]],\": \",Homework[[#This Row],[Chart]])","v":": "},{"$f":"IF(ISBLANK(Homework[[#This Row],[Date]]),\"\",UPPER(TEXT(Homework[[#This Row],[Date]],\"ddd\")))","v":""},{"$f":"IF(ISBLANK(Homework[[#This Row],[Date]]),\"\",UPPER(TEXT(Homework[[#This Row],[Date]],\"mmm\")))","v":""}]
[null,null,null,null,{"$f":"CONCATENATE(Homework[[#This Row],[Patient Name]],\": \",Homework[[#This Row],[Chart]])","v":": "},{"$f":"IF(ISBLANK(Homework[[#This Row],[Date]]),\"\",UPPER(TEXT(Homework[[#This Row],[Date]],\"ddd\")))","v":""},{"$f":"IF(ISBLANK(Homework[[#This Row],[Date]]),\"\",UPPER(TEXT(Homework[[#This Row],[Date]],\"mmm\")))","v":""}]
[null,null,null,null,{"$f":"CONCATENATE(Homework[[#This Row],[Patient Name]],\": \",Homework[[#This Row],[Chart]])","v":": "},{"$f":"IF(ISBLANK(Homework[[#This Row],[Date]]),\"\",UPPER(TEXT(Homework[[#This Row],[Date]],\"ddd\")))","v":""},{"$f":"IF(ISBLANK(Homework[[#This Row],[Date]]),\"\",UPPER(TEXT(Homework[[#This Row],[Date]],\"mmm\")))","v":""}]
[null,null,null,null,{"$f":"CONCATENATE(Homework[[#This Row],[Patient Name]],\": \",Homework[[#This Row],[Chart]])","v":": "},{"$f":"IF(ISBLANK(Homework[[#This Row],[Date]]),\"\",UPPER(TEXT(Homework[[#This Row],[Date]],\"ddd\")))","v":""},{"$f":"IF(ISBLANK(Homework[[#This Row],[Date]]),\"\",UPPER(TEXT(Homework[[#This Row],[Date]],\"mmm\")))","v":""}]
[null,null,null,null,{"$f":"CONCATENATE(Homework[[#This Row],[Patient Name]],\": \",Homework[[#This Row],[Chart]])","v":": "},{"$f":"IF(ISBLANK(Homework[[#This Row],[Date]]),\"\",UPPER(TEXT(Homework[[#This Row],[Date]],\"ddd\")))","v":""},{"$f":"IF(ISBLANK(Homework[[#This Row],[Date]]),\"\",UPPER(TEXT(Homework[[#This Row],[Date]],\"mmm\")))","v":""}]
[null,null,null,null,{"$f":"CONCATENATE(Homework[[#This Row],[Patient Name]],\": \",Homework[[#This Row],[Chart]])","v":": "},{"$f":"IF(ISBLANK(Homework[[#This Row],[Date]]),\"\",UPPER(TEXT(Homework[[#This Row],[Date]],\"ddd\")))","v":""},{"$f":"IF(ISBLANK(Homework[[#This Row],[Date]]),\"\",UPPER(TEXT(Homework[[#This Row],[Date]],\"mmm\")))","v":""}]
[null,null,null,null,{"$f":"CONCATENATE(Homework[[#This Row],[Patient Name]],\": \",Homework[[#This Row],[Chart]])","v":": "},{"$f":"IF(ISBLANK(Homework[[#This Row],[Date]]),\"\",UPPER(TEXT(Homework[[#This Row],[Date]],\"ddd\")))","v":""},{"$f":"IF(ISBLANK(Homework[[#This Row],[Date]]),\"\",UPPER(TEXT(Homework[[#This Row],[Date]],\"mmm\")))","v":""}]
[null,null,null,null,{"$f":"CONCATENATE(Homework[[#This Row],[Patient Name]],\": \",Homework[[#This Row],[Chart]])","v":": "},{"$f":"IF(ISBLANK(Homework[[#This Row],[Date]]),\"\",UPPER(TEXT(Homework[[#This Row],[Date]],\"ddd\")))","v":""},{"$f":"IF(ISBLANK(Homework[[#This Row],[Date]]),\"\",UPPER(TEXT(Homework[[#This Row],[Date]],\"mmm\")))","v":""}]
[null,null,null,null,{"$f":"CONCATENATE(Homework[[#This Row],[Patient Name]],\": \",Homework[[#This Row],[Chart]])","v":": "},{"$f":"IF(ISBLANK(Homework[[#This Row],[Date]]),\"\",UPPER(TEXT(Homework[[#This Row],[Date]],\"ddd\")))","v":""},{"$f":"IF(ISBLANK(Homework[[#This Row],[Date]]),\"\",UPPER(TEXT(Homework[[#This Row],[Date]],\"mmm\")))","v":""}]
[null,null,null,null,{"$f":"CONCATENATE(Homework[[#This Row],[Patient Name]],\": \",Homework[[#This Row],[Chart]])","v":": "},{"$f":"IF(ISBLANK(Homework[[#This Row],[Date]]),\"\",UPPER(TEXT(Homework[[#This Row],[Date]],\"ddd\")))","v":""},{"$f":"IF(ISBLANK(Homework[[#This Row],[Date]]),\"\",UPPER(TEXT(Homework[[#This Row],[Date]],\"mmm\")))","v":""}]
[null,null,null,null,{"$f":"CONCATENATE(Homework[[#This Row],[Patient Name]],\": \",Homework[[#This Row],[Chart]])","v":": "},{"$f":"IF(ISBLANK(Homework[[#This Row],[Date]]),\"\",UPPER(TEXT(Homework[[#This Row],[Date]],\"ddd\")))","v":""},{"$f":"IF(ISBLANK(Homework[[#This Row],[Date]]),\"\",UPPER(TEXT(Homework[[#This Row],[Date]],\"mmm\")))","v":""}]
[null,null,null,null,{"$f":"CONCATENATE(Homework[[#This Row],[Patient Name]],\": \",Homework[[#This Row],[Chart]])","v":": "},{"$f":"IF(ISBLANK(Homework[[#This Row],[Date]]),\"\",UPPER(TEXT(Homework[[#This Row],[Date]],\"ddd\")))","v":""},{"$f":"IF(ISBLANK(Homework[[#This Row],[Date]]),\"\",UPPER(TEXT(Homework[[#This Row],[Date]],\"mmm\")))","v":""}]
[null,null,null,null,{"$f":"CONCATENATE(Homework[[#This Row],[Patient Name]],\": \",Homework[[#This Row],[Chart]])","v":": "},{"$f":"IF(ISBLANK(Homework[[#This Row],[Date]]),\"\",UPPER(TEXT(Homework[[#This Row],[Date]],\"ddd\")))","v":""},{"$f":"IF(ISBLANK(Homework[[#This Row],[Date]]),\"\",UPPER(TEXT(Homework[[#This Row],[Date]],\"mmm\")))","v":""}]
[null,null,null,null,{"$f":"CONCATENATE(Homework[[#This Row],[Patient Name]],\": \",Homework[[#This Row],[Chart]])","v":": "},{"$f":"IF(ISBLANK(Homework[[#This Row],[Date]]),\"\",UPPER(TEXT(Homework[[#This Row],[Date]],\"ddd\")))","v":""},{"$f":"IF(ISBLANK(Homework[[#This Row],[Date]]),\"\",UPPER(TEXT(Homework[[#This Row],[Date]],\"mmm\")))","v":""}]
[null,null,null,null,{"$f":"CONCATENATE(Homework[[#This Row],[Patient Name]],\": \",Homework[[#This Row],[Chart]])","v":": "},{"$f":"IF(ISBLANK(Homework[[#This Row],[Date]]),\"\",UPPER(TEXT(Homework[[#This Row],[Date]],\"ddd\")))","v":""},{"$f":"IF(ISBLANK(Homework[[#This Row],[Date]]),\"\",UPPER(TEXT(Homework[[#This Row],[Date]],\"mmm\")))","v":""}]
[null,null,null,null,{"$f":"CONCATENATE(Homework[[#This Row],[Patient Name]],\": \",Homework[[#This Row],[Chart]])","v":": "},{"$f":"IF(ISBLANK(Homework[[#This Row],[Date]]),\"\",UPPER(TEXT(Homework[[#This Row],[Date]],\"ddd\")))","v":""},{"$f":"IF(ISBLANK(Homework[[#This Row],[Date]]),\"\",UPPER(TEXT(Homework[[#This Row],[Date]],\"mmm\")))","v":""}]
[null,null,null,null,{"$f":"CONCATENATE(Homework[[#This Row],[Patient Name]],\": \",Homework[[#This Row],[Chart]])","v":": "},{"$f":"IF(ISBLANK(Homework[[#This Row],[Date]]),\"\",UPPER(TEXT(Homework[[#This Row],[Date]],\"ddd\")))","v":""},{"$f":"IF(ISBLANK(Homework[[#This Row],[Date]]),\"\",UPPER(TEXT(Homework[[#This Row],[Date]],\"mmm\")))","v":""}]
[null,null,null,null,{"$f":"CONCATENATE(Homework[[#This Row],[Patient Name]],\": \",Homework[[#This Row],[Chart]])","v":": "},{"$f":"IF(ISBLANK(Homework[[#This Row],[Date]]),\"\",UPPER(TEXT(Homework[[#This Row],[Date]],\"ddd\")))","v":""},{"$f":"IF(ISBLANK(Homework[[#This Row],[Date]]),\"\",UPPER(TEXT(Homework[[#This Row],[Date]],\"mmm\")))","v":""}]
[null,null,null,null,{"$f":"CONCATENATE(Homework[[#This Row],[Patient Name]],\": \",Homework[[#This Row],[Chart]])","v":": "},{"$f":"IF(ISBLANK(Homework[[#This Row],[Date]]),\"\",UPPER(TEXT(Homework[[#This Row],[Date]],\"ddd\")))","v":""},{"$f":"IF(ISBLANK(Homework[[#This Row],[Date]]),\"\",UPPER(TEXT(Homework[[#This Row],[Date]],\"mmm\")))","v":""}]
[null,null,null,null,{"$f":"CONCATENATE(Homework[[#This Row],[Patient Name]],\": \",Homework[[#This Row],[Chart]])","v":": "},{"$f":"IF(ISBLANK(Homework[[#This Row],[Date]]),\"\",UPPER(TEXT(Homework[[#This Row],[Date]],\"ddd\")))","v":""},{"$f":"IF(ISBLANK(Homework[[#This Row],[Date]]),\"\",UPPER(TEXT(Homework[[#This Row],[Date]],\"mmm\")))","v":""}]
[null,null,null,null,{"$f":"CONCATENATE(Homework[[#This Row],[Patient Name]],\": \",Homework[[#This Row],[Chart]])","v":": "},{"$f":"IF(ISBLANK(Homework[[#This Row],[Date]]),\"\",UPPER(TEXT(Homework[[#This Row],[Date]],\"ddd\")))","v":""},{"$f":"IF(ISBLANK(Homework[[#This Row],[Date]]),\"\",UPPER(TEXT(Homework[[#This Row],[Date]],\"mmm\")))","v":""}]
[null,null,null,null,{"$f":"CONCATENATE(Homework[[#This Row],[Patient Name]],\": \",Homework[[#This Row],[Chart]])","v":": "},{"$f":"IF(ISBLANK(Homework[[#This Row],[Date]]),\"\",UPPER(TEXT(Homework[[#This Row],[Date]],\"ddd\")))","v":""},{"$f":"IF(ISBLANK(Homework[[#This Row],[Date]]),\"\",UPPER(TEXT(Homework[[#This Row],[Date]],\"mmm\")))","v":""}]
[null,null,null,null,{"$f":"CONCATENATE(Homework[[#This Row],[Patient Name]],\": \",Homework[[#This Row],[Chart]])","v":": "},{"$f":"IF(ISBLANK(Homework[[#This Row],[Date]]),\"\",UPPER(TEXT(Homework[[#This Row],[Date]],\"ddd\")))","v":""},{"$f":"IF(ISBLANK(Homework[[#This Row],[Date]]),\"\",UPPER(TEXT(Homework[[#This Row],[Date]],\"mmm\")))","v":""}]
[null,null,null,null,{"$f":"CONCATENATE(Homework[[#This Row],[Patient Name]],\": \",Homework[[#This Row],[Chart]])","v":": "},{"$f":"IF(ISBLANK(Homework[[#This Row],[Date]]),\"\",UPPER(TEXT(Homework[[#This Row],[Date]],\"ddd\")))","v":""},{"$f":"IF(ISBLANK(Homework[[#This Row],[Date]]),\"\",UPPER(TEXT(Homework[[#This Row],[Date]],\"mmm\")))","v":""}]
[null,null,null,null,{"$f":"CONCATENATE(Homework[[#This Row],[Patient Name]],\": \",Homework[[#This Row],[Chart]])","v":": "},{"$f":"IF(ISBLANK(Homework[[#This Row],[Date]]),\"\",UPPER(TEXT(Homework[[#This Row],[Date]],\"ddd\")))","v":""},{"$f":"IF(ISBLANK(Homework[[#This Row],[Date]]),\"\",UPPER(TEXT(Homework[[#This Row],[Date]],\"mmm\")))","v":""}]
[null,null,null,null,{"$f":"CONCATENATE(Homework[[#This Row],[Patient Name]],\": \",Homework[[#This Row],[Chart]])","v":": "},{"$f":"IF(ISBLANK(Homework[[#This Row],[Date]]),\"\",UPPER(TEXT(Homework[[#This Row],[Date]],\"ddd\")))","v":""},{"$f":"IF(ISBLANK(Homework[[#This Row],[Date]]),\"\",UPPER(TEXT(Homework[[#This Row],[Date]],\"mmm\")))","v":""}]
[null,null,null,null,{"$f":"CONCATENATE(Homework[[#This Row],[Patient Name]],\": \",Homework[[#This Row],[Chart]])","v":": "},{"$f":"IF(ISBLANK(Homework[[#This Row],[Date]]),\"\",UPPER(TEXT(Homework[[#This Row],[Date]],\"ddd\")))","v":""},{"$f":"IF(ISBLANK(Homework[[#This Row],[Date]]),\"\",UPPER(TEXT(Homework[[#This Row],[Date]],\"mmm\")))","v":""}]
[null,null,null,null,{"$f":"CONCATENATE(Homework[[#This Row],[Patient Name]],\": \",Homework[[#This Row],[Chart]])","v":": "},{"$f":"IF(ISBLANK(Homework[[#This Row],[Date]]),\"\",UPPER(TEXT(Homework[[#This Row],[Date]],\"ddd\")))","v":""},{"$f":"IF(ISBLANK(Homework[[#This Row],[Date]]),\"\",UPPER(TEXT(Homework[[#This Row],[Date]],\"mmm\")))","v":""}]
[null,null,null,null,{"$f":"CONCATENATE(Homework[[#This Row],[Patient Name]],\": \",Homework[[#This Row],[Chart]])","v":": "},{"$f":"IF(ISBLANK(Homework[[#This Row],[Date]]),\"\",UPPER(TEXT(Homework[[#This Row],[Date]],\"ddd\")))","v":""},{"$f":"IF(ISBLANK(Homework[[#This Row],[Date]]),\"\",UPPER(TEXT(Homework[[#This Row],[Date]],\"mmm\")))","v":""}]
[null,null,null,null,{"$f":"CONCATENATE(Homework[[#This Row],[Patient Name]],\": \",Homework[[#This Row],[Chart]])","v":": "},{"$f":"IF(ISBLANK(Homework[[#This Row],[Date]]),\"\",UPPER(TEXT(Homework[[#This Row],[Date]],\"ddd\")))","v":""},{"$f":"IF(ISBLANK(Homework[[#This Row],[Date]]),\"\",UPPER(TEXT(Homework[[#This Row],[Date]],\"mmm\")))","v":""}]
[null,null,null,null,{"$f":"CONCATENATE(Homework[[#This Row],[Patient Name]],\": \",Homework[[#This Row],[Chart]])","v":": "},{"$f":"IF(ISBLANK(Homework[[#This Row],[Date]]),\"\",UPPER(TEXT(Homework[[#This Row],[Date]],\"ddd\")))","v":""},{"$f":"IF(ISBLANK(Homework[[#This Row],[Date]]),\"\",UPPER(TEXT(Homework[[#This Row],[Date]],\"mmm\")))","v":""}]
[null,null,null,null,{"$f":"CONCATENATE(Homework[[#This Row],[Patient Name]],\": \",Homework[[#This Row],[Chart]])","v":": "},{"$f":"IF(ISBLANK(Homework[[#This Row],[Date]]),\"\",UPPER(TEXT(Homework[[#This Row],[Date]],\"ddd\")))","v":""},{"$f":"IF(ISBLANK(Homework[[#This Row],[Date]]),\"\",UPPER(TEXT(Homework[[#This Row],[Date]],\"mmm\")))","v":""}]
[null,null,null,null,{"$f":"CONCATENATE(Homework[[#This Row],[Patient Name]],\": \",Homework[[#This Row],[Chart]])","v":": "},{"$f":"IF(ISBLANK(Homework[[#This Row],[Date]]),\"\",UPPER(TEXT(Homework[[#This Row],[Date]],\"ddd\")))","v":""},{"$f":"IF(ISBLANK(Homework[[#This Row],[Date]]),\"\",UPPER(TEXT(Homework[[#This Row],[Date]],\"mmm\")))","v":""}]
[null,null,null,null,{"$f":"CONCATENATE(Homework[[#This Row],[Patient Name]],\": \",Homework[[#This Row],[Chart]])","v":": "},{"$f":"IF(ISBLANK(Homework[[#This Row],[Date]]),\"\",UPPER(TEXT(Homework[[#This Row],[Date]],\"ddd\")))","v":""},{"$f":"IF(ISBLANK(Homework[[#This Row],[Date]]),\"\",UPPER(TEXT(Homework[[#This Row],[Date]],\"mmm\")))","v":""}]
[null,null,null,null,{"$f":"CONCATENATE(Homework[[#This Row],[Patient Name]],\": \",Homework[[#This Row],[Chart]])","v":": "},{"$f":"IF(ISBLANK(Homework[[#This Row],[Date]]),\"\",UPPER(TEXT(Homework[[#This Row],[Date]],\"ddd\")))","v":""},{"$f":"IF(ISBLANK(Homework[[#This Row],[Date]]),\"\",UPPER(TEXT(Homework[[#This Row],[Date]],\"mmm\")))","v":""}]
[null,null,null,null,{"$f":"CONCATENATE(Homework[[#This Row],[Patient Name]],\": \",Homework[[#This Row],[Chart]])","v":": "},{"$f":"IF(ISBLANK(Homework[[#This Row],[Date]]),\"\",UPPER(TEXT(Homework[[#This Row],[Date]],\"ddd\")))","v":""},{"$f":"IF(ISBLANK(Homework[[#This Row],[Date]]),\"\",UPPER(TEXT(Homework[[#This Row],[Date]],\"mmm\")))","v":""}]
[null,null,null,null,{"$f":"CONCATENATE(Homework[[#This Row],[Patient Name]],\": \",Homework[[#This Row],[Chart]])","v":": "},{"$f":"IF(ISBLANK(Homework[[#This Row],[Date]]),\"\",UPPER(TEXT(Homework[[#This Row],[Date]],\"ddd\")))","v":""},{"$f":"IF(ISBLANK(Homework[[#This Row],[Date]]),\"\",UPPER(TEXT(Homework[[#This Row],[Date]],\"mmm\")))","v":""}]
[null,null,null,null,{"$f":"CONCATENATE(Homework[[#This Row],[Patient Name]],\": \",Homework[[#This Row],[Chart]])","v":": "},{"$f":"IF(ISBLANK(Homework[[#This Row],[Date]]),\"\",UPPER(TEXT(Homework[[#This Row],[Date]],\"ddd\")))","v":""},{"$f":"IF(ISBLANK(Homework[[#This Row],[Date]]),\"\",UPPER(TEXT(Homework[[#This Row],[Date]],\"mmm\")))","v":""}]
[null,null,null,null,{"$f":"CONCATENATE(Homework[[#This Row],[Patient Name]],\": \",Homework[[#This Row],[Chart]])","v":": "},{"$f":"IF(ISBLANK(Homework[[#This Row],[Date]]),\"\",UPPER(TEXT(Homework[[#This Row],[Date]],\"ddd\")))","v":""},{"$f":"IF(ISBLANK(Homework[[#This Row],[Date]]),\"\",UPPER(TEXT(Homework[[#This Row],[Date]],\"mmm\")))","v":""}]
[null,null,null,null,{"$f":"CONCATENATE(Homework[[#This Row],[Patient Name]],\": \",Homework[[#This Row],[Chart]])","v":": "},{"$f":"IF(ISBLANK(Homework[[#This Row],[Date]]),\"\",UPPER(TEXT(Homework[[#This Row],[Date]],\"ddd\")))","v":""},{"$f":"IF(ISBLANK(Homework[[#This Row],[Date]]),\"\",UPPER(TEXT(Homework[[#This Row],[Date]],\"mmm\")))","v":""}]
[null,null,null,null,{"$f":"CONCATENATE(Homework[[#This Row],[Patient Name]],\": \",Homework[[#This Row],[Chart]])","v":": "},{"$f":"IF(ISBLANK(Homework[[#This Row],[Date]]),\"\",UPPER(TEXT(Homework[[#This Row],[Date]],\"ddd\")))","v":""},{"$f":"IF(ISBLANK(Homework[[#This Row],[Date]]),\"\",UPPER(TEXT(Homework[[#This Row],[Date]],\"mmm\")))","v":""}]
[null,null,null,null,{"$f":"CONCATENATE(Homework[[#This Row],[Patient Name]],\": \",Homework[[#This Row],[Chart]])","v":": "},{"$f":"IF(ISBLANK(Homework[[#This Row],[Date]]),\"\",UPPER(TEXT(Homework[[#This Row],[Date]],\"ddd\")))","v":""},{"$f":"IF(ISBLANK(Homework[[#This Row],[Date]]),\"\",UPPER(TEXT(Homework[[#This Row],[Date]],\"mmm\")))","v":""}]
[null,null,null,null,{"$f":"CONCATENATE(Homework[[#This Row],[Patient Name]],\": \",Homework[[#This Row],[Chart]])","v":": "},{"$f":"IF(ISBLANK(Homework[[#This Row],[Date]]),\"\",UPPER(TEXT(Homework[[#This Row],[Date]],\"ddd\")))","v":""},{"$f":"IF(ISBLANK(Homework[[#This Row],[Date]]),\"\",UPPER(TEXT(Homework[[#This Row],[Date]],\"mmm\")))","v":""}]
[null,null,null,null,{"$f":"CONCATENATE(Homework[[#This Row],[Patient Name]],\": \",Homework[[#This Row],[Chart]])","v":": "},{"$f":"IF(ISBLANK(Homework[[#This Row],[Date]]),\"\",UPPER(TEXT(Homework[[#This Row],[Date]],\"ddd\")))","v":""},{"$f":"IF(ISBLANK(Homework[[#This Row],[Date]]),\"\",UPPER(TEXT(Homework[[#This Row],[Date]],\"mmm\")))","v":""}]
[null,null,null,null,{"$f":"CONCATENATE(Homework[[#This Row],[Patient Name]],\": \",Homework[[#This Row],[Chart]])","v":": "},{"$f":"IF(ISBLANK(Homework[[#This Row],[Date]]),\"\",UPPER(TEXT(Homework[[#This Row],[Date]],\"ddd\")))","v":""},{"$f":"IF(ISBLANK(Homework[[#This Row],[Date]]),\"\",UPPER(TEXT(Homework[[#This Row],[Date]],\"mmm\")))","v":""}]
[null,null,null,null,{"$f":"CONCATENATE(Homework[[#This Row],[Patient Name]],\": \",Homework[[#This Row],[Chart]])","v":": "},{"$f":"IF(ISBLANK(Homework[[#This Row],[Date]]),\"\",UPPER(TEXT(Homework[[#This Row],[Date]],\"ddd\")))","v":""},{"$f":"IF(ISBLANK(Homework[[#This Row],[Date]]),\"\",UPPER(TEXT(Homework[[#This Row],[Date]],\"mmm\")))","v":""}]
[null,null,null,null,{"$f":"CONCATENATE(Homework[[#This Row],[Patient Name]],\": \",Homework[[#This Row],[Chart]])","v":": "},{"$f":"IF(ISBLANK(Homework[[#This Row],[Date]]),\"\",UPPER(TEXT(Homework[[#This Row],[Date]],\"ddd\")))","v":""},{"$f":"IF(ISBLANK(Homework[[#This Row],[Date]]),\"\",UPPER(TEXT(Homework[[#This Row],[Date]],\"mmm\")))","v":""}]
[null,null,null,null,{"$f":"CONCATENATE(Homework[[#This Row],[Patient Name]],\": \",Homework[[#This Row],[Chart]])","v":": "},{"$f":"IF(ISBLANK(Homework[[#This Row],[Date]]),\"\",UPPER(TEXT(Homework[[#This Row],[Date]],\"ddd\")))","v":""},{"$f":"IF(ISBLANK(Homework[[#This Row],[Date]]),\"\",UPPER(TEXT(Homework[[#This Row],[Date]],\"mmm\")))","v":""}]
[null,null,null,null,{"$f":"CONCATENATE(Homework[[#This Row],[Patient Name]],\": \",Homework[[#This Row],[Chart]])","v":": "},{"$f":"IF(ISBLANK(Homework[[#This Row],[Date]]),\"\",UPPER(TEXT(Homework[[#This Row],[Date]],\"ddd\")))","v":""},{"$f":"IF(ISBLANK(Homework[[#This Row],[Date]]),\"\",UPPER(TEXT(Homework[[#This Row],[Date]],\"mmm\")))","v":""}]
[null,null,null,null,{"$f":"CONCATENATE(Homework[[#This Row],[Patient Name]],\": \",Homework[[#This Row],[Chart]])","v":": "},{"$f":"IF(ISBLANK(Homework[[#This Row],[Date]]),\"\",UPPER(TEXT(Homework[[#This Row],[Date]],\"ddd\")))","v":""},{"$f":"IF(ISBLANK(Homework[[#This Row],[Date]]),\"\",UPPER(TEXT(Homework[[#This Row],[Date]],\"mmm\")))","v":""}]
[null,null,null,null,{"$f":"CONCATENATE(Homework[[#This Row],[Patient Name]],\": \",Homework[[#This Row],[Chart]])","v":": "},{"$f":"IF(ISBLANK(Homework[[#This Row],[Date]]),\"\",UPPER(TEXT(Homework[[#This Row],[Date]],\"ddd\")))","v":""},{"$f":"IF(ISBLANK(Homework[[#This Row],[Date]]),\"\",UPPER(TEXT(Homework[[#This Row],[Date]],\"mmm\")))","v":""}]
[null,null,null,null,{"$f":"CONCATENATE(Homework[[#This Row],[Patient Name]],\": \",Homework[[#This Row],[Chart]])","v":": "},{"$f":"IF(ISBLANK(Homework[[#This Row],[Date]]),\"\",UPPER(TEXT(Homework[[#This Row],[Date]],\"ddd\")))","v":""},{"$f":"IF(ISBLANK(Homework[[#This Row],[Date]]),\"\",UPPER(TEXT(Homework[[#This Row],[Date]],\"mmm\")))","v":""}]
[null,null,null,null,{"$f":"CONCATENATE(Homework[[#This Row],[Patient Name]],\": \",Homework[[#This Row],[Chart]])","v":": "},{"$f":"IF(ISBLANK(Homework[[#This Row],[Date]]),\"\",UPPER(TEXT(Homework[[#This Row],[Date]],\"ddd\")))","v":""},{"$f":"IF(ISBLANK(Homework[[#This Row],[Date]]),\"\",UPPER(TEXT(Homework[[#This Row],[Date]],\"mmm\")))","v":""}]
[null,null,null,null,{"$f":"CONCATENATE(Homework[[#This Row],[Patient Name]],\": \",Homework[[#This Row],[Chart]])","v":": "},{"$f":"IF(ISBLANK(Homework[[#This Row],[Date]]),\"\",UPPER(TEXT(Homework[[#This Row],[Date]],\"ddd\")))","v":""},{"$f":"IF(ISBLANK(Homework[[#This Row],[Date]]),\"\",UPPER(TEXT(Homework[[#This Row],[Date]],\"mmm\")))","v":""}]
[null,null,null,null,{"$f":"CONCATENATE(Homework[[#This Row],[Patient Name]],\": \",Homework[[#This Row],[Chart]])","v":": "},{"$f":"IF(ISBLANK(Homework[[#This Row],[Date]]),\"\",UPPER(TEXT(Homework[[#This Row],[Date]],\"ddd\")))","v":""},{"$f":"IF(ISBLANK(Homework[[#This Row],[Date]]),\"\",UPPER(TEXT(Homework[[#This Row],[Date]],\"mmm\")))","v":""}]
[null,null,null,null,{"$f":"CONCATENATE(Homework[[#This Row],[Patient Name]],\": \",Homework[[#This Row],[Chart]])","v":": "},{"$f":"IF(ISBLANK(Homework[[#This Row],[Date]]),\"\",UPPER(TEXT(Homework[[#This Row],[Date]],\"ddd\")))","v":""},{"$f":"IF(ISBLANK(Homework[[#This Row],[Date]]),\"\",UPPER(TEXT(Homework[[#This Row],[Date]],\"mmm\")))","v":""}]
[null,null,null,null,{"$f":"CONCATENATE(Homework[[#This Row],[Patient Name]],\": \",Homework[[#This Row],[Chart]])","v":": "},{"$f":"IF(ISBLANK(Homework[[#This Row],[Date]]),\"\",UPPER(TEXT(Homework[[#This Row],[Date]],\"ddd\")))","v":""},{"$f":"IF(ISBLANK(Homework[[#This Row],[Date]]),\"\",UPPER(TEXT(Homework[[#This Row],[Date]],\"mmm\")))","v":""}]
[null,null,null,null,{"$f":"CONCATENATE(Homework[[#This Row],[Patient Name]],\": \",Homework[[#This Row],[Chart]])","v":": "},{"$f":"IF(ISBLANK(Homework[[#This Row],[Date]]),\"\",UPPER(TEXT(Homework[[#This Row],[Date]],\"ddd\")))","v":""},{"$f":"IF(ISBLANK(Homework[[#This Row],[Date]]),\"\",UPPER(TEXT(Homework[[#This Row],[Date]],\"mmm\")))","v":""}]
[null,null,null,null,{"$f":"CONCATENATE(Homework[[#This Row],[Patient Name]],\": \",Homework[[#This Row],[Chart]])","v":": "},{"$f":"IF(ISBLANK(Homework[[#This Row],[Date]]),\"\",UPPER(TEXT(Homework[[#This Row],[Date]],\"ddd\")))","v":""},{"$f":"IF(ISBLANK(Homework[[#This Row],[Date]]),\"\",UPPER(TEXT(Homework[[#This Row],[Date]],\"mmm\")))","v":""}]
[null,null,null,null,{"$f":"CONCATENATE(Homework[[#This Row],[Patient Name]],\": \",Homework[[#This Row],[Chart]])","v":": "},{"$f":"IF(ISBLANK(Homework[[#This Row],[Date]]),\"\",UPPER(TEXT(Homework[[#This Row],[Date]],\"ddd\")))","v":""},{"$f":"IF(ISBLANK(Homework[[#This Row],[Date]]),\"\",UPPER(TEXT(Homework[[#This Row],[Date]],\"mmm\")))","v":""}]
[null,null,null,null,{"$f":"CONCATENATE(Homework[[#This Row],[Patient Name]],\": \",Homework[[#This Row],[Chart]])","v":": "},{"$f":"IF(ISBLANK(Homework[[#This Row],[Date]]),\"\",UPPER(TEXT(Homework[[#This Row],[Date]],\"ddd\")))","v":""},{"$f":"IF(ISBLANK(Homework[[#This Row],[Date]]),\"\",UPPER(TEXT(Homework[[#This Row],[Date]],\"mmm\")))","v":""}]
[null,null,null,null,{"$f":"CONCATENATE(Homework[[#This Row],[Patient Name]],\": \",Homework[[#This Row],[Chart]])","v":": "},{"$f":"IF(ISBLANK(Homework[[#This Row],[Date]]),\"\",UPPER(TEXT(Homework[[#This Row],[Date]],\"ddd\")))","v":""},{"$f":"IF(ISBLANK(Homework[[#This Row],[Date]]),\"\",UPPER(TEXT(Homework[[#This Row],[Date]],\"mmm\")))","v":""}]
[null,null,null,null,{"$f":"CONCATENATE(Homework[[#This Row],[Patient Name]],\": \",Homework[[#This Row],[Chart]])","v":": "},{"$f":"IF(ISBLANK(Homework[[#This Row],[Date]]),\"\",UPPER(TEXT(Homework[[#This Row],[Date]],\"ddd\")))","v":""},{"$f":"IF(ISBLANK(Homework[[#This Row],[Date]]),\"\",UPPER(TEXT(Homework[[#This Row],[Date]],\"mmm\")))","v":""}]
[null,null,null,null,{"$f":"CONCATENATE(Homework[[#This Row],[Patient Name]],\": \",Homework[[#This Row],[Chart]])","v":": "},{"$f":"IF(ISBLANK(Homework[[#This Row],[Date]]),\"\",UPPER(TEXT(Homework[[#This Row],[Date]],\"ddd\")))","v":""},{"$f":"IF(ISBLANK(Homework[[#This Row],[Date]]),\"\",UPPER(TEXT(Homework[[#This Row],[Date]],\"mmm\")))","v":""}]
[null,null,null,null,{"$f":"CONCATENATE(Homework[[#This Row],[Patient Name]],\": \",Homework[[#This Row],[Chart]])","v":": "},{"$f":"IF(ISBLANK(Homework[[#This Row],[Date]]),\"\",UPPER(TEXT(Homework[[#This Row],[Date]],\"ddd\")))","v":""},{"$f":"IF(ISBLANK(Homework[[#This Row],[Date]]),\"\",UPPER(TEXT(Homework[[#This Row],[Date]],\"mmm\")))","v":""}]
[null,null,null,null,{"$f":"CONCATENATE(Homework[[#This Row],[Patient Name]],\": \",Homework[[#This Row],[Chart]])","v":": "},{"$f":"IF(ISBLANK(Homework[[#This Row],[Date]]),\"\",UPPER(TEXT(Homework[[#This Row],[Date]],\"ddd\")))","v":""},{"$f":"IF(ISBLANK(Homework[[#This Row],[Date]]),\"\",UPPER(TEXT(Homework[[#This Row],[Date]],\"mmm\")))","v":""}]
[null,null,null,null,{"$f":"CONCATENATE(Homework[[#This Row],[Patient Name]],\": \",Homework[[#This Row],[Chart]])","v":": "},{"$f":"IF(ISBLANK(Homework[[#This Row],[Date]]),\"\",UPPER(TEXT(Homework[[#This Row],[Date]],\"ddd\")))","v":""},{"$f":"IF(ISBLANK(Homework[[#This Row],[Date]]),\"\",UPPER(TEXT(Homework[[#This Row],[Date]],\"mmm\")))","v":""}]
[null,null,null,null,{"$f":"CONCATENATE(Homework[[#This Row],[Patient Name]],\": \",Homework[[#This Row],[Chart]])","v":": "},{"$f":"IF(ISBLANK(Homework[[#This Row],[Date]]),\"\",UPPER(TEXT(Homework[[#This Row],[Date]],\"ddd\")))","v":""},{"$f":"IF(ISBLANK(Homework[[#This Row],[Date]]),\"\",UPPER(TEXT(Homework[[#This Row],[Date]],\"mmm\")))","v":""}]
[null,null,null,null,{"$f":"CONCATENATE(Homework[[#This Row],[Patient Name]],\": \",Homework[[#This Row],[Chart]])","v":": "},{"$f":"IF(ISBLANK(Homework[[#This Row],[Date]]),\"\",UPPER(TEXT(Homework[[#This Row],[Date]],\"ddd\")))","v":""},{"$f":"IF(ISBLANK(Homework[[#This Row],[Date]]),\"\",UPPER(TEXT(Homework[[#This Row],[Date]],\"mmm\")))","v":""}]
[null,null,null,null,{"$f":"CONCATENATE(Homework[[#This Row],[Patient Name]],\": \",Homework[[#This Row],[Chart]])","v":": "},{"$f":"IF(ISBLANK(Homework[[#This Row],[Date]]),\"\",UPPER(TEXT(Homework[[#This Row],[Date]],\"ddd\")))","v":""},{"$f":"IF(ISBLANK(Homework[[#This Row],[Date]]),\"\",UPPER(TEXT(Homework[[#This Row],[Date]],\"mmm\")))","v":""}]
[null,null,null,null,{"$f":"CONCATENATE(Homework[[#This Row],[Patient Name]],\": \",Homework[[#This Row],[Chart]])","v":": "},{"$f":"IF(ISBLANK(Homework[[#This Row],[Date]]),\"\",UPPER(TEXT(Homework[[#This Row],[Date]],\"ddd\")))","v":""},{"$f":"IF(ISBLANK(Homework[[#This Row],[Date]]),\"\",UPPER(TEXT(Homework[[#This Row],[Date]],\"mmm\")))","v":""}]
[null,null,null,null,{"$f":"CONCATENATE(Homework[[#This Row],[Patient Name]],\": \",Homework[[#This Row],[Chart]])","v":": "},{"$f":"IF(ISBLANK(Homework[[#This Row],[Date]]),\"\",UPPER(TEXT(Homework[[#This Row],[Date]],\"ddd\")))","v":""},{"$f":"IF(ISBLANK(Homework[[#This Row],[Date]]),\"\",UPPER(TEXT(Homework[[#This Row],[Date]],\"mmm\")))","v":""}]
[null,null,null,null,{"$f":"CONCATENATE(Homework[[#This Row],[Patient Name]],\": \",Homework[[#This Row],[Chart]])","v":": "},{"$f":"IF(ISBLANK(Homework[[#This Row],[Date]]),\"\",UPPER(TEXT(Homework[[#This Row],[Date]],\"ddd\")))","v":""},{"$f":"IF(ISBLANK(Homework[[#This Row],[Date]]),\"\",UPPER(TEXT(Homework[[#This Row],[Date]],\"mmm\")))","v":""}]
[null,null,null,null,{"$f":"CONCATENATE(Homework[[#This Row],[Patient Name]],\": \",Homework[[#This Row],[Chart]])","v":": "},{"$f":"IF(ISBLANK(Homework[[#This Row],[Date]]),\"\",UPPER(TEXT(Homework[[#This Row],[Date]],\"ddd\")))","v":""},{"$f":"IF(ISBLANK(Homework[[#This Row],[Date]]),\"\",UPPER(TEXT(Homework[[#This Row],[Date]],\"mmm\")))","v":""}]
[null,null,null,null,{"$f":"CONCATENATE(Homework[[#This Row],[Patient Name]],\": \",Homework[[#This Row],[Chart]])","v":": "},{"$f":"IF(ISBLANK(Homework[[#This Row],[Date]]),\"\",UPPER(TEXT(Homework[[#This Row],[Date]],\"ddd\")))","v":""},{"$f":"IF(ISBLANK(Homework[[#This Row],[Date]]),\"\",UPPER(TEXT(Homework[[#This Row],[Date]],\"mmm\")))","v":""}]
[null,null,null,null,{"$f":"CONCATENATE(Homework[[#This Row],[Patient Name]],\": \",Homework[[#This Row],[Chart]])","v":": "},{"$f":"IF(ISBLANK(Homework[[#This Row],[Date]]),\"\",UPPER(TEXT(Homework[[#This Row],[Date]],\"ddd\")))","v":""},{"$f":"IF(ISBLANK(Homework[[#This Row],[Date]]),\"\",UPPER(TEXT(Homework[[#This Row],[Date]],\"mmm\")))","v":""}]
[null,null,null,null,{"$f":"CONCATENATE(Homework[[#This Row],[Patient Name]],\": \",Homework[[#This Row],[Chart]])","v":": "},{"$f":"IF(ISBLANK(Homework[[#This Row],[Date]]),\"\",UPPER(TEXT(Homework[[#This Row],[Date]],\"ddd\")))","v":""},{"$f":"IF(ISBLANK(Homework[[#This Row],[Date]]),\"\",UPPER(TEXT(Homework[[#This Row],[Date]],\"mmm\")))","v":""}]
[null,null,null,null,{"$f":"CONCATENATE(Homework[[#This Row],[Patient Name]],\": \",Homework[[#This Row],[Chart]])","v":": "},{"$f":"IF(ISBLANK(Homework[[#This Row],[Date]]),\"\",UPPER(TEXT(Homework[[#This Row],[Date]],\"ddd\")))","v":""},{"$f":"IF(ISBLANK(Homework[[#This Row],[Date]]),\"\",UPPER(TEXT(Homework[[#This Row],[Date]],\"mmm\")))","v":""}]
[null,null,null,null,{"$f":"CONCATENATE(Homework[[#This Row],[Patient Name]],\": \",Homework[[#This Row],[Chart]])","v":": "},{"$f":"IF(ISBLANK(Homework[[#This Row],[Date]]),\"\",UPPER(TEXT(Homework[[#This Row],[Date]],\"ddd\")))","v":""},{"$f":"IF(ISBLANK(Homework[[#This Row],[Date]]),\"\",UPPER(TEXT(Homework[[#This Row],[Date]],\"mmm\")))","v":""}]
[null,null,null,null,{"$f":"CONCATENATE(Homework[[#This Row],[Patient Name]],\": \",Homework[[#This Row],[Chart]])","v":": "},{"$f":"IF(ISBLANK(Homework[[#This Row],[Date]]),\"\",UPPER(TEXT(Homework[[#This Row],[Date]],\"ddd\")))","v":""},{"$f":"IF(ISBLANK(Homework[[#This Row],[Date]]),\"\",UPPER(TEXT(Homework[[#This Row],[Date]],\"mmm\")))","v":""}]
[null,null,null,null,{"$f":"CONCATENATE(Homework[[#This Row],[Patient Name]],\": \",Homework[[#This Row],[Chart]])","v":": "},{"$f":"IF(ISBLANK(Homework[[#This Row],[Date]]),\"\",UPPER(TEXT(Homework[[#This Row],[Date]],\"ddd\")))","v":""},{"$f":"IF(ISBLANK(Homework[[#This Row],[Date]]),\"\",UPPER(TEXT(Homework[[#This Row],[Date]],\"mmm\")))","v":""}]
[null,null,null,null,{"$f":"CONCATENATE(Homework[[#This Row],[Patient Name]],\": \",Homework[[#This Row],[Chart]])","v":": "},{"$f":"IF(ISBLANK(Homework[[#This Row],[Date]]),\"\",UPPER(TEXT(Homework[[#This Row],[Date]],\"ddd\")))","v":""},{"$f":"IF(ISBLANK(Homework[[#This Row],[Date]]),\"\",UPPER(TEXT(Homework[[#This Row],[Date]],\"mmm\")))","v":""}]
[null,null,null,null,{"$f":"CONCATENATE(Homework[[#This Row],[Patient Name]],\": \",Homework[[#This Row],[Chart]])","v":": "},{"$f":"IF(ISBLANK(Homework[[#This Row],[Date]]),\"\",UPPER(TEXT(Homework[[#This Row],[Date]],\"ddd\")))","v":""},{"$f":"IF(ISBLANK(Homework[[#This Row],[Date]]),\"\",UPPER(TEXT(Homework[[#This Row],[Date]],\"mmm\")))","v":""}]
[null,null,null,null,{"$f":"CONCATENATE(Homework[[#This Row],[Patient Name]],\": \",Homework[[#This Row],[Chart]])","v":": "},{"$f":"IF(ISBLANK(Homework[[#This Row],[Date]]),\"\",UPPER(TEXT(Homework[[#This Row],[Date]],\"ddd\")))","v":""},{"$f":"IF(ISBLANK(Homework[[#This Row],[Date]]),\"\",UPPER(TEXT(Homework[[#This Row],[Date]],\"mmm\")))","v":""}]
[null,null,null,null,{"$f":"CONCATENATE(Homework[[#This Row],[Patient Name]],\": \",Homework[[#This Row],[Chart]])","v":": "},{"$f":"IF(ISBLANK(Homework[[#This Row],[Date]]),\"\",UPPER(TEXT(Homework[[#This Row],[Date]],\"ddd\")))","v":""},{"$f":"IF(ISBLANK(Homework[[#This Row],[Date]]),\"\",UPPER(TEXT(Homework[[#This Row],[Date]],\"mmm\")))","v":""}]
[null,null,null,null,{"$f":"CONCATENATE(Homework[[#This Row],[Patient Name]],\": \",Homework[[#This Row],[Chart]])","v":": "},{"$f":"IF(ISBLANK(Homework[[#This Row],[Date]]),\"\",UPPER(TEXT(Homework[[#This Row],[Date]],\"ddd\")))","v":""},{"$f":"IF(ISBLANK(Homework[[#This Row],[Date]]),\"\",UPPER(TEXT(Homework[[#This Row],[Date]],\"mmm\")))","v":""}]
[null,null,null,null,{"$f":"CONCATENATE(Homework[[#This Row],[Patient Name]],\": \",Homework[[#This Row],[Chart]])","v":": "},{"$f":"IF(ISBLANK(Homework[[#This Row],[Date]]),\"\",UPPER(TEXT(Homework[[#This Row],[Date]],\"ddd\")))","v":""},{"$f":"IF(ISBLANK(Homework[[#This Row],[Date]]),\"\",UPPER(TEXT(Homework[[#This Row],[Date]],\"mmm\")))","v":""}]
[null,null,null,null,{"$f":"CONCATENATE(Homework[[#This Row],[Patient Name]],\": \",Homework[[#This Row],[Chart]])","v":": "},{"$f":"IF(ISBLANK(Homework[[#This Row],[Date]]),\"\",UPPER(TEXT(Homework[[#This Row],[Date]],\"ddd\")))","v":""},{"$f":"IF(ISBLANK(Homework[[#This Row],[Date]]),\"\",UPPER(TEXT(Homework[[#This Row],[Date]],\"mmm\")))","v":""}]
[null,null,null,null,{"$f":"CONCATENATE(Homework[[#This Row],[Patient Name]],\": \",Homework[[#This Row],[Chart]])","v":": "},{"$f":"IF(ISBLANK(Homework[[#This Row],[Date]]),\"\",UPPER(TEXT(Homework[[#This Row],[Date]],\"ddd\")))","v":""},{"$f":"IF(ISBLANK(Homework[[#This Row],[Date]]),\"\",UPPER(TEXT(Homework[[#This Row],[Date]],\"mmm\")))","v":""}]
[null,null,null,null,{"$f":"CONCATENATE(Homework[[#This Row],[Patient Name]],\": \",Homework[[#This Row],[Chart]])","v":": "},{"$f":"IF(ISBLANK(Homework[[#This Row],[Date]]),\"\",UPPER(TEXT(Homework[[#This Row],[Date]],\"ddd\")))","v":""},{"$f":"IF(ISBLANK(Homework[[#This Row],[Date]]),\"\",UPPER(TEXT(Homework[[#This Row],[Date]],\"mmm\")))","v":""}]
[null,null,null,null,{"$f":"CONCATENATE(Homework[[#This Row],[Patient Name]],\": \",Homework[[#This Row],[Chart]])","v":": "},{"$f":"IF(ISBLANK(Homework[[#This Row],[Date]]),\"\",UPPER(TEXT(Homework[[#This Row],[Date]],\"ddd\")))","v":""},{"$f":"IF(ISBLANK(Homework[[#This Row],[Date]]),\"\",UPPER(TEXT(Homework[[#This Row],[Date]],\"mmm\")))","v":""}]
[null,null,null,null,{"$f":"CONCATENATE(Homework[[#This Row],[Patient Name]],\": \",Homework[[#This Row],[Chart]])","v":": "},{"$f":"IF(ISBLANK(Homework[[#This Row],[Date]]),\"\",UPPER(TEXT(Homework[[#This Row],[Date]],\"ddd\")))","v":""},{"$f":"IF(ISBLANK(Homework[[#This Row],[Date]]),\"\",UPPER(TEXT(Homework[[#This Row],[Date]],\"mmm\")))","v":""}]
[null,null,null,null,{"$f":"CONCATENATE(Homework[[#This Row],[Patient Name]],\": \",Homework[[#This Row],[Chart]])","v":": "},{"$f":"IF(ISBLANK(Homework[[#This Row],[Date]]),\"\",UPPER(TEXT(Homework[[#This Row],[Date]],\"ddd\")))","v":""},{"$f":"IF(ISBLANK(Homework[[#This Row],[Date]]),\"\",UPPER(TEXT(Homework[[#This Row],[Date]],\"mmm\")))","v":""}]
[null,null,null,null,{"$f":"CONCATENATE(Homework[[#This Row],[Patient Name]],\": \",Homework[[#This Row],[Chart]])","v":": "},{"$f":"IF(ISBLANK(Homework[[#This Row],[Date]]),\"\",UPPER(TEXT(Homework[[#This Row],[Date]],\"ddd\")))","v":""},{"$f":"IF(ISBLANK(Homework[[#This Row],[Date]]),\"\",UPPER(TEXT(Homework[[#This Row],[Date]],\"mmm\")))","v":""}]
[null,null,null,null,{"$f":"CONCATENATE(Homework[[#This Row],[Patient Name]],\": \",Homework[[#This Row],[Chart]])","v":": "},{"$f":"IF(ISBLANK(Homework[[#This Row],[Date]]),\"\",UPPER(TEXT(Homework[[#This Row],[Date]],\"ddd\")))","v":""},{"$f":"IF(ISBLANK(Homework[[#This Row],[Date]]),\"\",UPPER(TEXT(Homework[[#This Row],[Date]],\"mmm\")))","v":""}]
[null,null,null,null,{"$f":"CONCATENATE(Homework[[#This Row],[Patient Name]],\": \",Homework[[#This Row],[Chart]])","v":": "},{"$f":"IF(ISBLANK(Homework[[#This Row],[Date]]),\"\",UPPER(TEXT(Homework[[#This Row],[Date]],\"ddd\")))","v":""},{"$f":"IF(ISBLANK(Homework[[#This Row],[Date]]),\"\",UPPER(TEXT(Homework[[#This Row],[Date]],\"mmm\")))","v":""}]
[null,null,null,null,{"$f":"CONCATENATE(Homework[[#This Row],[Patient Name]],\": \",Homework[[#This Row],[Chart]])","v":": "},{"$f":"IF(ISBLANK(Homework[[#This Row],[Date]]),\"\",UPPER(TEXT(Homework[[#This Row],[Date]],\"ddd\")))","v":""},{"$f":"IF(ISBLANK(Homework[[#This Row],[Date]]),\"\",UPPER(TEXT(Homework[[#This Row],[Date]],\"mmm\")))","v":""}]
[null,null,null,null,{"$f":"CONCATENATE(Homework[[#This Row],[Patient Name]],\": \",Homework[[#This Row],[Chart]])","v":": "},{"$f":"IF(ISBLANK(Homework[[#This Row],[Date]]),\"\",UPPER(TEXT(Homework[[#This Row],[Date]],\"ddd\")))","v":""},{"$f":"IF(ISBLANK(Homework[[#This Row],[Date]]),\"\",UPPER(TEXT(Homework[[#This Row],[Date]],\"mmm\")))","v":""}]
[null,null,null,null,{"$f":"CONCATENATE(Homework[[#This Row],[Patient Name]],\": \",Homework[[#This Row],[Chart]])","v":": "},{"$f":"IF(ISBLANK(Homework[[#This Row],[Date]]),\"\",UPPER(TEXT(Homework[[#This Row],[Date]],\"ddd\")))","v":""},{"$f":"IF(ISBLANK(Homework[[#This Row],[Date]]),\"\",UPPER(TEXT(Homework[[#This Row],[Date]],\"mmm\")))","v":""}]
[null,null,null,null,{"$f":"CONCATENATE(Homework[[#This Row],[Patient Name]],\": \",Homework[[#This Row],[Chart]])","v":": "},{"$f":"IF(ISBLANK(Homework[[#This Row],[Date]]),\"\",UPPER(TEXT(Homework[[#This Row],[Date]],\"ddd\")))","v":""},{"$f":"IF(ISBLANK(Homework[[#This Row],[Date]]),\"\",UPPER(TEXT(Homework[[#This Row],[Date]],\"mmm\")))","v":""}]
[null,null,null,null,{"$f":"CONCATENATE(Homework[[#This Row],[Patient Name]],\": \",Homework[[#This Row],[Chart]])","v":": "},{"$f":"IF(ISBLANK(Homework[[#This Row],[Date]]),\"\",UPPER(TEXT(Homework[[#This Row],[Date]],\"ddd\")))","v":""},{"$f":"IF(ISBLANK(Homework[[#This Row],[Date]]),\"\",UPPER(TEXT(Homework[[#This Row],[Date]],\"mmm\")))","v":""}]
[null,null,null,null,{"$f":"CONCATENATE(Homework[[#This Row],[Patient Name]],\": \",Homework[[#This Row],[Chart]])","v":": "},{"$f":"IF(ISBLANK(Homework[[#This Row],[Date]]),\"\",UPPER(TEXT(Homework[[#This Row],[Date]],\"ddd\")))","v":""},{"$f":"IF(ISBLANK(Homework[[#This Row],[Date]]),\"\",UPPER(TEXT(Homework[[#This Row],[Date]],\"mmm\")))","v":""}]
[null,null,null,null,{"$f":"CONCATENATE(Homework[[#This Row],[Patient Name]],\": \",Homework[[#This Row],[Chart]])","v":": "},{"$f":"IF(ISBLANK(Homework[[#This Row],[Date]]),\"\",UPPER(TEXT(Homework[[#This Row],[Date]],\"ddd\")))","v":""},{"$f":"IF(ISBLANK(Homework[[#This Row],[Date]]),\"\",UPPER(TEXT(Homework[[#This Row],[Date]],\"mmm\")))","v":""}]
[null,null,null,null,{"$f":"CONCATENATE(Homework[[#This Row],[Patient Name]],\": \",Homework[[#This Row],[Chart]])","v":": "},{"$f":"IF(ISBLANK(Homework[[#This Row],[Date]]),\"\",UPPER(TEXT(Homework[[#This Row],[Date]],\"ddd\")))","v":""},{"$f":"IF(ISBLANK(Homework[[#This Row],[Date]]),\"\",UPPER(TEXT(Homework[[#This Row],[Date]],\"mmm\")))","v":""}]
[null,null,null,null,{"$f":"CONCATENATE(Homework[[#This Row],[Patient Name]],\": \",Homework[[#This Row],[Chart]])","v":": "},{"$f":"IF(ISBLANK(Homework[[#This Row],[Date]]),\"\",UPPER(TEXT(Homework[[#This Row],[Date]],\"ddd\")))","v":""},{"$f":"IF(ISBLANK(Homework[[#This Row],[Date]]),\"\",UPPER(TEXT(Homework[[#This Row],[Date]],\"mmm\")))","v":""}]
[null,null,null,null,{"$f":"CONCATENATE(Homework[[#This Row],[Patient Name]],\": \",Homework[[#This Row],[Chart]])","v":": "},{"$f":"IF(ISBLANK(Homework[[#This Row],[Date]]),\"\",UPPER(TEXT(Homework[[#This Row],[Date]],\"ddd\")))","v":""},{"$f":"IF(ISBLANK(Homework[[#This Row],[Date]]),\"\",UPPER(TEXT(Homework[[#This Row],[Date]],\"mmm\")))","v":""}]
[null,null,null,null,{"$f":"CONCATENATE(Homework[[#This Row],[Patient Name]],\": \",Homework[[#This Row],[Chart]])","v":": "},{"$f":"IF(ISBLANK(Homework[[#This Row],[Date]]),\"\",UPPER(TEXT(Homework[[#This Row],[Date]],\"ddd\")))","v":""},{"$f":"IF(ISBLANK(Homework[[#This Row],[Date]]),\"\",UPPER(TEXT(Homework[[#This Row],[Date]],\"mmm\")))","v":""}]
[null,null,null,null,{"$f":"CONCATENATE(Homework[[#This Row],[Patient Name]],\": \",Homework[[#This Row],[Chart]])","v":": "},{"$f":"IF(ISBLANK(Homework[[#This Row],[Date]]),\"\",UPPER(TEXT(Homework[[#This Row],[Date]],\"ddd\")))","v":""},{"$f":"IF(ISBLANK(Homework[[#This Row],[Date]]),\"\",UPPER(TEXT(Homework[[#This Row],[Date]],\"mmm\")))","v":""}]
[null,null,null,null,{"$f":"CONCATENATE(Homework[[#This Row],[Patient Name]],\": \",Homework[[#This Row],[Chart]])","v":": "},{"$f":"IF(ISBLANK(Homework[[#This Row],[Date]]),\"\",UPPER(TEXT(Homework[[#This Row],[Date]],\"ddd\")))","v":""},{"$f":"IF(ISBLANK(Homework[[#This Row],[Date]]),\"\",UPPER(TEXT(Homework[[#This Row],[Date]],\"mmm\")))","v":""}]
[null,null,null,null,{"$f":"CONCATENATE(Homework[[#This Row],[Patient Name]],\": \",Homework[[#This Row],[Chart]])","v":": "},{"$f":"IF(ISBLANK(Homework[[#This Row],[Date]]),\"\",UPPER(TEXT(Homework[[#This Row],[Date]],\"ddd\")))","v":""},{"$f":"IF(ISBLANK(Homework[[#This Row],[Date]]),\"\",UPPER(TEXT(Homework[[#This Row],[Date]],\"mmm\")))","v":""}]
[null,null,null,null,{"$f":"CONCATENATE(Homework[[#This Row],[Patient Name]],\": \",Homework[[#This Row],[Chart]])","v":": "},{"$f":"IF(ISBLANK(Homework[[#This Row],[Date]]),\"\",UPPER(TEXT(Homework[[#This Row],[Date]],\"ddd\")))","v":""},{"$f":"IF(ISBLANK(Homework[[#This Row],[Date]]),\"\",UPPER(TEXT(Homework[[#This Row],[Date]],\"mmm\")))","v":""}]
[null,null,null,null,{"$f":"CONCATENATE(Homework[[#This Row],[Patient Name]],\": \",Homework[[#This Row],[Chart]])","v":": "},{"$f":"IF(ISBLANK(Homework[[#This Row],[Date]]),\"\",UPPER(TEXT(Homework[[#This Row],[Date]],\"ddd\")))","v":""},{"$f":"IF(ISBLANK(Homework[[#This Row],[Date]]),\"\",UPPER(TEXT(Homework[[#This Row],[Date]],\"mmm\")))","v":""}]
[null,null,null,null,{"$f":"CONCATENATE(Homework[[#This Row],[Patient Name]],\": \",Homework[[#This Row],[Chart]])","v":": "},{"$f":"IF(ISBLANK(Homework[[#This Row],[Date]]),\"\",UPPER(TEXT(Homework[[#This Row],[Date]],\"ddd\")))","v":""},{"$f":"IF(ISBLANK(Homework[[#This Row],[Date]]),\"\",UPPER(TEXT(Homework[[#This Row],[Date]],\"mmm\")))","v":""}]
[null,null,null,null,{"$f":"CONCATENATE(Homework[[#This Row],[Patient Name]],\": \",Homework[[#This Row],[Chart]])","v":": "},{"$f":"IF(ISBLANK(Homework[[#This Row],[Date]]),\"\",UPPER(TEXT(Homework[[#This Row],[Date]],\"ddd\")))","v":""},{"$f":"IF(ISBLANK(Homework[[#This Row],[Date]]),\"\",UPPER(TEXT(Homework[[#This Row],[Date]],\"mmm\")))","v":""}]
[null,null,null,null,{"$f":"CONCATENATE(Homework[[#This Row],[Patient Name]],\": \",Homework[[#This Row],[Chart]])","v":": "},{"$f":"IF(ISBLANK(Homework[[#This Row],[Date]]),\"\",UPPER(TEXT(Homework[[#This Row],[Date]],\"ddd\")))","v":""},{"$f":"IF(ISBLANK(Homework[[#This Row],[Date]]),\"\",UPPER(TEXT(Homework[[#This Row],[Date]],\"mmm\")))","v":""}]
[null,null,null,null,{"$f":"CONCATENATE(Homework[[#This Row],[Patient Name]],\": \",Homework[[#This Row],[Chart]])","v":": "},{"$f":"IF(ISBLANK(Homework[[#This Row],[Date]]),\"\",UPPER(TEXT(Homework[[#This Row],[Date]],\"ddd\")))","v":""},{"$f":"IF(ISBLANK(Homework[[#This Row],[Date]]),\"\",UPPER(TEXT(Homework[[#This Row],[Date]],\"mmm\")))","v":""}]
[null,null,null,null,{"$f":"CONCATENATE(Homework[[#This Row],[Patient Name]],\": \",Homework[[#This Row],[Chart]])","v":": "},{"$f":"IF(ISBLANK(Homework[[#This Row],[Date]]),\"\",UPPER(TEXT(Homework[[#This Row],[Date]],\"ddd\")))","v":""},{"$f":"IF(ISBLANK(Homework[[#This Row],[Date]]),\"\",UPPER(TEXT(Homework[[#This Row],[Date]],\"mmm\")))","v":""}]
[null,null,null,null,{"$f":"CONCATENATE(Homework[[#This Row],[Patient Name]],\": \",Homework[[#This Row],[Chart]])","v":": "},{"$f":"IF(ISBLANK(Homework[[#This Row],[Date]]),\"\",UPPER(TEXT(Homework[[#This Row],[Date]],\"ddd\")))","v":""},{"$f":"IF(ISBLANK(Homework[[#This Row],[Date]]),\"\",UPPER(TEXT(Homework[[#This Row],[Date]],\"mmm\")))","v":""}]
[null,null,null,null,{"$f":"CONCATENATE(Homework[[#This Row],[Patient Name]],\": \",Homework[[#This Row],[Chart]])","v":": "},{"$f":"IF(ISBLANK(Homework[[#This Row],[Date]]),\"\",UPPER(TEXT(Homework[[#This Row],[Date]],\"ddd\")))","v":""},{"$f":"IF(ISBLANK(Homework[[#This Row],[Date]]),\"\",UPPER(TEXT(Homework[[#This Row],[Date]],\"mmm\")))","v":""}]
[null,null,null,null,{"$f":"CONCATENATE(Homework[[#This Row],[Patient Name]],\": \",Homework[[#This Row],[Chart]])","v":": "},{"$f":"IF(ISBLANK(Homework[[#This Row],[Date]]),\"\",UPPER(TEXT(Homework[[#This Row],[Date]],\"ddd\")))","v":""},{"$f":"IF(ISBLANK(Homework[[#This Row],[Date]]),\"\",UPPER(TEXT(Homework[[#This Row],[Date]],\"mmm\")))","v":""}]
[null,null,null,null,{"$f":"CONCATENATE(Homework[[#This Row],[Patient Name]],\": \",Homework[[#This Row],[Chart]])","v":": "},{"$f":"IF(ISBLANK(Homework[[#This Row],[Date]]),\"\",UPPER(TEXT(Homework[[#This Row],[Date]],\"ddd\")))","v":""},{"$f":"IF(ISBLANK(Homework[[#This Row],[Date]]),\"\",UPPER(TEXT(Homework[[#This Row],[Date]],\"mmm\")))","v":""}]
[null,null,null,null,{"$f":"CONCATENATE(Homework[[#This Row],[Patient Name]],\": \",Homework[[#This Row],[Chart]])","v":": "},{"$f":"IF(ISBLANK(Homework[[#This Row],[Date]]),\"\",UPPER(TEXT(Homework[[#This Row],[Date]],\"ddd\")))","v":""},{"$f":"IF(ISBLANK(Homework[[#This Row],[Date]]),\"\",UPPER(TEXT(Homework[[#This Row],[Date]],\"mmm\")))","v":""}]
[null,null,null,null,{"$f":"CONCATENATE(Homework[[#This Row],[Patient Name]],\": \",Homework[[#This Row],[Chart]])","v":": "},{"$f":"IF(ISBLANK(Homework[[#This Row],[Date]]),\"\",UPPER(TEXT(Homework[[#This Row],[Date]],\"ddd\")))","v":""},{"$f":"IF(ISBLANK(Homework[[#This Row],[Date]]),\"\",UPPER(TEXT(Homework[[#This Row],[Date]],\"mmm\")))","v":""}]
[null,null,null,null,{"$f":"CONCATENATE(Homework[[#This Row],[Patient Name]],\": \",Homework[[#This Row],[Chart]])","v":": "},{"$f":"IF(ISBLANK(Homework[[#This Row],[Date]]),\"\",UPPER(TEXT(Homework[[#This Row],[Date]],\"ddd\")))","v":""},{"$f":"IF(ISBLANK(Homework[[#This Row],[Date]]),\"\",UPPER(TEXT(Homework[[#This Row],[Date]],\"mmm\")))","v":""}]
[null,null,null,null,{"$f":"CONCATENATE(Homework[[#This Row],[Patient Name]],\": \",Homework[[#This Row],[Chart]])","v":": "},{"$f":"IF(ISBLANK(Homework[[#This Row],[Date]]),\"\",UPPER(TEXT(Homework[[#This Row],[Date]],\"ddd\")))","v":""},{"$f":"IF(ISBLANK(Homework[[#This Row],[Date]]),\"\",UPPER(TEXT(Homework[[#This Row],[Date]],\"mmm\")))","v":""}]
[null,null,null,null,{"$f":"CONCATENATE(Homework[[#This Row],[Patient Name]],\": \",Homework[[#This Row],[Chart]])","v":": "},{"$f":"IF(ISBLANK(Homework[[#This Row],[Date]]),\"\",UPPER(TEXT(Homework[[#This Row],[Date]],\"ddd\")))","v":""},{"$f":"IF(ISBLANK(Homework[[#This Row],[Date]]),\"\",UPPER(TEXT(Homework[[#This Row],[Date]],\"mmm\")))","v":""}]
[null,null,null,null,{"$f":"CONCATENATE(Homework[[#This Row],[Patient Name]],\": \",Homework[[#This Row],[Chart]])","v":": "},{"$f":"IF(ISBLANK(Homework[[#This Row],[Date]]),\"\",UPPER(TEXT(Homework[[#This Row],[Date]],\"ddd\")))","v":""},{"$f":"IF(ISBLANK(Homework[[#This Row],[Date]]),\"\",UPPER(TEXT(Homework[[#This Row],[Date]],\"mmm\")))","v":""}]
[null,null,null,null,{"$f":"CONCATENATE(Homework[[#This Row],[Patient Name]],\": \",Homework[[#This Row],[Chart]])","v":": "},{"$f":"IF(ISBLANK(Homework[[#This Row],[Date]]),\"\",UPPER(TEXT(Homework[[#This Row],[Date]],\"ddd\")))","v":""},{"$f":"IF(ISBLANK(Homework[[#This Row],[Date]]),\"\",UPPER(TEXT(Homework[[#This Row],[Date]],\"mmm\")))","v":""}]
[null,null,null,null,{"$f":"CONCATENATE(Homework[[#This Row],[Patient Name]],\": \",Homework[[#This Row],[Chart]])","v":": "},{"$f":"IF(ISBLANK(Homework[[#This Row],[Date]]),\"\",UPPER(TEXT(Homework[[#This Row],[Date]],\"ddd\")))","v":""},{"$f":"IF(ISBLANK(Homework[[#This Row],[Date]]),\"\",UPPER(TEXT(Homework[[#This Row],[Date]],\"mmm\")))","v":""}]
[null,null,null,null,{"$f":"CONCATENATE(Homework[[#This Row],[Patient Name]],\": \",Homework[[#This Row],[Chart]])","v":": "},{"$f":"IF(ISBLANK(Homework[[#This Row],[Date]]),\"\",UPPER(TEXT(Homework[[#This Row],[Date]],\"ddd\")))","v":""},{"$f":"IF(ISBLANK(Homework[[#This Row],[Date]]),\"\",UPPER(TEXT(Homework[[#This Row],[Date]],\"mmm\")))","v":""}]
[null,null,null,null,{"$f":"CONCATENATE(Homework[[#This Row],[Patient Name]],\": \",Homework[[#This Row],[Chart]])","v":": "},{"$f":"IF(ISBLANK(Homework[[#This Row],[Date]]),\"\",UPPER(TEXT(Homework[[#This Row],[Date]],\"ddd\")))","v":""},{"$f":"IF(ISBLANK(Homework[[#This Row],[Date]]),\"\",UPPER(TEXT(Homework[[#This Row],[Date]],\"mmm\")))","v":""}]
[null,null,null,null,{"$f":"CONCATENATE(Homework[[#This Row],[Patient Name]],\": \",Homework[[#This Row],[Chart]])","v":": "},{"$f":"IF(ISBLANK(Homework[[#This Row],[Date]]),\"\",UPPER(TEXT(Homework[[#This Row],[Date]],\"ddd\")))","v":""},{"$f":"IF(ISBLANK(Homework[[#This Row],[Date]]),\"\",UPPER(TEXT(Homework[[#This Row],[Date]],\"mmm\")))","v":""}]
[null,null,null,null,{"$f":"CONCATENATE(Homework[[#This Row],[Patient Name]],\": \",Homework[[#This Row],[Chart]])","v":": "},{"$f":"IF(ISBLANK(Homework[[#This Row],[Date]]),\"\",UPPER(TEXT(Homework[[#This Row],[Date]],\"ddd\")))","v":""},{"$f":"IF(ISBLANK(Homework[[#This Row],[Date]]),\"\",UPPER(TEXT(Homework[[#This Row],[Date]],\"mmm\")))","v":""}]
[null,null,null,null,{"$f":"CONCATENATE(Homework[[#This Row],[Patient Name]],\": \",Homework[[#This Row],[Chart]])","v":": "},{"$f":"IF(ISBLANK(Homework[[#This Row],[Date]]),\"\",UPPER(TEXT(Homework[[#This Row],[Date]],\"ddd\")))","v":""},{"$f":"IF(ISBLANK(Homework[[#This Row],[Date]]),\"\",UPPER(TEXT(Homework[[#This Row],[Date]],\"mmm\")))","v":""}]
[null,null,null,null,{"$f":"CONCATENATE(Homework[[#This Row],[Patient Name]],\": \",Homework[[#This Row],[Chart]])","v":": "},{"$f":"IF(ISBLANK(Homework[[#This Row],[Date]]),\"\",UPPER(TEXT(Homework[[#This Row],[Date]],\"ddd\")))","v":""},{"$f":"IF(ISBLANK(Homework[[#This Row],[Date]]),\"\",UPPER(TEXT(Homework[[#This Row],[Date]],\"mmm\")))","v":""}]
[null,null,null,null,{"$f":"CONCATENATE(Homework[[#This Row],[Patient Name]],\": \",Homework[[#This Row],[Chart]])","v":": "},{"$f":"IF(ISBLANK(Homework[[#This Row],[Date]]),\"\",UPPER(TEXT(Homework[[#This Row],[Date]],\"ddd\")))","v":""},{"$f":"IF(ISBLANK(Homework[[#This Row],[Date]]),\"\",UPPER(TEXT(Homework[[#This Row],[Date]],\"mmm\")))","v":""}]
[null,null,null,null,{"$f":"CONCATENATE(Homework[[#This Row],[Patient Name]],\": \",Homework[[#This Row],[Chart]])","v":": "},{"$f":"IF(ISBLANK(Homework[[#This Row],[Date]]),\"\",UPPER(TEXT(Homework[[#This Row],[Date]],\"ddd\")))","v":""},{"$f":"IF(ISBLANK(Homework[[#This Row],[Date]]),\"\",UPPER(TEXT(Homework[[#This Row],[Date]],\"mmm\")))","v":""}]
[null,null,null,null,{"$f":"CONCATENATE(Homework[[#This Row],[Patient Name]],\": \",Homework[[#This Row],[Chart]])","v":": "},{"$f":"IF(ISBLANK(Homework[[#This Row],[Date]]),\"\",UPPER(TEXT(Homework[[#This Row],[Date]],\"ddd\")))","v":""},{"$f":"IF(ISBLANK(Homework[[#This Row],[Date]]),\"\",UPPER(TEXT(Homework[[#This Row],[Date]],\"mmm\")))","v":""}]
[null,null,null,null,{"$f":"CONCATENATE(Homework[[#This Row],[Patient Name]],\": \",Homework[[#This Row],[Chart]])","v":": "},{"$f":"IF(ISBLANK(Homework[[#This Row],[Date]]),\"\",UPPER(TEXT(Homework[[#This Row],[Date]],\"ddd\")))","v":""},{"$f":"IF(ISBLANK(Homework[[#This Row],[Date]]),\"\",UPPER(TEXT(Homework[[#This Row],[Date]],\"mmm\")))","v":""}]
[null,null,null,null,{"$f":"CONCATENATE(Homework[[#This Row],[Patient Name]],\": \",Homework[[#This Row],[Chart]])","v":": "},{"$f":"IF(ISBLANK(Homework[[#This Row],[Date]]),\"\",UPPER(TEXT(Homework[[#This Row],[Date]],\"ddd\")))","v":""},{"$f":"IF(ISBLANK(Homework[[#This Row],[Date]]),\"\",UPPER(TEXT(Homework[[#This Row],[Date]],\"mmm\")))","v":""}]
[null,null,null,null,{"$f":"CONCATENATE(Homework[[#This Row],[Patient Name]],\": \",Homework[[#This Row],[Chart]])","v":": "},{"$f":"IF(ISBLANK(Homework[[#This Row],[Date]]),\"\",UPPER(TEXT(Homework[[#This Row],[Date]],\"ddd\")))","v":""},{"$f":"IF(ISBLANK(Homework[[#This Row],[Date]]),\"\",UPPER(TEXT(Homework[[#This Row],[Date]],\"mmm\")))","v":""}]
[null,null,null,null,{"$f":"CONCATENATE(Homework[[#This Row],[Patient Name]],\": \",Homework[[#This Row],[Chart]])","v":": "},{"$f":"IF(ISBLANK(Homework[[#This Row],[Date]]),\"\",UPPER(TEXT(Homework[[#This Row],[Date]],\"ddd\")))","v":""},{"$f":"IF(ISBLANK(Homework[[#This Row],[Date]]),\"\",UPPER(TEXT(Homework[[#This Row],[Date]],\"mmm\")))","v":""}]
[null,null,null,null,{"$f":"CONCATENATE(Homework[[#This Row],[Patient Name]],\": \",Homework[[#This Row],[Chart]])","v":": "},{"$f":"IF(ISBLANK(Homework[[#This Row],[Date]]),\"\",UPPER(TEXT(Homework[[#This Row],[Date]],\"ddd\")))","v":""},{"$f":"IF(ISBLANK(Homework[[#This Row],[Date]]),\"\",UPPER(TEXT(Homework[[#This Row],[Date]],\"mmm\")))","v":""}]
[null,null,null,null,{"$f":"CONCATENATE(Homework[[#This Row],[Patient Name]],\": \",Homework[[#This Row],[Chart]])","v":": "},{"$f":"IF(ISBLANK(Homework[[#This Row],[Date]]),\"\",UPPER(TEXT(Homework[[#This Row],[Date]],\"ddd\")))","v":""},{"$f":"IF(ISBLANK(Homework[[#This Row],[Date]]),\"\",UPPER(TEXT(Homework[[#This Row],[Date]],\"mmm\")))","v":""}]
[null,null,null,null,{"$f":"CONCATENATE(Homework[[#This Row],[Patient Name]],\": \",Homework[[#This Row],[Chart]])","v":": "},{"$f":"IF(ISBLANK(Homework[[#This Row],[Date]]),\"\",UPPER(TEXT(Homework[[#This Row],[Date]],\"ddd\")))","v":""},{"$f":"IF(ISBLANK(Homework[[#This Row],[Date]]),\"\",UPPER(TEXT(Homework[[#This Row],[Date]],\"mmm\")))","v":""}]
[null,null,null,null,{"$f":"CONCATENATE(Homework[[#This Row],[Patient Name]],\": \",Homework[[#This Row],[Chart]])","v":": "},{"$f":"IF(ISBLANK(Homework[[#This Row],[Date]]),\"\",UPPER(TEXT(Homework[[#This Row],[Date]],\"ddd\")))","v":""},{"$f":"IF(ISBLANK(Homework[[#This Row],[Date]]),\"\",UPPER(TEXT(Homework[[#This Row],[Date]],\"mmm\")))","v":""}]
[null,null,null,null,{"$f":"CONCATENATE(Homework[[#This Row],[Patient Name]],\": \",Homework[[#This Row],[Chart]])","v":": "},{"$f":"IF(ISBLANK(Homework[[#This Row],[Date]]),\"\",UPPER(TEXT(Homework[[#This Row],[Date]],\"ddd\")))","v":""},{"$f":"IF(ISBLANK(Homework[[#This Row],[Date]]),\"\",UPPER(TEXT(Homework[[#This Row],[Date]],\"mmm\")))","v":""}]
[null,null,null,null,{"$f":"CONCATENATE(Homework[[#This Row],[Patient Name]],\": \",Homework[[#This Row],[Chart]])","v":": "},{"$f":"IF(ISBLANK(Homework[[#This Row],[Date]]),\"\",UPPER(TEXT(Homework[[#This Row],[Date]],\"ddd\")))","v":""},{"$f":"IF(ISBLANK(Homework[[#This Row],[Date]]),\"\",UPPER(TEXT(Homework[[#This Row],[Date]],\"mmm\")))","v":""}]
[null,null,null,null,{"$f":"CONCATENATE(Homework[[#This Row],[Patient Name]],\": \",Homework[[#This Row],[Chart]])","v":": "},{"$f":"IF(ISBLANK(Homework[[#This Row],[Date]]),\"\",UPPER(TEXT(Homework[[#This Row],[Date]],\"ddd\")))","v":""},{"$f":"IF(ISBLANK(Homework[[#This Row],[Date]]),\"\",UPPER(TEXT(Homework[[#This Row],[Date]],\"mmm\")))","v":""}]
[null,null,null,null,{"$f":"CONCATENATE(Homework[[#This Row],[Patient Name]],\": \",Homework[[#This Row],[Chart]])","v":": "},{"$f":"IF(ISBLANK(Homework[[#This Row],[Date]]),\"\",UPPER(TEXT(Homework[[#This Row],[Date]],\"ddd\")))","v":""},{"$f":"IF(ISBLANK(Homework[[#This Row],[Date]]),\"\",UPPER(TEXT(Homework[[#This Row],[Date]],\"mmm\")))","v":""}]
[null,null,null,null,{"$f":"CONCATENATE(Homework[[#This Row],[Patient Name]],\": \",Homework[[#This Row],[Chart]])","v":": "},{"$f":"IF(ISBLANK(Homework[[#This Row],[Date]]),\"\",UPPER(TEXT(Homework[[#This Row],[Date]],\"ddd\")))","v":""},{"$f":"IF(ISBLANK(Homework[[#This Row],[Date]]),\"\",UPPER(TEXT(Homework[[#This Row],[Date]],\"mmm\")))","v":""}]
[null,null,null,null,{"$f":"CONCATENATE(Homework[[#This Row],[Patient Name]],\": \",Homework[[#This Row],[Chart]])","v":": "},{"$f":"IF(ISBLANK(Homework[[#This Row],[Date]]),\"\",UPPER(TEXT(Homework[[#This Row],[Date]],\"ddd\")))","v":""},{"$f":"IF(ISBLANK(Homework[[#This Row],[Date]]),\"\",UPPER(TEXT(Homework[[#This Row],[Date]],\"mmm\")))","v":""}]
[null,null,null,null,{"$f":"CONCATENATE(Homework[[#This Row],[Patient Name]],\": \",Homework[[#This Row],[Chart]])","v":": "},{"$f":"IF(ISBLANK(Homework[[#This Row],[Date]]),\"\",UPPER(TEXT(Homework[[#This Row],[Date]],\"ddd\")))","v":""},{"$f":"IF(ISBLANK(Homework[[#This Row],[Date]]),\"\",UPPER(TEXT(Homework[[#This Row],[Date]],\"mmm\")))","v":""}]
[null,null,null,null,{"$f":"CONCATENATE(Homework[[#This Row],[Patient Name]],\": \",Homework[[#This Row],[Chart]])","v":": "},{"$f":"IF(ISBLANK(Homework[[#This Row],[Date]]),\"\",UPPER(TEXT(Homework[[#This Row],[Date]],\"ddd\")))","v":""},{"$f":"IF(ISBLANK(Homework[[#This Row],[Date]]),\"\",UPPER(TEXT(Homework[[#This Row],[Date]],\"mmm\")))","v":""}]
[null,null,null,null,{"$f":"CONCATENATE(Homework[[#This Row],[Patient Name]],\": \",Homework[[#This Row],[Chart]])","v":": "},{"$f":"IF(ISBLANK(Homework[[#This Row],[Date]]),\"\",UPPER(TEXT(Homework[[#This Row],[Date]],\"ddd\")))","v":""},{"$f":"IF(ISBLANK(Homework[[#This Row],[Date]]),\"\",UPPER(TEXT(Homework[[#This Row],[Date]],\"mmm\")))","v":""}]
[null,null,null,null,{"$f":"CONCATENATE(Homework[[#This Row],[Patient Name]],\": \",Homework[[#This Row],[Chart]])","v":": "},{"$f":"IF(ISBLANK(Homework[[#This Row],[Date]]),\"\",UPPER(TEXT(Homework[[#This Row],[Date]],\"ddd\")))","v":""},{"$f":"IF(ISBLANK(Homework[[#This Row],[Date]]),\"\",UPPER(TEXT(Homework[[#This Row],[Date]],\"mmm\")))","v":""}]
[null,null,null,null,{"$f":"CONCATENATE(Homework[[#This Row],[Patient Name]],\": \",Homework[[#This Row],[Chart]])","v":": "},{"$f":"IF(ISBLANK(Homework[[#This Row],[Date]]),\"\",UPPER(TEXT(Homework[[#This Row],[Date]],\"ddd\")))","v":""},{"$f":"IF(ISBLANK(Homework[[#This Row],[Date]]),\"\",UPPER(TEXT(Homework[[#This Row],[Date]],\"mmm\")))","v":""}]
[null,null,null,null,{"$f":"CONCATENATE(Homework[[#This Row],[Patient Name]],\": \",Homework[[#This Row],[Chart]])","v":": "},{"$f":"IF(ISBLANK(Homework[[#This Row],[Date]]),\"\",UPPER(TEXT(Homework[[#This Row],[Date]],\"ddd\")))","v":""},{"$f":"IF(ISBLANK(Homework[[#This Row],[Date]]),\"\",UPPER(TEXT(Homework[[#This Row],[Date]],\"mmm\")))","v":""}]
[null,null,null,null,{"$f":"CONCATENATE(Homework[[#This Row],[Patient Name]],\": \",Homework[[#This Row],[Chart]])","v":": "},{"$f":"IF(ISBLANK(Homework[[#This Row],[Date]]),\"\",UPPER(TEXT(Homework[[#This Row],[Date]],\"ddd\")))","v":""},{"$f":"IF(ISBLANK(Homework[[#This Row],[Date]]),\"\",UPPER(TEXT(Homework[[#This Row],[Date]],\"mmm\")))","v":""}]
[null,null,null,null,{"$f":"CONCATENATE(Homework[[#This Row],[Patient Name]],\": \",Homework[[#This Row],[Chart]])","v":": "},{"$f":"IF(ISBLANK(Homework[[#This Row],[Date]]),\"\",UPPER(TEXT(Homework[[#This Row],[Date]],\"ddd\")))","v":""},{"$f":"IF(ISBLANK(Homework[[#This Row],[Date]]),\"\",UPPER(TEXT(Homework[[#This Row],[Date]],\"mmm\")))","v":""}]
[null,null,null,null,{"$f":"CONCATENATE(Homework[[#This Row],[Patient Name]],\": \",Homework[[#This Row],[Chart]])","v":": "},{"$f":"IF(ISBLANK(Homework[[#This Row],[Date]]),\"\",UPPER(TEXT(Homework[[#This Row],[Date]],\"ddd\")))","v":""},{"$f":"IF(ISBLANK(Homework[[#This Row],[Date]]),\"\",UPPER(TEXT(Homework[[#This Row],[Date]],\"mmm\")))","v":""}]
[null,null,null,null,{"$f":"CONCATENATE(Homework[[#This Row],[Patient Name]],\": \",Homework[[#This Row],[Chart]])","v":": "},{"$f":"IF(ISBLANK(Homework[[#This Row],[Date]]),\"\",UPPER(TEXT(Homework[[#This Row],[Date]],\"ddd\")))","v":""},{"$f":"IF(ISBLANK(Homework[[#This Row],[Date]]),\"\",UPPER(TEXT(Homework[[#This Row],[Date]],\"mmm\")))","v":""}]
[null,null,null,null,{"$f":"CONCATENATE(Homework[[#This Row],[Patient Name]],\": \",Homework[[#This Row],[Chart]])","v":": "},{"$f":"IF(ISBLANK(Homework[[#This Row],[Date]]),\"\",UPPER(TEXT(Homework[[#This Row],[Date]],\"ddd\")))","v":""},{"$f":"IF(ISBLANK(Homework[[#This Row],[Date]]),\"\",UPPER(TEXT(Homework[[#This Row],[Date]],\"mmm\")))","v":""}]
[null,null,null,null,{"$f":"CONCATENATE(Homework[[#This Row],[Patient Name]],\": \",Homework[[#This Row],[Chart]])","v":": "},{"$f":"IF(ISBLANK(Homework[[#This Row],[Date]]),\"\",UPPER(TEXT(Homework[[#This Row],[Date]],\"ddd\")))","v":""},{"$f":"IF(ISBLANK(Homework[[#This Row],[Date]]),\"\",UPPER(TEXT(Homework[[#This Row],[Date]],\"mmm\")))","v":""}]
[null,null,null,null,{"$f":"CONCATENATE(Homework[[#This Row],[Patient Name]],\": \",Homework[[#This Row],[Chart]])","v":": "},{"$f":"IF(ISBLANK(Homework[[#This Row],[Date]]),\"\",UPPER(TEXT(Homework[[#This Row],[Date]],\"ddd\")))","v":""},{"$f":"IF(ISBLANK(Homework[[#This Row],[Date]]),\"\",UPPER(TEXT(Homework[[#This Row],[Date]],\"mmm\")))","v":""}]
[null,null,null,null,{"$f":"CONCATENATE(Homework[[#This Row],[Patient Name]],\": \",Homework[[#This Row],[Chart]])","v":": "},{"$f":"IF(ISBLANK(Homework[[#This Row],[Date]]),\"\",UPPER(TEXT(Homework[[#This Row],[Date]],\"ddd\")))","v":""},{"$f":"IF(ISBLANK(Homework[[#This Row],[Date]]),\"\",UPPER(TEXT(Homework[[#This Row],[Date]],\"mmm\")))","v":""}]
[null,null,null,null,{"$f":"CONCATENATE(Homework[[#This Row],[Patient Name]],\": \",Homework[[#This Row],[Chart]])","v":": "},{"$f":"IF(ISBLANK(Homework[[#This Row],[Date]]),\"\",UPPER(TEXT(Homework[[#This Row],[Date]],\"ddd\")))","v":""},{"$f":"IF(ISBLANK(Homework[[#This Row],[Date]]),\"\",UPPER(TEXT(Homework[[#This Row],[Date]],\"mmm\")))","v":""}]
[null,null,null,null,{"$f":"CONCATENATE(Homework[[#This Row],[Patient Name]],\": \",Homework[[#This Row],[Chart]])","v":": "},{"$f":"IF(ISBLANK(Homework[[#This Row],[Date]]),\"\",UPPER(TEXT(Homework[[#This Row],[Date]],\"ddd\")))","v":""},{"$f":"IF(ISBLANK(Homework[[#This Row],[Date]]),\"\",UPPER(TEXT(Homework[[#This Row],[Date]],\"mmm\")))","v":""}]
[null,null,null,null,{"$f":"CONCATENATE(Homework[[#This Row],[Patient Name]],\": \",Homework[[#This Row],[Chart]])","v":": "},{"$f":"IF(ISBLANK(Homework[[#This Row],[Date]]),\"\",UPPER(TEXT(Homework[[#This Row],[Date]],\"ddd\")))","v":""},{"$f":"IF(ISBLANK(Homework[[#This Row],[Date]]),\"\",UPPER(TEXT(Homework[[#This Row],[Date]],\"mmm\")))","v":""}]
[null,null,null,null,{"$f":"CONCATENATE(Homework[[#This Row],[Patient Name]],\": \",Homework[[#This Row],[Chart]])","v":": "},{"$f":"IF(ISBLANK(Homework[[#This Row],[Date]]),\"\",UPPER(TEXT(Homework[[#This Row],[Date]],\"ddd\")))","v":""},{"$f":"IF(ISBLANK(Homework[[#This Row],[Date]]),\"\",UPPER(TEXT(Homework[[#This Row],[Date]],\"mmm\")))","v":""}]
[null,null,null,null,{"$f":"CONCATENATE(Homework[[#This Row],[Patient Name]],\": \",Homework[[#This Row],[Chart]])","v":": "},{"$f":"IF(ISBLANK(Homework[[#This Row],[Date]]),\"\",UPPER(TEXT(Homework[[#This Row],[Date]],\"ddd\")))","v":""},{"$f":"IF(ISBLANK(Homework[[#This Row],[Date]]),\"\",UPPER(TEXT(Homework[[#This Row],[Date]],\"mmm\")))","v":""}]
[null,null,null,null,{"$f":"CONCATENATE(Homework[[#This Row],[Patient Name]],\": \",Homework[[#This Row],[Chart]])","v":": "},{"$f":"IF(ISBLANK(Homework[[#This Row],[Date]]),\"\",UPPER(TEXT(Homework[[#This Row],[Date]],\"ddd\")))","v":""},{"$f":"IF(ISBLANK(Homework[[#This Row],[Date]]),\"\",UPPER(TEXT(Homework[[#This Row],[Date]],\"mmm\")))","v":""}]
[null,null,null,null,{"$f":"CONCATENATE(Homework[[#This Row],[Patient Name]],\": \",Homework[[#This Row],[Chart]])","v":": "},{"$f":"IF(ISBLANK(Homework[[#This Row],[Date]]),\"\",UPPER(TEXT(Homework[[#This Row],[Date]],\"ddd\")))","v":""},{"$f":"IF(ISBLANK(Homework[[#This Row],[Date]]),\"\",UPPER(TEXT(Homework[[#This Row],[Date]],\"mmm\")))","v":""}]
[null,null,null,null,{"$f":"CONCATENATE(Homework[[#This Row],[Patient Name]],\": \",Homework[[#This Row],[Chart]])","v":": "},{"$f":"IF(ISBLANK(Homework[[#This Row],[Date]]),\"\",UPPER(TEXT(Homework[[#This Row],[Date]],\"ddd\")))","v":""},{"$f":"IF(ISBLANK(Homework[[#This Row],[Date]]),\"\",UPPER(TEXT(Homework[[#This Row],[Date]],\"mmm\")))","v":""}]
[null,null,null,null,{"$f":"CONCATENATE(Homework[[#This Row],[Patient Name]],\": \",Homework[[#This Row],[Chart]])","v":": "},{"$f":"IF(ISBLANK(Homework[[#This Row],[Date]]),\"\",UPPER(TEXT(Homework[[#This Row],[Date]],\"ddd\")))","v":""},{"$f":"IF(ISBLANK(Homework[[#This Row],[Date]]),\"\",UPPER(TEXT(Homework[[#This Row],[Date]],\"mmm\")))","v":""}]
[null,null,null,null,{"$f":"CONCATENATE(Homework[[#This Row],[Patient Name]],\": \",Homework[[#This Row],[Chart]])","v":": "},{"$f":"IF(ISBLANK(Homework[[#This Row],[Date]]),\"\",UPPER(TEXT(Homework[[#This Row],[Date]],\"ddd\")))","v":""},{"$f":"IF(ISBLANK(Homework[[#This Row],[Date]]),\"\",UPPER(TEXT(Homework[[#This Row],[Date]],\"mmm\")))","v":""}]
[null,null,null,null,{"$f":"CONCATENATE(Homework[[#This Row],[Patient Name]],\": \",Homework[[#This Row],[Chart]])","v":": "},{"$f":"IF(ISBLANK(Homework[[#This Row],[Date]]),\"\",UPPER(TEXT(Homework[[#This Row],[Date]],\"ddd\")))","v":""},{"$f":"IF(ISBLANK(Homework[[#This Row],[Date]]),\"\",UPPER(TEXT(Homework[[#This Row],[Date]],\"mmm\")))","v":""}]
[null,null,null,null,{"$f":"CONCATENATE(Homework[[#This Row],[Patient Name]],\": \",Homework[[#This Row],[Chart]])","v":": "},{"$f":"IF(ISBLANK(Homework[[#This Row],[Date]]),\"\",UPPER(TEXT(Homework[[#This Row],[Date]],\"ddd\")))","v":""},{"$f":"IF(ISBLANK(Homework[[#This Row],[Date]]),\"\",UPPER(TEXT(Homework[[#This Row],[Date]],\"mmm\")))","v":""}]
[null,null,null,null,{"$f":"CONCATENATE(Homework[[#This Row],[Patient Name]],\": \",Homework[[#This Row],[Chart]])","v":": "},{"$f":"IF(ISBLANK(Homework[[#This Row],[Date]]),\"\",UPPER(TEXT(Homework[[#This Row],[Date]],\"ddd\")))","v":""},{"$f":"IF(ISBLANK(Homework[[#This Row],[Date]]),\"\",UPPER(TEXT(Homework[[#This Row],[Date]],\"mmm\")))","v":""}]
[null,null,null,null,{"$f":"CONCATENATE(Homework[[#This Row],[Patient Name]],\": \",Homework[[#This Row],[Chart]])","v":": "},{"$f":"IF(ISBLANK(Homework[[#This Row],[Date]]),\"\",UPPER(TEXT(Homework[[#This Row],[Date]],\"ddd\")))","v":""},{"$f":"IF(ISBLANK(Homework[[#This Row],[Date]]),\"\",UPPER(TEXT(Homework[[#This Row],[Date]],\"mmm\")))","v":""}]
[null,null,null,null,{"$f":"CONCATENATE(Homework[[#This Row],[Patient Name]],\": \",Homework[[#This Row],[Chart]])","v":": "},{"$f":"IF(ISBLANK(Homework[[#This Row],[Date]]),\"\",UPPER(TEXT(Homework[[#This Row],[Date]],\"ddd\")))","v":""},{"$f":"IF(ISBLANK(Homework[[#This Row],[Date]]),\"\",UPPER(TEXT(Homework[[#This Row],[Date]],\"mmm\")))","v":""}]
[null,null,null,null,{"$f":"CONCATENATE(Homework[[#This Row],[Patient Name]],\": \",Homework[[#This Row],[Chart]])","v":": "},{"$f":"IF(ISBLANK(Homework[[#This Row],[Date]]),\"\",UPPER(TEXT(Homework[[#This Row],[Date]],\"ddd\")))","v":""},{"$f":"IF(ISBLANK(Homework[[#This Row],[Date]]),\"\",UPPER(TEXT(Homework[[#This Row],[Date]],\"mmm\")))","v":""}]
[null,null,null,null,{"$f":"CONCATENATE(Homework[[#This Row],[Patient Name]],\": \",Homework[[#This Row],[Chart]])","v":": "},{"$f":"IF(ISBLANK(Homework[[#This Row],[Date]]),\"\",UPPER(TEXT(Homework[[#This Row],[Date]],\"ddd\")))","v":""},{"$f":"IF(ISBLANK(Homework[[#This Row],[Date]]),\"\",UPPER(TEXT(Homework[[#This Row],[Date]],\"mmm\")))","v":""}]
[null,null,null,null,{"$f":"CONCATENATE(Homework[[#This Row],[Patient Name]],\": \",Homework[[#This Row],[Chart]])","v":": "},{"$f":"IF(ISBLANK(Homework[[#This Row],[Date]]),\"\",UPPER(TEXT(Homework[[#This Row],[Date]],\"ddd\")))","v":""},{"$f":"IF(ISBLANK(Homework[[#This Row],[Date]]),\"\",UPPER(TEXT(Homework[[#This Row],[Date]],\"mmm\")))","v":""}]
[null,null,null,null,{"$f":"CONCATENATE(Homework[[#This Row],[Patient Name]],\": \",Homework[[#This Row],[Chart]])","v":": "},{"$f":"IF(ISBLANK(Homework[[#This Row],[Date]]),\"\",UPPER(TEXT(Homework[[#This Row],[Date]],\"ddd\")))","v":""},{"$f":"IF(ISBLANK(Homework[[#This Row],[Date]]),\"\",UPPER(TEXT(Homework[[#This Row],[Date]],\"mmm\")))","v":""}]
[null,null,null,null,{"$f":"CONCATENATE(Homework[[#This Row],[Patient Name]],\": \",Homework[[#This Row],[Chart]])","v":": "},{"$f":"IF(ISBLANK(Homework[[#This Row],[Date]]),\"\",UPPER(TEXT(Homework[[#This Row],[Date]],\"ddd\")))","v":""},{"$f":"IF(ISBLANK(Homework[[#This Row],[Date]]),\"\",UPPER(TEXT(Homework[[#This Row],[Date]],\"mmm\")))","v":""}]
[null,null,null,null,{"$f":"CONCATENATE(Homework[[#This Row],[Patient Name]],\": \",Homework[[#This Row],[Chart]])","v":": "},{"$f":"IF(ISBLANK(Homework[[#This Row],[Date]]),\"\",UPPER(TEXT(Homework[[#This Row],[Date]],\"ddd\")))","v":""},{"$f":"IF(ISBLANK(Homework[[#This Row],[Date]]),\"\",UPPER(TEXT(Homework[[#This Row],[Date]],\"mmm\")))","v":""}]

{"sheet":"Color Key","index":3,"n_rows":25,"n_cols":13,"rows_kept":25,"cut":false,"hidden":false,"merged":[]}
["COLOR KEY (may move me around)"]
["White: Cannot contact"]
["Green Ready to present to ECHO"]
["Blue Already started treatment"]
["Yellow Pending Appt need labs"]
["Red May need Beh Health Consult"]
["Purple Medication Approval Pending"]
["Orange Completed treatment, pending SVR labs"]
["Grey CURED"]
["Cannot contact"]
["Ready to present to ECHO"]
["Already started treatment"]
["Pending Appt need labs"]
["May need Beh Health Consult"]
["Medication Approval Pending"]
["Completed treatment, pending SVR labs"]
["CURED"]
["Ab Key",null,"Other Key",null,"HCV RNA Results",null,"SVR Key",null,"Pregnancy",null,"HIV",null,"UDS"]
["Negative",null,"Negative",null,"Detectable",null,"Cured",null,"Positive",null,"Positive",null,"Positive"]
["Positive",null,"Positive",null,"Undetectable",null,"Re-assess",null,"Negative",null,"Negative",null,"Negative"]
[]
[]
["Date Reminders"]
["Past Due"]
["Today"]

{"sheet":"Template 12 wk","index":4,"n_rows":39,"n_cols":15,"rows_kept":39,"cut":false,"hidden":false,"merged":[[9,6,11,6],[0,5,0,6]],"read":"row_number_cap"}
[null,"Labs to Order","Date Ordered",null,"Date Ordered","Select from Menu",null,"Date Hep A Shot 1st","Date Hep A 2nd Shot 6 months","Date Hep B 0 week","Date 2nd Shot 1 month","Date 3rd Shot 6 months","Date Twinrix Shot","Date Twinrix 2nd shot","Date Twinrix 3rd shot"]
[null,"HCV Screen",false,{"$f":"IF(C2,\"TRUE\",\"\")","v":""},{"$f":"IF(D2<>\"\",IF(E2=\"\",NOW(),E2),\"\")","v":""},null,null,null,{"$f":"H2+180","v":"1900-06-28"},null,{"$f":"J2+28","v":"1900-01-28"},{"$f":"J2+180","v":"1900-06-28"},null,{"$f":"M2+28","v":"1900-01-28"},{"$f":"N2+120","v":"1900-05-27"}]
[null,"HCV Viral Load",false,{"$f":"IF(C3,\"TRUE\",\"\")","v":""},{"$f":"IF(D3<>\"\",IF(E3=\"\",NOW(),E3),\"\")","v":""},"Pick from drop down "]
[null,"HCV GT",false,"",""]
[null,"NS5A Resistance",false,"","",null,null,"Enter Date",null,"Enter Date",null,null,"Enter Date"]
[null,"Pregnancy Test",false,"","",null,null,"MM/DD/YYYY",null,"MM/DD/YYYY",null,null,"MM/DD/YYYY"]
[null,"HIV Screen",false,"","",null,"<-- Pick from drop down"]
[null,"Chem 14",false,"",""]
[null,"CBC",false,"",""]
[null,"PT/INR",false,"","",null,"Hep B Ab/Shot , If no please give shot and f/u for series"]
[null,"Anemia Panel",false,"","","Hep A serology/shot"]
[null,"Vit D",false,"","","Pick from drop down "]
[null,"AFP Marker",false,"","",null,"Pick from drop down "]
[null,"Fibrotest",false,"",""]
[null,"Hep A Ab",false,"",""]
[null,"Hep B s Ab",false,"",""]
[null,"Hep B s Ag",false,"",""]
[null,"Hep B core Ab",false,"",""]
[null,"UDS",false,"","",null,"<-- Pick from drop down"]
[null,null,null,null,"Enter Date --> MM/DD/YYYY",null,"Treatment Start Date","HCV RNA Results",null,"Link to Ongoing Patients"]
[null,"At 4 week",null,null,null,{"$f":"F20+28","v":"1900-01-28"},"At 4 week",null,"<-- Pick from drop down"]
[null,"HCV Viral Load",false,"",{"$f":"IF(D22<>\"\",IF(E22=\"\",NOW(),E22),\"\")","v":""}]
[null,"Chem 14",false,"",{"$f":"IF(D23<>\"\",IF(E23=\"\",NOW(),E23),\"\")","v":""}]
[null,"CBC",false,"",""]
[null,null,null,null,""]
[null,"At 8 weeks",null,null,"",{"$f":"F20+56","v":"1900-02-25"},"At 8 weeks",null,"<-- Pick from drop down"]
[null,"HCV Viral Load",false,"",""]
[null,"Chem 14",false,"",""]
[null,"CBC",false,"",""]
[null,null,null,null,""]
[null,"At ETR",null,null,"",{"$f":"F20+84","v":"1900-03-24"},"At ETR",null,"<-- Pick from drop down"]
[null,"HCV Viral Load",false,"",""]
[null,"Chem 14",false,"",""]
[null,"CBC",false,"",""]
[null,null,null,null,""]
[null,"At SVR",null,null,"",{"$f":"F31+84","v":"1900-06-16"},"At SVR",null,"<-- Pick from drop down"]
[null,"HCV Viral Load",false,"",""]
[null,"Chem 14",false,"",""]
[null,"CBC",false,"",""]

{"sheet":"Template 8 wk","index":5,"n_rows":34,"n_cols":15,"rows_kept":34,"cut":false,"hidden":false,"merged":[[0,5,0,6],[9,6,11,6]],"read":"row_number_cap"}
[null,"Labs to Order","Date Ordered",null,"Date Ordered","Select from Menu",null,"Date Hep A Shot 1st","Date Hep A 2nd Shot 6 months","Date Hep B 0 week","Date 2nd Shot 1 month","Date 3rd Shot 6 months","Date Twinrix Shot","Date Twinrix 2nd shot","Date Twinrix 3rd shot"]
[null,"HCV Screen",false,{"$f":"IF(C2,\"True\",\"\")","v":""},{"$f":"IF(C2=TRUE, NOW(), \" \")","v":" "},null,null,null,{"$f":"H2+180","v":"1900-06-28"},null,{"$f":"J2+28","v":"1900-01-28"},{"$f":"J2+180","v":"1900-06-28"},null,{"$f":"M2+28","v":"1900-01-28"},{"$f":"N2+120","v":"1900-05-27"}]
[null,"HCV Viral Load",false,{"$f":"IF(C3,\"True\",\"\")","v":""},{"$f":"IF(D3<>\"\",IF(E3=\"\",NOW(),E3),\"\")","v":""},"Pick from drop down "]
[null,"HCV GT",false,"",{"$f":"IF(D4<>\"\",IF(E4=\"\",NOW(),E4),\"\")","v":""}]
[null,"NS5A Resistance",true,"True",{"$f":"IF(D5<>\"\",IF(E5=\"\",NOW(),E5),\"\")","v":"2017-10-30T21:45:56.850"},null,null,"Enter Date",null,"Enter Date",null,null,"Enter Date"]
[null,"Pregnancy Test",true,"True","2017-10-30T21:35:18.610",null,null,"MM/DD/YYYY",null,"MM/DD/YYYY",null,null,"MM/DD/YYYY"]
[null,"HIV Screen",false,"","",null,"<-- Pick from drop down"]
[null,"Chem 14",true,"True","2017-10-30T21:35:19.390"]
[null,"CBC",false,"",""]
[null,"PT/INR",false,"","",null,"Hep B Ab/Shot , If no please give shot and f/u for series"]
[null,"Anemia Panel",false,"","","Hep A serology/shot"]
[null,"Vit D",false,"","","Pick from drop down "]
[null,"AFP Marker",false,"","",null,"Pick from drop down "]
[null,"Fibrotest",false,"",""]
[null,"Hep A Ab",false,"",""]
[null,"Hep B s Ab",false,"",""]
[null,"Hep B s Ag",false,"",""]
[null,"Hep B core Ab",false,"",""]
[null,"UDS",false,"","",null,"<-- Pick from drop down"]
[null,null,null,null,"Enter Date --> MM/DD/YYYY",null,"Treatment Start Date","HCV RNA Results",null,"Link to Ongoing Patients"]
[null,"At 4 week",null,null,null,{"$f":"F20+28","v":"1900-01-28"},"At 4 week",null,"<-- Pick from drop down"]
[null,"HCV Viral Load",false,{"$f":"IF(C22,\"TRUE\",\"\")","v":""},{"$f":"IF(D22<>\"\",IF(E22=\"\",NOW(),E22),\"\")","v":""}]
[null,"Chem 14",false,{"$f":"IF(C23,\"TRUE\",\"\")","v":""},{"$f":"IF(D23<>\"\",IF(E23=\"\",NOW(),E23),\"\")","v":""}]
[null,"CBC",false,"",""]
[null,null,null,"",""]
[null,"At 8 weeks/ETR",null,"","",{"$f":"F20+56","v":"1900-02-25"},"At 8 weeks/ETR",null,"<-- Pick from drop down"]
[null,"HCV Viral Load",false,"",""]
[null,"Chem 14",false,"",""]
[null,"CBC",false,"",""]
[null,null,null,"",""]
[null,"At SVR",null,"","",{"$f":"F20+140","v":"1900-05-19"},"At SVR",null,"<-- Pick from drop down"]
[null,"HCV Viral Load",false,"",""]
[null,"Chem 14",false,"",""]
[null,"CBC",false,"",""]

{"sheet":"Sheet1","index":6,"n_rows":39,"n_cols":15,"rows_kept":39,"cut":false,"hidden":false,"merged":[[0,5,0,6],[9,6,11,6]],"read":"row_number_cap"}
[null,"Labs to Order","Date Ordered",null,"Date Ordered","Select from Menu",null,"Date Hep A Shot 1st","Date Hep A 2nd Shot 6 months","Date Hep B 0 week","Date 2nd Shot 1 month","Date 3rd Shot 6 months","Date Twinrix Shot","Date Twinrix 2nd shot","Date Twinrix 3rd shot"]
[null,"HCV Screen",false,{"$f":"IF(C2,\"TRUE\",\"\")","v":""},{"$f":"IF(D2<>\"\",IF(E2=\"\",NOW(),E2),\"\")","v":""},null,null,null,{"$f":"H2+180","v":"1900-06-28"},null,{"$f":"J2+28","v":"1900-01-28"},{"$f":"J2+180","v":"1900-06-28"},null,{"$f":"M2+28","v":"1900-01-28"},{"$f":"N2+120","v":"1900-05-27"}]
[null,"HCV Viral Load",false,{"$f":"IF(C3,\"TRUE\",\"\")","v":""},{"$f":"IF(D3<>\"\",IF(E3=\"\",NOW(),E3),\"\")","v":""},"Pick from drop down "]
[null,"HCV GT",true,"TRUE","2017-11-20T22:59:29.830"]
[null,"NS5A Resistance",false,"","",null,null,"Enter Date",null,"Enter Date",null,null,"Enter Date"]
[null,"Pregnancy Test",true,"TRUE","2017-11-20T22:59:31.090","Negative",null,"MM/DD/YYYY",null,"MM/DD/YYYY",null,null,"MM/DD/YYYY"]
[null,"HIV Screen",true,"TRUE","2017-11-20T22:59:32.300",null,"<-- Pick from drop down"]
[null,"Chem 14",false,"",""]
[null,"CBC",false,"",""]
[null,"PT/INR",false,"","",null,"Hep B Ab/Shot , If no please give shot and f/u for series"]
[null,"Anemia Panel",false,"","","Hep A serology/shot"]
[null,"Vit D",false,"","","Pick from drop down "]
[null,"AFP Marker",false,"","",null,"Pick from drop down "]
[null,"Fibrotest",false,"",""]
[null,"Hep A Ab",false,"",""]
[null,"Hep B s Ab",false,"",""]
[null,"Hep B s Ag",false,"",""]
[null,"Hep B core Ab",false,"",""]
[null,"UDS",false,"","",null,"<-- Pick from drop down"]
[null,null,null,null,"Enter Date --> MM/DD/YYYY",null,"Treatment Start Date","HCV RNA Results",null,"Link to Ongoing Patients"]
[null,"At 4 week",null,null,null,{"$f":"F20+28","v":"1900-01-28"},"At 4 week",null,"<-- Pick from drop down"]
[null,"HCV Viral Load",false,"",{"$f":"IF(D22<>\"\",IF(E22=\"\",NOW(),E22),\"\")","v":""}]
[null,"Chem 14",false,"",{"$f":"IF(D23<>\"\",IF(E23=\"\",NOW(),E23),\"\")","v":""}]
[null,"CBC",false,"",""]
[null,null,null,null,""]
[null,"At 8 weeks",null,null,"",{"$f":"F20+56","v":"1900-02-25"},"At 8 weeks",null,"<-- Pick from drop down"]
[null,"HCV Viral Load",false,"",""]
[null,"Chem 14",false,"",""]
[null,"CBC",false,"",""]
[null,null,null,null,""]
[null,"At ETR",null,null,"",{"$f":"F20+84","v":"1900-03-24"},"At ETR",null,"<-- Pick from drop down"]
[null,"HCV Viral Load",false,"",""]
[null,"Chem 14",false,"",""]
[null,"CBC",false,"",""]
[null,null,null,null,""]
[null,"At SVR",null,null,"",{"$f":"F31+84","v":"1900-06-16"},"At SVR",null,"<-- Pick from drop down"]
[null,"HCV Viral Load",false,"",""]
[null,"Chem 14",false,"",""]
[null,"CBC",false,"",""]

{"sheet":"Sheet2","index":7,"n_rows":39,"n_cols":14,"rows_kept":39,"cut":false,"hidden":false,"merged":[[0,4,0,5],[9,5,11,5]],"read":"row_number_cap"}
[null,"Labs to Order","Date Ordered","Date Ordered","Select from Menu",null,"Date Hep A Shot 1st","Date Hep A 2nd Shot 6 months","Date Hep B 0 week","Date 2nd Shot 1 month","Date 3rd Shot 6 months","Date Twinrix Shot","Date Twinrix 2nd shot","Date Twinrix 3rd shot"]
[null,"HCV Screen",false,{"$f":"IF(C2=TRUE, NOW(), \" \")","v":" "},null,null,null,{"$f":"G2+180","v":"1900-06-28"},null,{"$f":"I2+28","v":"1900-01-28"},{"$f":"I2+180","v":"1900-06-28"},null,{"$f":"L2+28","v":"1900-01-28"},{"$f":"M2+120","v":"1900-05-27"}]
[null,"HCV Viral Load",false,{"$f":"IF(C3=TRUE, NOW(), \" \")","v":" "},"Pick from drop down "]
[null,"HCV GT",false," "]
[null,"NS5A Resistance",false," ",null,null,"Enter Date",null,"Enter Date",null,null,"Enter Date"]
[null,"Pregnancy Test",false," ",null,null,"MM/DD/YYYY",null,"MM/DD/YYYY",null,null,"MM/DD/YYYY"]
[null,"HIV Screen",false," ",null,"<-- Pick from drop down"]
[null,"Chem 14",false," "]
[null,"CBC",false," "]
[null,"PT/INR",false," ",null,"Hep B Ab/Shot , If no please give shot and f/u for series"]
[null,"Anemia Panel",false," ","Hep A serology/shot"]
[null,"Vit D",false," ","Pick from drop down "]
[null,"AFP Marker",false," ",null,"Pick from drop down "]
[null,"Fibrotest",false," "]
[null,"Hep A Ab",false," "]
[null,"Hep B s Ab",false," "]
[null,"Hep B s Ag",false," "]
[null,"Hep B core Ab",false," "]
[null,"UDS",false," ",null,"<-- Pick from drop down"]
[null,null,null,"Enter Date --> MM/DD/YYYY",null,"Treatment Start Date","HCV RNA Results",null,"Link to Ongoing Patients"]
[null,"At 4 week",null,null,{"$f":"E20+28","v":"1900-01-28"},"At 4 week",null,"<-- Pick from drop down"]
[null,"HCV Viral Load",false,{"$f":"IF(C22=TRUE, NOW(), \" \")","v":" "}]
[null,"Chem 14",false,{"$f":"IF(C23=TRUE, NOW(), \" \")","v":" "}]
[null,"CBC",false," "]
[]
[null,"At 8 weeks",null,null,{"$f":"E20+56","v":"1900-02-25"},"At 8 weeks",null,"<-- Pick from drop down"]
[null,"HCV Viral Load",false,{"$f":"IF(C27=TRUE, NOW(), \" \")","v":" "}]
[null,"Chem 14",false,{"$f":"IF(C28=TRUE, NOW(), \" \")","v":" "}]
[null,"CBC",false," "]
[]
[null,"At ETR",null,null,{"$f":"E20+84","v":"1900-03-24"},"At ETR",null,"<-- Pick from drop down"]
[null,"HCV Viral Load",false,{"$f":"IF(C32=TRUE, NOW(), \" \")","v":" "}]
[null,"Chem 14",false,{"$f":"IF(C33=TRUE, NOW(), \" \")","v":" "}]
[null,"CBC",false," "]
[]
[null,"At SVR",null,null,{"$f":"E31+84","v":"1900-06-16"},"At SVR",null,"<-- Pick from drop down"]
[null,"HCV Viral Load",false,{"$f":"IF(C37=TRUE, NOW(), \" \")","v":" "}]
[null,"Chem 14",false,{"$f":"IF(C38=TRUE, NOW(), \" \")","v":" "}]
[null,"CBC",false," "]

{"sheet":"Sheet3","index":8,"n_rows":34,"n_cols":14,"rows_kept":34,"cut":false,"hidden":false,"merged":[[0,4,0,5],[9,5,11,5]],"read":"row_number_cap"}
[null,"Labs to Order","Date Ordered","Date Ordered","Select from Menu",null,"Date Hep A Shot 1st","Date Hep A 2nd Shot 6 months","Date Hep B 0 week","Date 2nd Shot 1 month","Date 3rd Shot 6 months","Date Twinrix Shot","Date Twinrix 2nd shot","Date Twinrix 3rd shot"]
[null,"HCV Screen",false,{"$f":"IF(C2=TRUE, NOW(), \" \")","v":" "},null,null,null,{"$f":"G2+180","v":"1900-06-28"},null,{"$f":"I2+28","v":"1900-01-28"},{"$f":"I2+180","v":"1900-06-28"},null,{"$f":"L2+28","v":"1900-01-28"},{"$f":"M2+120","v":"1900-05-27"}]
[null,"HCV Viral Load",false,{"$f":"IF(C3=TRUE, NOW(), \" \")","v":" "},"Pick from drop down "]
[null,"HCV GT",false," "]
[null,"NS5A Resistance",false," ",null,null,"Enter Date",null,"Enter Date",null,null,"Enter Date"]
[null,"Pregnancy Test",false," ",null,null,"MM/DD/YYYY",null,"MM/DD/YYYY",null,null,"MM/DD/YYYY"]
[null,"HIV Screen",false," ",null,"<-- Pick from drop down"]
[null,"Chem 14",false," "]
[null,"CBC",false," "]
[null,"PT/INR",false," ",null,"Hep B Ab/Shot , If no please give shot and f/u for series"]
[null,"Anemia Panel",false," ","Hep A serology/shot"]
[null,"Vit D",false," ","Pick from drop down "]
[null,"AFP Marker",false," ",null,"Pick from drop down "]
[null,"Fibrotest",false," "]
[null,"Hep A Ab",false," "]
[null,"Hep B s Ab",false," "]
[null,"Hep B s Ag",false," "]
[null,"Hep B core Ab",false," "]
[null,"UDS",false," ",null,"<-- Pick from drop down"]
[null,null,null,"Enter Date --> MM/DD/YYYY",null,"Treatment Start Date","HCV RNA Results",null,"Link to Ongoing Patients"]
[null,"At 4 week",null,null,{"$f":"E20+28","v":"1900-01-28"},"At 4 week",null,"<-- Pick from drop down"]
[null,"HCV Viral Load",false,{"$f":"IF(C22=TRUE, NOW(), \" \")","v":" "}]
[null,"Chem 14",false,{"$f":"IF(C23=TRUE, NOW(), \" \")","v":" "}]
[null,"CBC",false," "]
[]
[null,"At 8 weeks/ETR",null,null,{"$f":"E20+56","v":"1900-02-25"},"At 8 weeks/ETR",null,"<-- Pick from drop down"]
[null,"HCV Viral Load",false,{"$f":"IF(C27=TRUE, NOW(), \" \")","v":" "}]
[null,"Chem 14",false,{"$f":"IF(C28=TRUE, NOW(), \" \")","v":" "}]
[null,"CBC",false," "]
[]
[null,"At SVR",null,null,{"$f":"E20+140","v":"1900-05-19"},"At SVR",null,"<-- Pick from drop down"]
[null,"HCV Viral Load",false,{"$f":"IF(C32=TRUE, NOW(), \" \")","v":" "}]
[null,"Chem 14",false,{"$f":"IF(C33=TRUE, NOW(), \" \")","v":" "}]
[null,"CBC",false," "]

{"sheet":"Sheet4","index":9,"n_rows":39,"n_cols":14,"rows_kept":39,"cut":false,"hidden":false,"merged":[[0,4,0,5],[9,5,11,5]],"read":"row_number_cap"}
[null,"Labs to Order","Date Ordered","Date Ordered","Select from Menu",null,"Date Hep A Shot 1st","Date Hep A 2nd Shot 6 months","Date Hep B 0 week","Date 2nd Shot 1 month","Date 3rd Shot 6 months","Date Twinrix Shot","Date Twinrix 2nd shot","Date Twinrix 3rd shot"]
[null,"HCV Screen",false,{"$f":"IF(C2=TRUE, NOW(), \" \")","v":" "},null,null,null,{"$f":"G2+180","v":"1900-06-28"},null,{"$f":"I2+28","v":"1900-01-28"},{"$f":"I2+180","v":"1900-06-28"},null,{"$f":"L2+28","v":"1900-01-28"},{"$f":"M2+120","v":"1900-05-27"}]
[null,"HCV Viral Load",false,{"$f":"IF(C3=TRUE, NOW(), \" \")","v":" "},"Pick from drop down "]
[null,"HCV GT",false," "]
[null,"NS5A Resistance",false," ",null,null,"Enter Date",null,"Enter Date",null,null,"Enter Date"]
[null,"Pregnancy Test",false," ",null,null,"MM/DD/YYYY",null,"MM/DD/YYYY",null,null,"MM/DD/YYYY"]
[null,"HIV Screen",false," ",null,"<-- Pick from drop down"]
[null,"Chem 14",false," "]
[null,"CBC",false," "]
[null,"PT/INR",false," ",null,"Hep B Ab/Shot , If no please give shot and f/u for series"]
[null,"Anemia Panel",false," ","Hep A serology/shot"]
[null,"Vit D",false," ","Pick from drop down "]
[null,"AFP Marker",false," ",null,"Pick from drop down "]
[null,"Fibrotest",false," "]
[null,"Hep A Ab",false," "]
[null,"Hep B s Ab",false," "]
[null,"Hep B s Ag",false," "]
[null,"Hep B core Ab",false," "]
[null,"UDS",false," ",null,"<-- Pick from drop down"]
[null,null,null,"Enter Date --> MM/DD/YYYY",null,"Treatment Start Date","HCV RNA Results",null,"Link to Ongoing Patients"]
[null,"At 4 week",null,null,{"$f":"E20+28","v":"1900-01-28"},"At 4 week",null,"<-- Pick from drop down"]
[null,"HCV Viral Load",false,{"$f":"IF(C22=TRUE, NOW(), \" \")","v":" "}]
[null,"Chem 14",false,{"$f":"IF(C23=TRUE, NOW(), \" \")","v":" "}]
[null,"CBC",false," "]
[]
[null,"At 8 weeks",null,null,{"$f":"E20+56","v":"1900-02-25"},"At 8 weeks",null,"<-- Pick from drop down"]
[null,"HCV Viral Load",false,{"$f":"IF(C27=TRUE, NOW(), \" \")","v":" "}]
[null,"Chem 14",false,{"$f":"IF(C28=TRUE, NOW(), \" \")","v":" "}]
[null,"CBC",false," "]
[]
[null,"At ETR",null,null,{"$f":"E20+84","v":"1900-03-24"},"At ETR",null,"<-- Pick from drop down"]
[null,"HCV Viral Load",false,{"$f":"IF(C32=TRUE, NOW(), \" \")","v":" "}]
[null,"Chem 14",false,{"$f":"IF(C33=TRUE, NOW(), \" \")","v":" "}]
[null,"CBC",false," "]
[]
[null,"At SVR",null,null,{"$f":"E31+84","v":"1900-06-16"},"At SVR",null,"<-- Pick from drop down"]
[null,"HCV Viral Load",false,{"$f":"IF(C37=TRUE, NOW(), \" \")","v":" "}]
[null,"Chem 14",false,{"$f":"IF(C38=TRUE, NOW(), \" \")","v":" "}]
[null,"CBC",false," "]

{"sheet":"Sheet5","index":10,"n_rows":8,"n_cols":2,"rows_kept":8,"cut":false,"hidden":false,"merged":[]}
[{"$f":"IF(B1<>””,IF(A1=””,NOW(),A1),””)","v":{"$error":"#NAME?"}},"yes"]
[]
[]
[]
[]
[]
[]
[null,{"$f":"IF(A8<>\"\",IF(B8<>\"\",B8,NOW()),\"\")","v":""}]

{"sheet":"Sheet6","index":11,"n_rows":10,"n_cols":2,"rows_kept":10,"cut":false,"hidden":false,"merged":[]}
[{"$f":"IF(B1<>\"\",IF(A1=\"\",NOW(),A1),\"\")","v":"2017-10-30T21:22:30.940"},"hg"]
[{"$f":"IF(B2<>\"\",IF(A2=\"\",NOW(),A2),\"\")","v":""}]
[{"$f":"IF(B3<>\"\",IF(A3=\"\",NOW(),A3),\"\")","v":""}]
[""]
[""]
[""]
[""]
[""]
[""]
[""]